Workbook

Sheet Instructions
A1: Instructions for Tabs 1, 3 to 7
B3: Summary of Changes from the Prior Year
B5: 1 | C5: Group 1 continuity schedule in tab 3 now shows total of Group 1 accounts, as well as total of Group 1 accounts requested for disposition.
B7: 2 | C7: The table in tab 6, 3a for transition customer consumption has been revised to show the periods "July to December" then "January to June", instead of "January to June" then "July to December" for each year.
B9: 3 | C9: The Incentive Rate-setting Application checklist now includes a check to ensure that the opening principal and interest amounts for Group 1 and 2 balances shown in the DVA Continuity Schedule, agree with the last applicable approved closing balances.
A14: Detailed Instructions for Each Tab
A15: Tab | B15: Tab Details | D15: Step | E15: Details
A16: 1 - Information Sheet | B16: This tab shows some information pertaining to the utility and the application. | D16: 1 | E16: Complete the information sheet.
E17: a) Questions 2 to 4
E18: Responses to questions 2 to 4 will open the DVA continuity schedule in tab 3 to the appropriate year that DVA balances should first be inputted.
E19: The continuity schedule will open starting from the year balances were last approved for disposition, unless the last approved dipsosition was on an interim basis and there are changes to those balances. If that is the case, the continuity schedule will open from the year of last approved disposition on a final basis. A distributor must also provide an explanation for the change in the previously approved balance.
E21: b) Questions 5 and 6
E22: If the response to question 5 (GA) or 6 (CBR Class B) is yes, tab 6 relating to Class A customers' consumption will be generated.
E23: If the response to question 6 is yes, then tab 6.2 will also be generated. This tab will allocate and dispose the balance in Account 1580, sub-account CBR Class B through a separate rate rider using information inputted in tab 6, unless a rate rider is not produced.
E24: If the response to question 6 is no, then the balance in the Account 1580, sub-account CBR Class B will be allocated and disposed with Account 1580 WMS, as part of the general DVA rate rider
A26: 3 - Continuity Schedule | B26: This tab is the continuity schedule that shows all the accounts and the accumulation of the balances a utility has. | D26: 2 | E26: Complete the DVA continuity schedule.
E28: a) For all Group 1 accounts, except Account 1595: The continuity schedule will open from the year the GL balance was last disposed. Start inputting the approved ending balances in the Adjustments column of that year. For example, if in the 2021 rate application, DVA balances as at December 13, 2019 were approved for disposition, the continuity schedule will commence from 2019. Start by inputting the approved closing 2019 balances in the Adjustments column under 2019.
E30: b) For all Account 1595 sub-accounts: Complete the DVA continuity schedule for each Account 1595 vintage year that has a GL balance as at December 31, 2020, regardless of whether the account is being requested for disposition in the current application. The continuity schedule will open in the year of the earliest Account 1595 vintage year that has a balance. For each Account 1595 sub-account, start inputting data from the year the sub-account started to accumulate a balance (i.e. the vintage year). For example, Account 1595 (2016) would accumulate a balance starting in 2016, when the relevant balances approved for disposition were first transferred into Account 1595 (2016). Input the amount approved for disposition in the OEB Approved Disposition column. Note that the DVA continuity schedule can currently start from 2015. If a utility has residual balance in an Account 1595 with a vintage year prior to 2015, include residual balances for years up to 2015 in the row for Account 1595 (2015 and pre-2015) and provide a separate schedule with amounts broken down by vintage year.
D32: 3 | E32: Review any balance variance between the DVA continuity schedule and the RRR in column BW. Provide an explanation, if necessary.
A34: 4 - Billing Determinant | B34: This tab shows the billing determinants that will be used to allocate account balances and calculate rate riders. | D34: 4 | E34: Confirm the accuracy of the RRR data used to populate the tab.
D36: 5 | E36: Review the disposition threshold calculation. Select whether disposition is being requested or not in the drop down box.
A38: 6 - Class A Data Consumption | B38: This tab is to be completed if there were any Class A customers at any point during the period the GA balance or CBR Class B accumulated. The data on this tab is used for the purposes of determining the GA rate rider, CBR Class B rate rider (if applicable), as well as customer specific GA and CBR charges for transition customers (if applicable). | D38: 6 | E38: This tab is generated when the utility selects yes to questions 5 or 6 in tab 1, indicating they had Class A customers during the period that the GA or CBR balance accumulated.
D40: 7 | E40: Under #2a, indicate whether the utility had any customers that transitioned between Class A and B during the period the Account 1589 GA balance accumulated. If yes, tab 6.1a will be generated.
E42: Under #2b, indicate whether the utility had any customers that transitioned between Class A and B during the period the Account 1580, sub-account CBR Class B balance accumulated. If yes, tab 6.2a will be generated.
D44: 8 | E44: Under #3a, enter the number of transition customers the utility had during the period the Account 1589 GA or Account 1580 CBR B balances accumulated. A table will be generated based on the number of customers. Complete the table accordingly for each transition customer identified (i.e. kWh/kW for half year periods, and the customer class during the half year). This data will automatically be used in the GA balance and CBR Class B balance allocation to transition customers in tabs 6.1a and 6.2a respectively. This data will also be used in the calculation of billing determinants for GA and CBR Class B balances, as applicable. Note that each transition customer identified in tab 6, table 3a will be assigned a customer number and the number will correspond to the same transition customer populated in tabs 6.1a and 6.2a. Also note that the transition customers identified for the GA may be different than those for CBR Class B. This would depend on the period in which the GA and CBR Class B balances accumulated.
D46: 9 | E46: Under #3b, enter the number of rate classes in which there were full year Class A customers during the period the Account 1589 GA balance or Account 1580 CBR Class B balance accumulated. A table will be generated based on the number of rate classes. Complete the table accordingly for each rate class identified (i.e. total Class A consumption in the rate class identified for each year). This data will be used in the calculation of billing determinants for GA and CBR Class B, as applicable.
A48: 6.1a - GA Allocation | B48: This tab allocates the GA balance to each transition customer for the period in which these customers were Class B customers and contributed to the GA balance (i.e. former Class B customers but are now Class A customers and former Class A customers who are now Class B customers). | D48: 10 | E48: This tab is generated when the utility indicates that they had transition customers in tab 6, #2a during the period the Account 1589 GA balance accumulated.
E50: In row 20, enter the Non-RPP consumption less WMP consumption.
E52: The rest of the information in this tab will be auto-populated and will calculate the customer specific allocation of the GA balance to transition customers in the bottom table. All transition customers who are allocated a specific GA amount are not to be charged the general Non-RPP Class B GA rate rider as calculated in tab 6.1.
A54: 6.1 - GA | B54: This tab calculates the GA rate rider to be applied to all non-RPP Class B customers (except for the transition customers allocated a customer specific balance in tab 6.1a). | D54: 11 | E54: Enter the proposed rate rider recovery period if different than the default 12 month period. The rest of the information in the tab is auto-populated and the GA rate riders are calculated accordingly based on whether there were any transition customers during the period that the GA balance accumulated.
A56: 6.2a - CBR_B Allocation | B56: This tab allocates the CBR Class B balance to each transition customer for the period in which these customers were Class B customers and contributed to the CBR Class B balance (i.e. former Class B customers but are now Class A customers and former Class A customers who are now Class B). | D56: 12 | E56: This tab is generated when the utility indicates that they had transition customers in tab 6, #2b during the period where the CBR Class B balance accumulated.
E58: In row 19, enter the total Class B consumption less WMP consumption.
E60: The rest of the information in this tab will be auto-populated and will calculate the customer specific allocation of the CBR Class B balance to transition customers in the bottom table. All transition customers who are allocated a specific CBR Class B amount are not to be charged the general CBR Class B rate rider.
A62: 6.2 - CBR | B62: This tab calculates the CBR Class B rate rider if there were Class A customers at any point during the period that the CBR Class B balance accumulated. | D62: 13 | E62: This tab is generated when the response to question 6 in tab 1 is "yes", indicating that they had Class A customers during the period that Account 1580, sub-account CBR Class B balance accumulated.
E64: No input is required in this tab. The information in the tab is auto-populated and the CBR Class B rate riders are calculated accordingly. If a rate rider is not produced, the entire Account 1580 CBR Class B balance, including the amount allocated to transition customers will be transferred to Account 1580 WMS, to be disposed through the general Group 1 DVA rate rider.
A66: 5 - Allocating Def-Var Balances | B66: This tab allocates the Group 1 balances, except GA and CBR Class B (if Class A customers exist). | D66: 14 | E66: Review the allocated balances to ensure the allocation is appropriate. Note that the final allocation for Account 1580, sub-account CBR Class B is calculated after the completion of tabs 6 to 6.2a.
A68: 7 - Calculation of Def-Var RR | B68: This tab calculates the Group 1 rate riders, except for GA and CBR Class B (if Class A customers exist) | D68: 15 | E68: Enter the proposed rate rider recovery period if different than the default 12 month period. The rest of the information in the tab is auto-populated and the rate riders are calculated accordingly .

Sheet 1. Information Sheet
U1: a
C2: FALSE
C3: FALSE
M12: Version | N12: 1
E14: Utility Name | F14: Centre Wellington Hydro Ltd.
E16: Service Territory
E18: Assigned EB Number | F18: EB-2021-0012
E20: Name of Contact and Title | F20: Heather Dowling
E22: Phone Number | F22: 519-843-2900 ext 229
E24: Email Address | F24: hdowling@cwhydro.ca
E26: We are applying for rates effective | F26: 2022-01-01
E28: Rate-Setting Method | F28: Price Cap IR
A30: 1. Select the last Cost of Service rebasing year. | F30: 2018
A31: To determine the first year the continuity schedules in tab 3 will be generated for input, answer the following questions: For all the the responses below, when selecting a year, select the year relating to the account balance. For example, if the 2019 balances that were reviewed in the 2021 rate application were to be selected, select 2019.
A32: 2. For Accounts 1588 and 1589, please indicate the year of the account balances that the accounts were last disposed on a final basis for information purposes. | F32: 2017
A34: Determine whether scenario a or b below applies, then select the appropriate year. a) If the account balances were last approved on a final basis, select the year of the year-end balances that were last approved for disposition on a final basis. | F34: 2017
A35: b) If the account balances were last approved on an interim basis, and
A36: i) there are no changes to the previously approved interim balances, select the year of the year-end balances that were last approved for diposition on an interim basis. ii) there are changes to the previously approved interim balances, select the year of the year-end balances that were last approved for disposition on a final basis.
A39: 3. For the remaining Group 1 DVAs, please indicate the year of the account balances that were last disposed on a final basis | F39: 2017
A41: Determine whether scenario a or b below applies, then select the appropriate year.
A42: a) If the account balances were last approved on a final basis, select the year of the year-end balances that the balance was were last approved on a final basis. | F42: 2017
A43: b) If the accounts were last approved on an interim basis, and
A44: i) there are no changes to the previously approved interim balances, select the year of the year-end balances that were last approved for diposition on an interim basis.
A45: ii) If there are changes to the previously approved interim balances, select the year of the year-end balances that were last approved for disposition on a final basis.
A47: 4. Select the earliest vintage year in which there is a balance in Account 1595. | F47: 2017
A48: (e.g. If 2016 is the earliest vintage year in which there is a balance in a 1595 sub-account, select 2016.)
A49: 5. Did you have any Class A customers at any point during the period that the Account 1589 balance accumulated (i.e. from the year the balance selected in #2 above to the year requested for disposition)? | F49: Yes
A51: 6. Did you have any Class A customers at any point during the period where the balance in Account 1580, Sub-account CBR Class B accumulated (i.e. from the year selected in #3 above to the year requested for disposition)? | F51: Yes
A53: ="7. Retail Transmission Service Rates: " & LDCNAME1 & " is:" -> 7. Retail Transmission Service Rates: Centre Wellington Hydro Ltd. is: | F53: Fully Embedded | I53: =IF(F53="Partially Embedded","Within","") ->  | S53: =IF(F53="Partially Embedded","Distribution System(s)","") -> 
J54: =IF(F53="Partially Embedded","(If necessary, enter all host-distributors' names in the above green shaded cell.)","") -> 
A55: 8. Have you transitioned to fully fixed rates? | F55: Yes
B63: Legend
C65: Pale green cells represent input cells.
C67: Pale blue cells represent drop-down lists. The applicant should select the appropriate item from the drop-down list.
C69: Red cells represent flags to identify either non-matching values or incorrect user selections.
C71: Pale grey cells represent auto-populated RRR data.
C73: White cells contain fixed values, automatically generated values or formulae.

Sheet Sheet1 (hidden)
A1: 1. Information Sheet
A2: Sheet1 | B2: X
A3: 2. Current Tariff Schedule | B3: X | C3: X
A4: 2016 List | B4: X
A5: Instructions for Tabs 3 to 7
A6: 3. Continuity Schedule | B6: X | C6: X
A7: 4. Billing Det. for Def-Var | B7: X | C7: X
A8: 5. Allocating Def-Var Balances | B8: X | C8: X
A9: 6. Class A Consumption Data | B9: X
A10: 6.1 GA | B10: X | C10: X
A11: 6.1a GA Allocation | B11: X
A12: 6.2 CBR B | B12: X
A13: 6.2a CBR B_Allocation | B13: X
A14: 7. Calculation of Def-Var RR | B14: X | C14: X
A15: 8. STS - Tax Change | B15: X | C15: X
A16: 9. Shared Tax - Rate Rider | B16: X | C16: X
A17: 10. RTSR Current Rates | B17: X | C17: X
A18: 11. RTSR - UTRs & Sub-Tx | B18: X | C18: X
A19: 12. RTSR - Historical Wholesale | B19: X | C19: X
A20: 13. RTSR - Current Wholesale | B20: X | C20: X
A21: 14. RTSR - Forecast Wholesale | B21: X | C21: X
A22: 15. RTSR Rates to Forecast | B22: X | C22: X
A23: 16. Rev2Cost_GDPIPI | B23: X | C23: X
A24: 17. Regulatory Charges | B24: X | C24: X
A25: 18. Additional Rates | B25: X | C25: X
A26: 19. Final Tariff Schedule | B26: X | C26: X
A27: 20. Bill Impacts | B27: X | C27: X
A28: 20. HIDDEN | B28: X
A29: 20. Bill Impacts hidden | B29: X
A30: 2.1.7 Filing | B30: X
A31: 2 1 5 TotalConsumptionData_Dist | B31: X
A32: 212_Total_Connection_RollUp | B32: X
A33: 2016 Database | B33: X
A34: lists | B34: X
A35: Sheet2 | B35: X

Sheet 2. Current Tariff Schedule
AZ1: FALSE
BC2: Below is your 2021 OEB-approved Tariff of Rates and Charges. Please review to ensure accuracy. OEB Staff may have made changes to the rate class description and/or rate description to ensure consistency across all LDCs.
B3: Macro has been activated
BC5: If you have identified any discrepancies between this sheet and your approved tariff of rates and charges, please contact the OEB.
BC7: Have you confirmed the accuracy of the tariff sheet below?
BC9: Yes
B12: Centre Wellington Hydro Ltd. | F12: X | G12: Centre Wellington Hydro Ltd._Start | H12: Centre Wellington Hydro Ltd. | J12: 8 | AA12: Centre Wellington Hydro Ltd.
B13: TARIFF OF RATES AND CHARGES | AA13: TARIFF OF RATES AND CHARGES
B14: Effective and Implementation Date January 1, 2021 | P14: 44197 | AA14: Effective and Implementation Date January 1, 2021
B15: This schedule supersedes and replaces all previously | AA15: This schedule supersedes and replaces all previously
B16: approved schedules of Rates, Charges and Loss Factors | AA16: approved schedules of Rates, Charges and Loss Factors
B17: EB-2020-0009 | H17: EB-2020-0009 | AA17: EB-2020-0009 | AS17: X
B18: RESIDENTIAL SERVICE CLASSIFICATION | H18: 1_RESIDENTIAL SERVICE CLASSIFICATION | AA18: RESIDENTIAL SERVICE CLASSIFICATION
B19: This classification is for single dwelling units with separate metering, detached, semi-detached, triplex, etc. Class B consumers are defined in accordance with O. Reg. 429/04. Further servicing details are available in the distributor's Conditions of Service. | H19: 1_RESIDENTIAL SERVICE CLASSIFICATION | AA19: This classification is for single dwelling units with separate metering, detached, semi-detached, triplex, etc. Class B consumers are defined in accordance with O. Reg. 429/04. Further servicing details are available in the distributor's Conditions of Service.
B21: APPLICATION | H21: 1_APPLICATION | AA21: APPLICATION
B23: The application of these rates and charges shall be in accordance with the Licence of the Distributor and any Code or Order of the Ontario Energy Board, and amendments thereto as approved by the Ontario Energy Board, which may be applicable to the administration of this schedule. | H23: 1_RESIDENTIAL SERVICE CLASSIFICATION | AA23: The application of these rates and charges shall be in accordance with the Licence of the Distributor and any Code or Order of the Ontario Energy Board, and amendments thereto as approved by the Ontario Energy Board, which may be applicable to the administration of this schedule.
B25: No rates and charges for the distribution of electricity and charges to meet the costs of any work or service done or furnished for the purpose of the distribution of electricity shall be made except as permitted by this schedule, unless required by the Distributor’s Licence or a Code or Order of the Ontario Energy Board, and amendments thereto as approved by the Ontario Energy Board, or as specified herein. | H25: 1_RESIDENTIAL SERVICE CLASSIFICATION | AA25: No rates and charges for the distribution of electricity and charges to meet the costs of any work or service done or furnished for the purpose of the distribution of electricity shall be made except as permitted by this schedule, unless required by the Distributor’s Licence or a Code or Order of the Ontario Energy Board, and amendments thereto as approved by the Ontario Energy Board, or as specified herein.
B27: Unless specifically noted, this schedule does not contain any charges for the electricity commodity, be it under the Regulated Price Plan, a contract with a retailer or the wholesale market price, as applicable. In addition, the charges in the MONTHLY RATES AND CHARGES - Regulatory Component of this schedule do not apply to a customer that is an embedded wholesale market participant. | H27: 1_RESIDENTIAL SERVICE CLASSIFICATION | AA27: Unless specifically noted, this schedule does not contain any charges for the electricity commodity, be it under the Regulated Price Plan, a contract with a retailer or the wholesale market price, as applicable. In addition, the charges in the MONTHLY RATES AND CHARGES - Regulatory Component of this schedule do not apply to a customer that is an embedded wholesale market participant.
B29: It should be noted that this schedule does not list any charges, assessments, or credits that are required by law to be invoiced by a distributor and that are not subject to Ontario Energy Board approval, such as Global Adjustment and the HST. | H29: 1_RESIDENTIAL SERVICE CLASSIFICATION | AA29: It should be noted that this schedule does not list any charges, assessments, or credits that are required by law to be invoiced by a distributor and that are not subject to Ontario Energy Board approval, such as Global Adjustment and the HST.
B31: MONTHLY RATES AND CHARGES - Delivery Component | H31: 1_MRC_Del | AA31: MONTHLY RATES AND CHARGES - Delivery Component
B33: Service Charge | D33: $ | E33: 30.32 | H33: 1_RESIDENTIAL SERVICE CLASSIFICATION | I33: A | M33: 1_RESIDENTIAL SERVICE CLASSIFICATION_MSC | Z33: Service Charge
B34: Smart Metering Entity Charge - effective until December 31, 2022 | D34: $ | E34: 0.57 | H34: 1_RESIDENTIAL SERVICE CLASSIFICATION | I34: B | M34: 1_RESIDENTIAL SERVICE CLASSIFICATION_SME | Q34: 44926 | Z34: Smart Metering Entity Charge - effective until December 31, 2022
B35: Rate Rider per 2018 Settlement Proposal (2018) - effective from January 1, 2021 until December 31, 2021 | D35: $ | E35: -0.64 | H35: 1_RESIDENTIAL SERVICE CLASSIFICATION | I35: A | M35: 1_RESIDENTIAL SERVICE CLASSIFICATION_FX_RR_136 | Q35: 44561 | R35: X | Z35: Rate Rider per 2018 Settlement Proposal (2018) - effective from January 1, 2021 until December 31, 2021
B36: Rate Rider per 2018 Settlement Proposal (2018) - effective from January 1, 2022 until the effective date of next Cost of Service or Custom IR Rate Order | D36: $ | E36: -0.33 | H36: 1_RESIDENTIAL SERVICE CLASSIFICATION | I36: A | M36: 1_RESIDENTIAL SERVICE CLASSIFICATION_FX_RR_137 | Z36: Rate Rider per 2018 Settlement Proposal (2018) - effective from January 1, 2022 until the effective date of next Cost of Service or Custom IR Rate Order
B37: Low Voltage Service Rate | D37: $/kWh | E37: 0.003 | H37: 1_RESIDENTIAL SERVICE CLASSIFICATION | I37: B | M37: 1_RESIDENTIAL SERVICE CLASSIFICATION_LV | Z37: Low Voltage Service Rate
B38: Rate Rider for Disposition of Lost Revenue Adjustment Mechanism Variance Account (LRAMVA) (2018) - effective until December 31, 2021 | D38: $/kWh | E38: 0.0001 | H38: 1_RESIDENTIAL SERVICE CLASSIFICATION | I38: A | M38: 1_RESIDENTIAL SERVICE CLASSIFICATION_LRAM | Q38: 44561 | R38: X | Z38: Rate Rider for Disposition of Lost Revenue Adjustment Mechanism Variance Account (LRAMVA) (2018) - effective until December 31, 2021
B39: Retail Transmission Rate - Network Service Rate | D39: $/kWh | E39: 0.0065 | H39: 1_RESIDENTIAL SERVICE CLASSIFICATION | I39: C | M39: 1_RESIDENTIAL SERVICE CLASSIFICATION_Retail Transmission Rate - Network Service Rate | Z39: Retail Transmission Rate - Network Service Rate
B40: Retail Transmission Rate - Line and Transformation Connection Service Rate | D40: $/kWh | E40: 0.0055 | H40: 1_RESIDENTIAL SERVICE CLASSIFICATION | I40: C | M40: 1_RESIDENTIAL SERVICE CLASSIFICATION_Retail Transmission Rate - Line and Transformation Connection Service Rate | Z40: Retail Transmission Rate - Line and Transformation Connection Service Rate
B42: MONTHLY RATES AND CHARGES - Regulatory Component | H42: 1_MRC_Reg | Z42: MONTHLY RATES AND CHARGES - Regulatory Component
B44: Wholesale Market Service Rate (WMS) - not including CBR | D44: $/kWh | E44: 0.003 | H44: 1_RESIDENTIAL SERVICE CLASSIFICATION | I44: T | M44: 1_RESIDENTIAL SERVICE CLASSIFICATION_WMSR | Z44: Wholesale Market Service Rate (WMS) - not including CBR
B45: Capacity Based Recovery (CBR) - Applicable for Class B Customers | D45: $/kWh | E45: 0.0004 | H45: 1_RESIDENTIAL SERVICE CLASSIFICATION | I45: T | M45: 1_RESIDENTIAL SERVICE CLASSIFICATION_WMSR | Z45: Capacity Based Recovery (CBR) - Applicable for Class B Customers
B46: Rural or Remote Electricity Rate Protection Charge (RRRP) | D46: $/kWh | E46: 0.0005 | H46: 1_RESIDENTIAL SERVICE CLASSIFICATION | I46: T | M46: 1_RESIDENTIAL SERVICE CLASSIFICATION_RRRP | Z46: Rural or Remote Electricity Rate Protection Charge (RRRP)
B47: Standard Supply Service - Administrative Charge (if applicable) | D47: $ | E47: 0.25 | H47: 1_RESIDENTIAL SERVICE CLASSIFICATION | I47: T | M47: 1_RESIDENTIAL SERVICE CLASSIFICATION_SSS | Z47: Standard Supply Service - Administrative Charge (if applicable) | AS47: X
B48: GENERAL SERVICE LESS THAN 50 KW SERVICE CLASSIFICATION | H48: 2_GENERAL SERVICE LESS THAN 50 KW SERVICE CLASSIFICATION | AA48: GENERAL SERVICE LESS THAN 50 KW SERVICE CLASSIFICATION
B49: This classification applies to a non-residential account taking electricity at 750 volts or less whose average monthly maximum demand is less than, or is forecasted to be less than, 50kW. Class B consumers are defined in accordance with O. Reg. 429/04. Further servicing details are available in the distributor's Conditions of Service. | H49: 2_GENERAL SERVICE LESS THAN 50 KW SERVICE CLASSIFICATION | AA49: This classification applies to a non-residential account taking electricity at 750 volts or less whose average monthly maximum demand is less than, or is forecasted to be less than, 50kW. Class B consumers are defined in accordance with O. Reg. 429/04. Further servicing details are available in the distributor's Conditions of Service.
B51: APPLICATION | H51: 2_APPLICATION | AA51: APPLICATION
B53: The application of these rates and charges shall be in accordance with the Licence of the Distributor and any Code or Order of the Ontario Energy Board, and amendments thereto as approved by the Ontario Energy Board, which may be applicable to the administration of this schedule. | H53: 2_GENERAL SERVICE LESS THAN 50 KW SERVICE CLASSIFICATION | AA53: The application of these rates and charges shall be in accordance with the Licence of the Distributor and any Code or Order of the Ontario Energy Board, and amendments thereto as approved by the Ontario Energy Board, which may be applicable to the administration of this schedule.
B55: No rates and charges for the distribution of electricity and charges to meet the costs of any work or service done or furnished for the purpose of the distribution of electricity shall be made except as permitted by this schedule, unless required by the Distributor’s Licence or a Code or Order of the Ontario Energy Board, and amendments thereto as approved by the Ontario Energy Board, or as specified herein. | H55: 2_GENERAL SERVICE LESS THAN 50 KW SERVICE CLASSIFICATION | AA55: No rates and charges for the distribution of electricity and charges to meet the costs of any work or service done or furnished for the purpose of the distribution of electricity shall be made except as permitted by this schedule, unless required by the Distributor’s Licence or a Code or Order of the Ontario Energy Board, and amendments thereto as approved by the Ontario Energy Board, or as specified herein.
B57: Unless specifically noted, this schedule does not contain any charges for the electricity commodity, be it under the Regulated Price Plan, a contract with a retailer or the wholesale market price, as applicable. In addition, the charges in the MONTHLY RATES AND CHARGES - Regulatory Component of this schedule do not apply to a customer that is an embedded wholesale market participant. | H57: 2_GENERAL SERVICE LESS THAN 50 KW SERVICE CLASSIFICATION | AA57: Unless specifically noted, this schedule does not contain any charges for the electricity commodity, be it under the Regulated Price Plan, a contract with a retailer or the wholesale market price, as applicable. In addition, the charges in the MONTHLY RATES AND CHARGES - Regulatory Component of this schedule do not apply to a customer that is an embedded wholesale market participant.
B59: It should be noted that this schedule does not list any charges, assessments, or credits that are required by law to be invoiced by a distributor and that are not subject to Ontario Energy Board approval, such as the Global Adjustment and the HST. | H59: 2_GENERAL SERVICE LESS THAN 50 KW SERVICE CLASSIFICATION | AA59: It should be noted that this schedule does not list any charges, assessments, or credits that are required by law to be invoiced by a distributor and that are not subject to Ontario Energy Board approval, such as the Global Adjustment and the HST.
B61: MONTHLY RATES AND CHARGES - Delivery Component | H61: 2_MRC_Del | AA61: MONTHLY RATES AND CHARGES - Delivery Component
B63: Service Charge | D63: $ | E63: 21.87 | H63: 2_GENERAL SERVICE LESS THAN 50 KW SERVICE CLASSIFICATION | I63: A | M63: 2_GENERAL SERVICE LESS THAN 50 KW SERVICE CLASSIFICATION_MSC | Z63: Service Charge
B64: Smart Metering Entity Charge - effective until December 31, 2022 | D64: $ | E64: 0.57 | H64: 2_GENERAL SERVICE LESS THAN 50 KW SERVICE CLASSIFICATION | I64: B | M64: 2_GENERAL SERVICE LESS THAN 50 KW SERVICE CLASSIFICATION_SME | Q64: 44926 | Z64: Smart Metering Entity Charge - effective until December 31, 2022
B65: Distribution Volumetric Rate | D65: $/kWh | E65: 0.0228 | H65: 2_GENERAL SERVICE LESS THAN 50 KW SERVICE CLASSIFICATION | I65: A | M65: 2_GENERAL SERVICE LESS THAN 50 KW SERVICE CLASSIFICATION_DVC | Z65: Distribution Volumetric Rate
B66: Low Voltage Service Rate | D66: $/kWh | E66: 0.0027 | H66: 2_GENERAL SERVICE LESS THAN 50 KW SERVICE CLASSIFICATION | I66: B | M66: 2_GENERAL SERVICE LESS THAN 50 KW SERVICE CLASSIFICATION_LV | Z66: Low Voltage Service Rate
B67: Rate Rider for Disposition of Lost Revenue Adjustment Mechanism Variance Account (LRAMVA) (2018) - effective until December 31, 2021 | D67: $/kWh | E67: 0.001 | H67: 2_GENERAL SERVICE LESS THAN 50 KW SERVICE CLASSIFICATION | I67: A | M67: 2_GENERAL SERVICE LESS THAN 50 KW SERVICE CLASSIFICATION_LRAM | Q67: 44561 | R67: X | Z67: Rate Rider for Disposition of Lost Revenue Adjustment Mechanism Variance Account (LRAMVA) (2018) - effective until December 31, 2021
B68: Rate Rider per 2018 Settlement Proposal (2018) - effective from January 1, 2021 until December 31, 2021 | D68: $/kWh | E68: -0.0007 | H68: 2_GENERAL SERVICE LESS THAN 50 KW SERVICE CLASSIFICATION | I68: A | M68: 2_GENERAL SERVICE LESS THAN 50 KW SERVICE CLASSIFICATION_VR_RR_565 | Q68: 44561 | R68: X | Z68: Rate Rider per 2018 Settlement Proposal (2018) - effective from January 1, 2021 until December 31, 2021
B69: Rate Rider per 2018 Settlement Proposal (2018) - effective from January 1, 2022 until the effective date of next Cost of Service or Custom IR Rate Order | D69: $/kWh | E69: -0.0004 | H69: 2_GENERAL SERVICE LESS THAN 50 KW SERVICE CLASSIFICATION | I69: A | M69: 2_GENERAL SERVICE LESS THAN 50 KW SERVICE CLASSIFICATION_VR_RR_566 | Z69: Rate Rider per 2018 Settlement Proposal (2018) - effective from January 1, 2022 until the effective date of next Cost of Service or Custom IR Rate Order
B70: Retail Transmission Rate - Network Service Rate | D70: $/kWh | E70: 0.006 | H70: 2_GENERAL SERVICE LESS THAN 50 KW SERVICE CLASSIFICATION | I70: C | M70: 2_GENERAL SERVICE LESS THAN 50 KW SERVICE CLASSIFICATION_Retail Transmission Rate - Network Service Rate | Z70: Retail Transmission Rate - Network Service Rate
B71: Retail Transmission Rate - Line and Transformation Connection Service Rate | D71: $/kWh | E71: 0.005 | H71: 2_GENERAL SERVICE LESS THAN 50 KW SERVICE CLASSIFICATION | I71: C | M71: 2_GENERAL SERVICE LESS THAN 50 KW SERVICE CLASSIFICATION_Retail Transmission Rate - Line and Transformation Connection Service Rate | Z71: Retail Transmission Rate - Line and Transformation Connection Service Rate
B73: MONTHLY RATES AND CHARGES - Regulatory Component | H73: 2_MRC_Reg | Z73: MONTHLY RATES AND CHARGES - Regulatory Component
B75: Wholesale Market Service Rate (WMS) - not including CBR | D75: $/kWh | E75: 0.003 | H75: 2_GENERAL SERVICE LESS THAN 50 KW SERVICE CLASSIFICATION | I75: T | M75: 2_GENERAL SERVICE LESS THAN 50 KW SERVICE CLASSIFICATION_WMSR | Z75: Wholesale Market Service Rate (WMS) - not including CBR
B76: Capacity Based Recovery (CBR) - Applicable for Class B Customers | D76: $/kWh | E76: 0.0004 | H76: 2_GENERAL SERVICE LESS THAN 50 KW SERVICE CLASSIFICATION | I76: T | M76: 2_GENERAL SERVICE LESS THAN 50 KW SERVICE CLASSIFICATION_WMSR | Z76: Capacity Based Recovery (CBR) - Applicable for Class B Customers
B77: Rural or Remote Electricity Rate Protection Charge (RRRP) | D77: $/kWh | E77: 0.0005 | H77: 2_GENERAL SERVICE LESS THAN 50 KW SERVICE CLASSIFICATION | I77: T | M77: 2_GENERAL SERVICE LESS THAN 50 KW SERVICE CLASSIFICATION_RRRP | Z77: Rural or Remote Electricity Rate Protection Charge (RRRP)
B78: Standard Supply Service - Administrative Charge (if applicable) | D78: $ | E78: 0.25 | H78: 2_GENERAL SERVICE LESS THAN 50 KW SERVICE CLASSIFICATION | I78: T | M78: 2_GENERAL SERVICE LESS THAN 50 KW SERVICE CLASSIFICATION_SSS | Z78: Standard Supply Service - Administrative Charge (if applicable) | AS78: X
B79: GENERAL SERVICE 50 TO 2,999 KW SERVICE CLASSIFICATION | H79: 3_GENERAL SERVICE 50 TO 2,999 KW SERVICE CLASSIFICATION | AA79: GENERAL SERVICE 50 TO 2,999 KW SERVICE CLASSIFICATION
B80: This classification applies to a non-residential account whose average monthly maximum demand used for billing purposes is equal to or greater than, or is forecasted to be equal to or greater than, 50 kW but less than 3,000 kW. Class A and Class B consumers are defined in accordance with O. Reg. 429/04. Further servicing details are available in the distributor's Conditions of Service. | H80: 3_GENERAL SERVICE 50 TO 2,999 KW SERVICE CLASSIFICATION | AA80: This classification applies to a non-residential account whose average monthly maximum demand used for billing purposes is equal to or greater than, or is forecasted to be equal to or greater than, 50 kW but less than 3,000 kW. Class A and Class B consumers are defined in accordance with O. Reg. 429/04. Further servicing details are available in the distributor's Conditions of Service.
B82: APPLICATION | H82: 3_APPLICATION | AA82: APPLICATION
B84: The application of these rates and charges shall be in accordance with the Licence of the Distributor and any Code or Order of the Ontario Energy Board, and amendments thereto as approved by the Ontario Energy Board, which may be applicable to the administration of this schedule. | H84: 3_GENERAL SERVICE 50 TO 2,999 KW SERVICE CLASSIFICATION | AA84: The application of these rates and charges shall be in accordance with the Licence of the Distributor and any Code or Order of the Ontario Energy Board, and amendments thereto as approved by the Ontario Energy Board, which may be applicable to the administration of this schedule.
B86: No rates and charges for the distribution of electricity and charges to meet the costs of any work or service done or furnished for the purpose of the distribution of electricity shall be made except as permitted by this schedule, unless required by the Distributor’s Licence or a Code or Order of the Ontario Energy Board, and amendments thereto as approved by the Ontario Energy Board, or as specified herein. | H86: 3_GENERAL SERVICE 50 TO 2,999 KW SERVICE CLASSIFICATION | AA86: No rates and charges for the distribution of electricity and charges to meet the costs of any work or service done or furnished for the purpose of the distribution of electricity shall be made except as permitted by this schedule, unless required by the Distributor’s Licence or a Code or Order of the Ontario Energy Board, and amendments thereto as approved by the Ontario Energy Board, or as specified herein.
B88: Unless specifically noted, this schedule does not contain any charges for the electricity commodity, be it under the Regulated Price Plan, a contract with a retailer or the wholesale market price, as applicable. In addition, the charges in the MONTHLY RATES AND CHARGES - Regulatory Component of this schedule do not apply to a customer that is an embedded wholesale market participant. | H88: 3_GENERAL SERVICE 50 TO 2,999 KW SERVICE CLASSIFICATION | AA88: Unless specifically noted, this schedule does not contain any charges for the electricity commodity, be it under the Regulated Price Plan, a contract with a retailer or the wholesale market price, as applicable. In addition, the charges in the MONTHLY RATES AND CHARGES - Regulatory Component of this schedule do not apply to a customer that is an embedded wholesale market participant.
B90: If included in the following listing of monthly rates and charges, the rate rider for the disposition of WMS - Sub-account CBR Class B is not applicable to wholesale market participants (WMP), customers that transitioned between Class A and Class B during the variance account accumulation period, or to customers that were in Class A for the entire period. Customers who transitioned are to be charged or refunded their share of the variance disposed through customer specific billing adjustments. This rate rider is to be consistently applied for the entire period to the sunset date of the rate rider. In addition, this rate rider is applicable to all new Class B customers. | H90: 3_GENERAL SERVICE 50 TO 2,999 KW SERVICE CLASSIFICATION | AA90: If included in the following listing of monthly rates and charges, the rate rider for the disposition of WMS - Sub-account CBR Class B is not applicable to wholesale market participants (WMP), customers that transitioned between Class A and Class B during the variance account accumulation period, or to customers that were in Class A for the entire period. Customers who transitioned are to be charged or refunded their share of the variance disposed through customer specific billing adjustments. This rate rider is to be consistently applied for the entire period to the sunset date of the rate rider. In addition, this rate rider is applicable to all new Class B customers.
B92: If included in the following listing of monthly rates and charges, the rate rider for the disposition of Global Adjustment is only applicable to non-RPP Class B customers. It is not applicable to WMP, customers that transitioned between Class A and Class B during the variance account accumulation period, or to customers that were in Class A for the entire period. Customers who transitioned are to be charged or refunded their share of the variance disposed through customer specific billing adjustments. This rate rider is to be consistently applied for the entire period to the sunset date of the rate rider. In addition, this rate rider is applicable to all new non-RPP Class B customers. | H92: 3_GENERAL SERVICE 50 TO 2,999 KW SERVICE CLASSIFICATION | AA92: If included in the following listing of monthly rates and charges, the rate rider for the disposition of Global Adjustment is only applicable to non-RPP Class B customers. It is not applicable to WMP, customers that transitioned between Class A and Class B during the variance account accumulation period, or to customers that were in Class A for the entire period. Customers who transitioned are to be charged or refunded their share of the variance disposed through customer specific billing adjustments. This rate rider is to be consistently applied for the entire period to the sunset date of the rate rider. In addition, this rate rider is applicable to all new non-RPP Class B customers.
B94: It should be noted that this schedule does not list any charges, assessments, or credits that are required by law to be invoiced by a distributor and that are not subject to Ontario Energy Board approval, such as the Global Adjustment and the HST. | H94: 3_GENERAL SERVICE 50 TO 2,999 KW SERVICE CLASSIFICATION | AA94: It should be noted that this schedule does not list any charges, assessments, or credits that are required by law to be invoiced by a distributor and that are not subject to Ontario Energy Board approval, such as the Global Adjustment and the HST.
B96: MONTHLY RATES AND CHARGES - Delivery Component | H96: 3_MRC_Del | AA96: MONTHLY RATES AND CHARGES - Delivery Component
B98: Service Charge | D98: $ | E98: 178.49 | H98: 3_GENERAL SERVICE 50 TO 2,999 KW SERVICE CLASSIFICATION | I98: A | M98: 3_GENERAL SERVICE 50 TO 2,999 KW SERVICE CLASSIFICATION_MSC | Z98: Service Charge
B99: Distribution Volumetric Rate | D99: $/kW | E99: 4.3961 | H99: 3_GENERAL SERVICE 50 TO 2,999 KW SERVICE CLASSIFICATION | I99: A | M99: 3_GENERAL SERVICE 50 TO 2,999 KW SERVICE CLASSIFICATION_DVC | Z99: Distribution Volumetric Rate
B100: Low Voltage Service Rate | D100: $/kW | E100: 0.9987 | H100: 3_GENERAL SERVICE 50 TO 2,999 KW SERVICE CLASSIFICATION | I100: B | M100: 3_GENERAL SERVICE 50 TO 2,999 KW SERVICE CLASSIFICATION_LV | Z100: Low Voltage Service Rate
B101: Rate Rider for Disposition of Lost Revenue Adjustment Mechanism Variance Account (LRAMVA) (2018) - effective until December 31, 2021 | D101: $/kW | E101: 0.0112 | H101: 3_GENERAL SERVICE 50 TO 2,999 KW SERVICE CLASSIFICATION | I101: A | M101: 3_GENERAL SERVICE 50 TO 2,999 KW SERVICE CLASSIFICATION_LRAM | Q101: 44561 | R101: X | Z101: Rate Rider for Disposition of Lost Revenue Adjustment Mechanism Variance Account (LRAMVA) (2018) - effective until December 31, 2021
B102: Rate Rider per 2018 Settlement Proposal (2018) - effective from January 1, 2021 until December 31, 2021 | D102: $/kW | E102: -0.0999 | H102: 3_GENERAL SERVICE 50 TO 2,999 KW SERVICE CLASSIFICATION | I102: A | M102: 3_GENERAL SERVICE 50 TO 2,999 KW SERVICE CLASSIFICATION_VR_RR_568 | Q102: 44561 | R102: X | Z102: Rate Rider per 2018 Settlement Proposal (2018) - effective from January 1, 2021 until December 31, 2021
B103: Rate Rider per 2018 Settlement Proposal (2018) - effective from January 1, 2022 until the effective date of next Cost of Service or Custom IR Rate Order | D103: $/kW | E103: -0.0519 | H103: 3_GENERAL SERVICE 50 TO 2,999 KW SERVICE CLASSIFICATION | I103: A | M103: 3_GENERAL SERVICE 50 TO 2,999 KW SERVICE CLASSIFICATION_VR_RR_569 | Z103: Rate Rider per 2018 Settlement Proposal (2018) - effective from January 1, 2022 until the effective date of next Cost of Service or Custom IR Rate Order
B104: Retail Transmission Rate - Network Service Rate | D104: $/kW | E104: 2.3964 | H104: 3_GENERAL SERVICE 50 TO 2,999 KW SERVICE CLASSIFICATION | I104: C | M104: 3_GENERAL SERVICE 50 TO 2,999 KW SERVICE CLASSIFICATION_Retail Transmission Rate - Network Service Rate | Z104: Retail Transmission Rate - Network Service Rate
B105: Retail Transmission Rate - Line and Transformation Connection Service Rate | D105: $/kW | E105: 1.9529 | H105: 3_GENERAL SERVICE 50 TO 2,999 KW SERVICE CLASSIFICATION | I105: C | M105: 3_GENERAL SERVICE 50 TO 2,999 KW SERVICE CLASSIFICATION_Retail Transmission Rate - Line and Transformation Connection Service Rate | Z105: Retail Transmission Rate - Line and Transformation Connection Service Rate
B107: MONTHLY RATES AND CHARGES - Regulatory Component | H107: 3_MRC_Reg | Z107: MONTHLY RATES AND CHARGES - Regulatory Component
B109: Wholesale Market Service Rate (WMS) - not including CBR | D109: $/kWh | E109: 0.003 | H109: 3_GENERAL SERVICE 50 TO 2,999 KW SERVICE CLASSIFICATION | I109: T | M109: 3_GENERAL SERVICE 50 TO 2,999 KW SERVICE CLASSIFICATION_WMSR | Z109: Wholesale Market Service Rate (WMS) - not including CBR
B110: Capacity Based Recovery (CBR) - Applicable for Class B Customers | D110: $/kWh | E110: 0.0004 | H110: 3_GENERAL SERVICE 50 TO 2,999 KW SERVICE CLASSIFICATION | I110: T | M110: 3_GENERAL SERVICE 50 TO 2,999 KW SERVICE CLASSIFICATION_WMSR | Z110: Capacity Based Recovery (CBR) - Applicable for Class B Customers
B111: Rural or Remote Electricity Rate Protection Charge (RRRP) | D111: $/kWh | E111: 0.0005 | H111: 3_GENERAL SERVICE 50 TO 2,999 KW SERVICE CLASSIFICATION | I111: T | M111: 3_GENERAL SERVICE 50 TO 2,999 KW SERVICE CLASSIFICATION_RRRP | Z111: Rural or Remote Electricity Rate Protection Charge (RRRP)
B112: Standard Supply Service - Administrative Charge (if applicable) | D112: $ | E112: 0.25 | H112: 3_GENERAL SERVICE 50 TO 2,999 KW SERVICE CLASSIFICATION | I112: T | M112: 3_GENERAL SERVICE 50 TO 2,999 KW SERVICE CLASSIFICATION_SSS | Z112: Standard Supply Service - Administrative Charge (if applicable) | AS112: X
B113: GENERAL SERVICE 3,000 TO 4,999 KW SERVICE CLASSIFICATION | H113: 4_GENERAL SERVICE 3,000 TO 4,999 KW SERVICE CLASSIFICATION | AA113: GENERAL SERVICE 3,000 TO 4,999 KW SERVICE CLASSIFICATION
B114: This classification applies to a non-residential account whose average monthly maximum demand used for billing is equal to or greater than, or is forecasted to be equal to or greater than, 3,000 kW but less than 5,000 kW. Class A and Class B consumers are defined in accordance with O. Reg. 429/04. Further servicing details are available in the distributor's Conditions of Service. | H114: 4_GENERAL SERVICE 3,000 TO 4,999 KW SERVICE CLASSIFICATION | AA114: This classification applies to a non-residential account whose average monthly maximum demand used for billing is equal to or greater than, or is forecasted to be equal to or greater than, 3,000 kW but less than 5,000 kW. Class A and Class B consumers are defined in accordance with O. Reg. 429/04. Further servicing details are available in the distributor's Conditions of Service.
B116: APPLICATION | H116: 4_APPLICATION | AA116: APPLICATION
B118: The application of these rates and charges shall be in accordance with the Licence of the Distributor and any Code or Order of the Ontario Energy Board, and amendments thereto as approved by the Ontario Energy Board, which may be applicable to the administration of this schedule. | H118: 4_GENERAL SERVICE 3,000 TO 4,999 KW SERVICE CLASSIFICATION | AA118: The application of these rates and charges shall be in accordance with the Licence of the Distributor and any Code or Order of the Ontario Energy Board, and amendments thereto as approved by the Ontario Energy Board, which may be applicable to the administration of this schedule.
B120: No rates and charges for the distribution of electricity and charges to meet the costs of any work or service done or furnished for the purpose of the distribution of electricity shall be made except as permitted by this schedule, unless required by the Distributor’s Licence or a Code or Order of the Ontario Energy Board, and amendments thereto as approved by the Ontario Energy Board, or as specified herein. | H120: 4_GENERAL SERVICE 3,000 TO 4,999 KW SERVICE CLASSIFICATION | AA120: No rates and charges for the distribution of electricity and charges to meet the costs of any work or service done or furnished for the purpose of the distribution of electricity shall be made except as permitted by this schedule, unless required by the Distributor’s Licence or a Code or Order of the Ontario Energy Board, and amendments thereto as approved by the Ontario Energy Board, or as specified herein.
B122: Unless specifically noted, this schedule does not contain any charges for the electricity commodity, be it under the Regulated Price Plan, a contract with a retailer or the wholesale market price, as applicable. In addition, the charges in the MONTHLY RATES AND CHARGES - Regulatory Component of this schedule do not apply to a customer that is an embedded wholesale market participant. | H122: 4_GENERAL SERVICE 3,000 TO 4,999 KW SERVICE CLASSIFICATION | AA122: Unless specifically noted, this schedule does not contain any charges for the electricity commodity, be it under the Regulated Price Plan, a contract with a retailer or the wholesale market price, as applicable. In addition, the charges in the MONTHLY RATES AND CHARGES - Regulatory Component of this schedule do not apply to a customer that is an embedded wholesale market participant.
B124: If included in the following listing of monthly rates and charges, the rate rider for the disposition of WMS - Sub-account CBR Class B is not applicable to wholesale market participants (WMP), customers that transitioned between Class A and Class B during the variance account accumulation period, or to customers that were in Class A for the entire period. Customers who transitioned are to be charged or refunded their share of the variance disposed through customer specific billing adjustments. This rate rider is to be consistently applied for the entire period to the sunset date of the rate rider. In addition, this rate rider is applicable to all new Class B customers. | H124: 4_GENERAL SERVICE 3,000 TO 4,999 KW SERVICE CLASSIFICATION | AA124: If included in the following listing of monthly rates and charges, the rate rider for the disposition of WMS - Sub-account CBR Class B is not applicable to wholesale market participants (WMP), customers that transitioned between Class A and Class B during the variance account accumulation period, or to customers that were in Class A for the entire period. Customers who transitioned are to be charged or refunded their share of the variance disposed through customer specific billing adjustments. This rate rider is to be consistently applied for the entire period to the sunset date of the rate rider. In addition, this rate rider is applicable to all new Class B customers.
B126: If included in the following listing of monthly rates and charges, the rate rider for the disposition of Global Adjustment is only applicable to non-RPP Class B customers. It is not applicable to WMP, customers that transitioned between Class A and Class B during the variance account accumulation period, or to customers that were in Class A for the entire period. Customers who transitioned are to be charged or refunded their share of the variance disposed through customer specific billing adjustments. This rate rider is to be consistently applied for the entire period to the sunset date of the rate rider. In addition, this rate rider is applicable to all new non-RPP Class B customers. | H126: 4_GENERAL SERVICE 3,000 TO 4,999 KW SERVICE CLASSIFICATION | AA126: If included in the following listing of monthly rates and charges, the rate rider for the disposition of Global Adjustment is only applicable to non-RPP Class B customers. It is not applicable to WMP, customers that transitioned between Class A and Class B during the variance account accumulation period, or to customers that were in Class A for the entire period. Customers who transitioned are to be charged or refunded their share of the variance disposed through customer specific billing adjustments. This rate rider is to be consistently applied for the entire period to the sunset date of the rate rider. In addition, this rate rider is applicable to all new non-RPP Class B customers.
B128: It should be noted that this schedule does not list any charges, assessments, or credits that are required by law to be invoiced by a distributor and that are not subject to Ontario Energy Board approval, such as the Global Adjustment and the HST. | H128: 4_GENERAL SERVICE 3,000 TO 4,999 KW SERVICE CLASSIFICATION | AA128: It should be noted that this schedule does not list any charges, assessments, or credits that are required by law to be invoiced by a distributor and that are not subject to Ontario Energy Board approval, such as the Global Adjustment and the HST.
B130: MONTHLY RATES AND CHARGES - Delivery Component | H130: 4_MRC_Del | AA130: MONTHLY RATES AND CHARGES - Delivery Component
B132: Service Charge | D132: $ | E132: 719.3 | H132: 4_GENERAL SERVICE 3,000 TO 4,999 KW SERVICE CLASSIFICATION | I132: A | M132: 4_GENERAL SERVICE 3,000 TO 4,999 KW SERVICE CLASSIFICATION_MSC | Z132: Service Charge
B133: Distribution Volumetric Rate | D133: $/kW | E133: 3.3325 | H133: 4_GENERAL SERVICE 3,000 TO 4,999 KW SERVICE CLASSIFICATION | I133: A | M133: 4_GENERAL SERVICE 3,000 TO 4,999 KW SERVICE CLASSIFICATION_DVC | Z133: Distribution Volumetric Rate
B134: Low Voltage Service Rate | D134: $/kW | E134: 1.1778 | H134: 4_GENERAL SERVICE 3,000 TO 4,999 KW SERVICE CLASSIFICATION | I134: B | M134: 4_GENERAL SERVICE 3,000 TO 4,999 KW SERVICE CLASSIFICATION_LV | Z134: Low Voltage Service Rate
B135: Rate Rider for Disposition of Lost Revenue Adjustment Mechanism Variance Account (LRAMVA) (2018) - effective until December 31, 2021 | D135: $/kW | E135: -0.0195 | H135: 4_GENERAL SERVICE 3,000 TO 4,999 KW SERVICE CLASSIFICATION | I135: A | M135: 4_GENERAL SERVICE 3,000 TO 4,999 KW SERVICE CLASSIFICATION_LRAM | Q135: 44561 | R135: X | Z135: Rate Rider for Disposition of Lost Revenue Adjustment Mechanism Variance Account (LRAMVA) (2018) - effective until December 31, 2021
B136: Rate Rider per 2018 Settlement Proposal (2018) - effective from January 1, 2021 until December 31, 2021 | D136: $/kW | E136: -0.0636 | H136: 4_GENERAL SERVICE 3,000 TO 4,999 KW SERVICE CLASSIFICATION | I136: A | M136: 4_GENERAL SERVICE 3,000 TO 4,999 KW SERVICE CLASSIFICATION_VR_RR_571 | Q136: 44561 | R136: X | Z136: Rate Rider per 2018 Settlement Proposal (2018) - effective from January 1, 2021 until December 31, 2021
B137: Rate Rider per 2018 Settlement Proposal (2018) - effective from January 1, 2022 until the effective date of next Cost of Service or Custom IR Rate Order | D137: $/kW | E137: -0.033 | H137: 4_GENERAL SERVICE 3,000 TO 4,999 KW SERVICE CLASSIFICATION | I137: A | M137: 4_GENERAL SERVICE 3,000 TO 4,999 KW SERVICE CLASSIFICATION_VR_RR_572 | Z137: Rate Rider per 2018 Settlement Proposal (2018) - effective from January 1, 2022 until the effective date of next Cost of Service or Custom IR Rate Order
B138: Retail Transmission Rate - Network Service Rate | D138: $/kW | E138: 2.6801 | H138: 4_GENERAL SERVICE 3,000 TO 4,999 KW SERVICE CLASSIFICATION | I138: C | M138: 4_GENERAL SERVICE 3,000 TO 4,999 KW SERVICE CLASSIFICATION_Retail Transmission Rate - Network Service Rate | Z138: Retail Transmission Rate - Network Service Rate
B139: Retail Transmission Rate - Line and Transformation Connection Service Rate | D139: $/kW | E139: 2.3031 | H139: 4_GENERAL SERVICE 3,000 TO 4,999 KW SERVICE CLASSIFICATION | I139: C | M139: 4_GENERAL SERVICE 3,000 TO 4,999 KW SERVICE CLASSIFICATION_Retail Transmission Rate - Line and Transformation Connection Service Rate | Z139: Retail Transmission Rate - Line and Transformation Connection Service Rate
B141: MONTHLY RATES AND CHARGES - Regulatory Component | H141: 4_MRC_Reg | Z141: MONTHLY RATES AND CHARGES - Regulatory Component
B143: Wholesale Market Service Rate (WMS) - not including CBR | D143: $/kWh | E143: 0.003 | H143: 4_GENERAL SERVICE 3,000 TO 4,999 KW SERVICE CLASSIFICATION | I143: T | M143: 4_GENERAL SERVICE 3,000 TO 4,999 KW SERVICE CLASSIFICATION_WMSR | Z143: Wholesale Market Service Rate (WMS) - not including CBR
B144: Capacity Based Recovery (CBR) - Applicable for Class B Customers | D144: $/kWh | E144: 0.0004 | H144: 4_GENERAL SERVICE 3,000 TO 4,999 KW SERVICE CLASSIFICATION | I144: T | M144: 4_GENERAL SERVICE 3,000 TO 4,999 KW SERVICE CLASSIFICATION_WMSR | Z144: Capacity Based Recovery (CBR) - Applicable for Class B Customers
B145: Rural or Remote Electricity Rate Protection Charge (RRRP) | D145: $/kWh | E145: 0.0005 | H145: 4_GENERAL SERVICE 3,000 TO 4,999 KW SERVICE CLASSIFICATION | I145: T | M145: 4_GENERAL SERVICE 3,000 TO 4,999 KW SERVICE CLASSIFICATION_RRRP | Z145: Rural or Remote Electricity Rate Protection Charge (RRRP)
B146: Standard Supply Service - Administrative Charge (if applicable) | D146: $ | E146: 0.25 | H146: 4_GENERAL SERVICE 3,000 TO 4,999 KW SERVICE CLASSIFICATION | I146: T | M146: 4_GENERAL SERVICE 3,000 TO 4,999 KW SERVICE CLASSIFICATION_SSS | Z146: Standard Supply Service - Administrative Charge (if applicable) | AS146: X
B147: UNMETERED SCATTERED LOAD SERVICE CLASSIFICATION | H147: 5_UNMETERED SCATTERED LOAD SERVICE CLASSIFICATION | AA147: UNMETERED SCATTERED LOAD SERVICE CLASSIFICATION
B148: This classification applies to a non-residential account taking electricity at 750 volts or less whose average monthly maximum demand is less than, or is forecasted to be less than, 50kW and the consumption is unmetered. Such connections include cable TV power packs, bus shelters, telephone booths, traffic lights, railway crossings, etc.. The level of the consumption will be agreed to by the distributor and the customer, based on detailed manufacturer information/documentation with regard to electrical consumption of the unmetered load or periodic monitoring of actual consumption. Class B consumers are defined in accordance with O. Reg. 429/04. Further servicing details are available in the distributor's Conditions of Service. | H148: 5_UNMETERED SCATTERED LOAD SERVICE CLASSIFICATION | AA148: This classification applies to a non-residential account taking electricity at 750 volts or less whose average monthly maximum demand is less than, or is forecasted to be less than, 50kW and the consumption is unmetered. Such connections include cable TV power packs, bus shelters, telephone booths, traffic lights, railway crossings, etc.. The level of the consumption will be agreed to by the distributor and the customer, based on detailed manufacturer information/documentation with regard to electrical consumption of the unmetered load or periodic monitoring of actual consumption. Class B consumers are defined in accordance with O. Reg. 429/04. Further servicing details are available in the distributor's Conditions of Service.
B150: APPLICATION | H150: 5_APPLICATION | AA150: APPLICATION
B152: The application of these rates and charges shall be in accordance with the Licence of the Distributor and any Code or Order of the Ontario Energy Board, and amendments thereto as approved by the Ontario Energy Board, which may be applicable to the administration of this schedule. | H152: 5_UNMETERED SCATTERED LOAD SERVICE CLASSIFICATION | AA152: The application of these rates and charges shall be in accordance with the Licence of the Distributor and any Code or Order of the Ontario Energy Board, and amendments thereto as approved by the Ontario Energy Board, which may be applicable to the administration of this schedule.
B154: No rates and charges for the distribution of electricity and charges to meet the costs of any work or service done or furnished for the purpose of the distribution of electricity shall be made except as permitted by this schedule, unless required by the Distributor’s Licence or a Code or Order of the Ontario Energy Board, and amendments thereto as approved by the Ontario Energy Board, or as specified herein. | H154: 5_UNMETERED SCATTERED LOAD SERVICE CLASSIFICATION | AA154: No rates and charges for the distribution of electricity and charges to meet the costs of any work or service done or furnished for the purpose of the distribution of electricity shall be made except as permitted by this schedule, unless required by the Distributor’s Licence or a Code or Order of the Ontario Energy Board, and amendments thereto as approved by the Ontario Energy Board, or as specified herein.
B156: Unless specifically noted, this schedule does not contain any charges for the electricity commodity, be it under the Regulated Price Plan, a contract with a retailer or the wholesale market price, as applicable. In addition, the charges in the MONTHLY RATES AND CHARGES - Regulatory Component of this schedule do not apply to a customer that is an embedded wholesale market participant. | H156: 5_UNMETERED SCATTERED LOAD SERVICE CLASSIFICATION | AA156: Unless specifically noted, this schedule does not contain any charges for the electricity commodity, be it under the Regulated Price Plan, a contract with a retailer or the wholesale market price, as applicable. In addition, the charges in the MONTHLY RATES AND CHARGES - Regulatory Component of this schedule do not apply to a customer that is an embedded wholesale market participant.
B158: It should be noted that this schedule does not list any charges, assessments, or credits that are required by law to be invoiced by a distributor and that are not subject to Ontario Energy Board approval, such as the Global Adjustment and the HST. | H158: 5_UNMETERED SCATTERED LOAD SERVICE CLASSIFICATION | AA158: It should be noted that this schedule does not list any charges, assessments, or credits that are required by law to be invoiced by a distributor and that are not subject to Ontario Energy Board approval, such as the Global Adjustment and the HST.
B160: MONTHLY RATES AND CHARGES - Delivery Component | H160: 5_MRC_Del | AA160: MONTHLY RATES AND CHARGES - Delivery Component
B162: Service Charge (per customer) | D162: $ | E162: 8.2 | H162: 5_UNMETERED SCATTERED LOAD SERVICE CLASSIFICATION | I162: A | M162: 5_UNMETERED SCATTERED LOAD SERVICE CLASSIFICATION_MSC | Z162: Service Charge (per customer)
B163: Distribution Volumetric Rate | D163: $/kWh | E163: 0.0128 | H163: 5_UNMETERED SCATTERED LOAD SERVICE CLASSIFICATION | I163: A | M163: 5_UNMETERED SCATTERED LOAD SERVICE CLASSIFICATION_DVC | Z163: Distribution Volumetric Rate
B164: Low Voltage Service Rate | D164: $/kWh | E164: 0.0027 | H164: 5_UNMETERED SCATTERED LOAD SERVICE CLASSIFICATION | I164: B | M164: 5_UNMETERED SCATTERED LOAD SERVICE CLASSIFICATION_LV | Z164: Low Voltage Service Rate
B165: Rate Rider for Disposition of Lost Revenue Adjustment Mechanism Variance Account (LRAMVA) (2018) - effective until December 31, 2021 | D165: $/kWh | E165: -0.0001 | H165: 5_UNMETERED SCATTERED LOAD SERVICE CLASSIFICATION | I165: A | M165: 5_UNMETERED SCATTERED LOAD SERVICE CLASSIFICATION_LRAM | Q165: 44561 | R165: X | Z165: Rate Rider for Disposition of Lost Revenue Adjustment Mechanism Variance Account (LRAMVA) (2018) - effective until December 31, 2021
B166: Rate Rider per 2018 Settlement Proposal (2018) - effective from January 1, 2021 until December 31, 2021 | D166: $/kWh | E166: -0.0003 | H166: 5_UNMETERED SCATTERED LOAD SERVICE CLASSIFICATION | I166: A | M166: 5_UNMETERED SCATTERED LOAD SERVICE CLASSIFICATION_VR_RR_574 | Q166: 44561 | R166: X | Z166: Rate Rider per 2018 Settlement Proposal (2018) - effective from January 1, 2021 until December 31, 2021
B167: Rate Rider per 2018 Settlement Proposal (2018) - effective from January 1, 2022 until the effective date of next Cost of Service or Custom IR Rate Order | D167: $/kWh | E167: -0.0002 | H167: 5_UNMETERED SCATTERED LOAD SERVICE CLASSIFICATION | I167: A | M167: 5_UNMETERED SCATTERED LOAD SERVICE CLASSIFICATION_VR_RR_575 | Z167: Rate Rider per 2018 Settlement Proposal (2018) - effective from January 1, 2022 until the effective date of next Cost of Service or Custom IR Rate Order
B168: Retail Transmission Rate - Network Service Rate | D168: $/kWh | E168: 0.006 | H168: 5_UNMETERED SCATTERED LOAD SERVICE CLASSIFICATION | I168: C | M168: 5_UNMETERED SCATTERED LOAD SERVICE CLASSIFICATION_Retail Transmission Rate - Network Service Rate | Z168: Retail Transmission Rate - Network Service Rate
B169: Retail Transmission Rate - Line and Transformation Connection Service Rate | D169: $/kWh | E169: 0.005 | H169: 5_UNMETERED SCATTERED LOAD SERVICE CLASSIFICATION | I169: C | M169: 5_UNMETERED SCATTERED LOAD SERVICE CLASSIFICATION_Retail Transmission Rate - Line and Transformation Connection Service Rate | Z169: Retail Transmission Rate - Line and Transformation Connection Service Rate
B171: MONTHLY RATES AND CHARGES - Regulatory Component | H171: 5_MRC_Reg | Z171: MONTHLY RATES AND CHARGES - Regulatory Component
B173: Wholesale Market Service Rate (WMS) - not including CBR | D173: $/kWh | E173: 0.003 | H173: 5_UNMETERED SCATTERED LOAD SERVICE CLASSIFICATION | I173: T | M173: 5_UNMETERED SCATTERED LOAD SERVICE CLASSIFICATION_WMSR | Z173: Wholesale Market Service Rate (WMS) - not including CBR
B174: Capacity Based Recovery (CBR) - Applicable for Class B Customers | D174: $/kWh | E174: 0.0004 | H174: 5_UNMETERED SCATTERED LOAD SERVICE CLASSIFICATION | I174: T | M174: 5_UNMETERED SCATTERED LOAD SERVICE CLASSIFICATION_WMSR | Z174: Capacity Based Recovery (CBR) - Applicable for Class B Customers
B175: Rural or Remote Electricity Rate Protection Charge (RRRP) | D175: $/kWh | E175: 0.0005 | H175: 5_UNMETERED SCATTERED LOAD SERVICE CLASSIFICATION | I175: T | M175: 5_UNMETERED SCATTERED LOAD SERVICE CLASSIFICATION_RRRP | Z175: Rural or Remote Electricity Rate Protection Charge (RRRP)
B176: Standard Supply Service - Administrative Charge (if applicable) | D176: $ | E176: 0.25 | H176: 5_UNMETERED SCATTERED LOAD SERVICE CLASSIFICATION | I176: T | M176: 5_UNMETERED SCATTERED LOAD SERVICE CLASSIFICATION_SSS | Z176: Standard Supply Service - Administrative Charge (if applicable) | AS176: X
B177: SENTINEL LIGHTING SERVICE CLASSIFICATION | H177: 6_SENTINEL LIGHTING SERVICE CLASSIFICATION | AA177: SENTINEL LIGHTING SERVICE CLASSIFICATION
B178: This classification refers to an account that is an unmetered lighting load supplied to a sentinel light where consumption isbased on connected load. Class B consumers are defined in accordance with O. Reg. 429/04. Further servicing details are available in the distributor's Conditions of Service. | H178: 6_SENTINEL LIGHTING SERVICE CLASSIFICATION | AA178: This classification refers to an account that is an unmetered lighting load supplied to a sentinel light where consumption isbased on connected load. Class B consumers are defined in accordance with O. Reg. 429/04. Further servicing details are available in the distributor's Conditions of Service.
B180: APPLICATION | H180: 6_APPLICATION | AA180: APPLICATION
B182: The application of these rates and charges shall be in accordance with the Licence of the Distributor and any Code or Order of the Ontario Energy Board, and amendments thereto as approved by the Ontario Energy Board, which may be applicable to the administration of this schedule. | H182: 6_SENTINEL LIGHTING SERVICE CLASSIFICATION | AA182: The application of these rates and charges shall be in accordance with the Licence of the Distributor and any Code or Order of the Ontario Energy Board, and amendments thereto as approved by the Ontario Energy Board, which may be applicable to the administration of this schedule.
B184: No rates and charges for the distribution of electricity and charges to meet the costs of any work or service done or furnished for the purpose of the distribution of electricity shall be made except as permitted by this schedule, unless required by the Distributor’s Licence or a Code or Order of the Ontario Energy Board, and amendments thereto as approved by the Ontario Energy Board, or as specified herein. | H184: 6_SENTINEL LIGHTING SERVICE CLASSIFICATION | AA184: No rates and charges for the distribution of electricity and charges to meet the costs of any work or service done or furnished for the purpose of the distribution of electricity shall be made except as permitted by this schedule, unless required by the Distributor’s Licence or a Code or Order of the Ontario Energy Board, and amendments thereto as approved by the Ontario Energy Board, or as specified herein.
B186: Unless specifically noted, this schedule does not contain any charges for the electricity commodity, be it under the Regulated Price Plan, a contract with a retailer or the wholesale market price, as applicable. In addition, the charges in the MONTHLY RATES AND CHARGES - Regulatory Component of this schedule do not apply to a customer that is an embedded wholesale market participant. | H186: 6_SENTINEL LIGHTING SERVICE CLASSIFICATION | AA186: Unless specifically noted, this schedule does not contain any charges for the electricity commodity, be it under the Regulated Price Plan, a contract with a retailer or the wholesale market price, as applicable. In addition, the charges in the MONTHLY RATES AND CHARGES - Regulatory Component of this schedule do not apply to a customer that is an embedded wholesale market participant.
B188: It should be noted that this schedule does not list any charges, assessments, or credits that are required by law to be invoiced by a distributor and that are not subject to Ontario Energy Board approval, such as the Global Adjustment and the HST. | H188: 6_SENTINEL LIGHTING SERVICE CLASSIFICATION | AA188: It should be noted that this schedule does not list any charges, assessments, or credits that are required by law to be invoiced by a distributor and that are not subject to Ontario Energy Board approval, such as the Global Adjustment and the HST.
B190: MONTHLY RATES AND CHARGES - Delivery Component | H190: 6_MRC_Del | AA190: MONTHLY RATES AND CHARGES - Delivery Component
B192: Service Charge (per connection) | D192: $ | E192: 6.06 | H192: 6_SENTINEL LIGHTING SERVICE CLASSIFICATION | I192: A | M192: 6_SENTINEL LIGHTING SERVICE CLASSIFICATION_MSC | Z192: Service Charge (per connection)
B193: Distribution Volumetric Rate | D193: $/kW | E193: 16.0364 | H193: 6_SENTINEL LIGHTING SERVICE CLASSIFICATION | I193: A | M193: 6_SENTINEL LIGHTING SERVICE CLASSIFICATION_DVC | Z193: Distribution Volumetric Rate
B194: Low Voltage Service Rate | D194: $/kW | E194: 0.7882 | H194: 6_SENTINEL LIGHTING SERVICE CLASSIFICATION | I194: B | M194: 6_SENTINEL LIGHTING SERVICE CLASSIFICATION_LV | Z194: Low Voltage Service Rate
B195: Rate Rider for Disposition of Lost Revenue Adjustment Mechanism Variance Account (LRAMVA) (2018) - effective until December 31, 2021 | D195: $/kW | E195: -0.0951 | H195: 6_SENTINEL LIGHTING SERVICE CLASSIFICATION | I195: A | M195: 6_SENTINEL LIGHTING SERVICE CLASSIFICATION_LRAM | Q195: 44561 | R195: X | Z195: Rate Rider for Disposition of Lost Revenue Adjustment Mechanism Variance Account (LRAMVA) (2018) - effective until December 31, 2021
B196: Rate Rider per 2018 Settlement Proposal (2018) - effective from January 1, 2021 until December 31, 2021 | D196: $/kW | E196: -0.761 | H196: 6_SENTINEL LIGHTING SERVICE CLASSIFICATION | I196: A | M196: 6_SENTINEL LIGHTING SERVICE CLASSIFICATION_VR_RR_577 | Q196: 44561 | R196: X | Z196: Rate Rider per 2018 Settlement Proposal (2018) - effective from January 1, 2021 until December 31, 2021
B197: Rate Rider per 2018 Settlement Proposal (2018) - effective from January 1, 2022 until the effective date of next Cost of Service or Custom IR Rate Order | D197: $/kW | E197: -0.3949 | H197: 6_SENTINEL LIGHTING SERVICE CLASSIFICATION | I197: A | M197: 6_SENTINEL LIGHTING SERVICE CLASSIFICATION_VR_RR_578 | Z197: Rate Rider per 2018 Settlement Proposal (2018) - effective from January 1, 2022 until the effective date of next Cost of Service or Custom IR Rate Order
B198: Retail Transmission Rate - Network Service Rate | D198: $/kW | E198: 1.8164 | H198: 6_SENTINEL LIGHTING SERVICE CLASSIFICATION | I198: C | M198: 6_SENTINEL LIGHTING SERVICE CLASSIFICATION_Retail Transmission Rate - Network Service Rate | Z198: Retail Transmission Rate - Network Service Rate
B199: Retail Transmission Rate - Line and Transformation Connection Service Rate | D199: $/kW | E199: 1.5412 | H199: 6_SENTINEL LIGHTING SERVICE CLASSIFICATION | I199: C | M199: 6_SENTINEL LIGHTING SERVICE CLASSIFICATION_Retail Transmission Rate - Line and Transformation Connection Service Rate | Z199: Retail Transmission Rate - Line and Transformation Connection Service Rate
B201: MONTHLY RATES AND CHARGES - Regulatory Component | H201: 6_MRC_Reg | Z201: MONTHLY RATES AND CHARGES - Regulatory Component
B203: Wholesale Market Service Rate (WMS) - not including CBR | D203: $/kWh | E203: 0.003 | H203: 6_SENTINEL LIGHTING SERVICE CLASSIFICATION | I203: T | M203: 6_SENTINEL LIGHTING SERVICE CLASSIFICATION_WMSR | Z203: Wholesale Market Service Rate (WMS) - not including CBR
B204: Capacity Based Recovery (CBR) - Applicable for Class B Customers | D204: $/kWh | E204: 0.0004 | H204: 6_SENTINEL LIGHTING SERVICE CLASSIFICATION | I204: T | M204: 6_SENTINEL LIGHTING SERVICE CLASSIFICATION_WMSR | Z204: Capacity Based Recovery (CBR) - Applicable for Class B Customers
B205: Rural or Remote Electricity Rate Protection Charge (RRRP) | D205: $/kWh | E205: 0.0005 | H205: 6_SENTINEL LIGHTING SERVICE CLASSIFICATION | I205: T | M205: 6_SENTINEL LIGHTING SERVICE CLASSIFICATION_RRRP | Z205: Rural or Remote Electricity Rate Protection Charge (RRRP)
B206: Standard Supply Service - Administrative Charge (if applicable) | D206: $ | E206: 0.25 | H206: 6_SENTINEL LIGHTING SERVICE CLASSIFICATION | I206: T | M206: 6_SENTINEL LIGHTING SERVICE CLASSIFICATION_SSS | Z206: Standard Supply Service - Administrative Charge (if applicable) | AS206: X
B207: STREET LIGHTING SERVICE CLASSIFICATION | H207: 7_STREET LIGHTING SERVICE CLASSIFICATION | AA207: STREET LIGHTING SERVICE CLASSIFICATION
B208: This classification applies to an account for roadway lighting with a Municipality, Regional Municipality, Ministry of Transportation and private roadway lighting, controlled by photo cells. The consumption of these customers will be based on the calculated connected load times the required lighting times established in the approved Ontario Energy Board street lighting load shape template. Class B consumers are defined in accordance with O. Reg. 429/04. Further servicing details are available in the distributor's Conditions of Service. | H208: 7_STREET LIGHTING SERVICE CLASSIFICATION | AA208: This classification applies to an account for roadway lighting with a Municipality, Regional Municipality, Ministry of Transportation and private roadway lighting, controlled by photo cells. The consumption of these customers will be based on the calculated connected load times the required lighting times established in the approved Ontario Energy Board street lighting load shape template. Class B consumers are defined in accordance with O. Reg. 429/04. Further servicing details are available in the distributor's Conditions of Service.
B210: APPLICATION | H210: 7_APPLICATION | AA210: APPLICATION
B212: The application of these rates and charges shall be in accordance with the Licence of the Distributor and any Code or Order of the Ontario Energy Board, and amendments thereto as approved by the Ontario Energy Board, which may be applicable to the administration of this schedule. | H212: 7_STREET LIGHTING SERVICE CLASSIFICATION | AA212: The application of these rates and charges shall be in accordance with the Licence of the Distributor and any Code or Order of the Ontario Energy Board, and amendments thereto as approved by the Ontario Energy Board, which may be applicable to the administration of this schedule.
B214: No rates and charges for the distribution of electricity and charges to meet the costs of any work or service done or furnished for the purpose of the distribution of electricity shall be made except as permitted by this schedule, unless required by the Distributor’s Licence or a Code or Order of the Ontario Energy Board, and amendments thereto as approved by the Ontario Energy Board, or as specified herein. | H214: 7_STREET LIGHTING SERVICE CLASSIFICATION | AA214: No rates and charges for the distribution of electricity and charges to meet the costs of any work or service done or furnished for the purpose of the distribution of electricity shall be made except as permitted by this schedule, unless required by the Distributor’s Licence or a Code or Order of the Ontario Energy Board, and amendments thereto as approved by the Ontario Energy Board, or as specified herein.
B216: Unless specifically noted, this schedule does not contain any charges for the electricity commodity, be it under the Regulated Price Plan, a contract with a retailer or the wholesale market price, as applicable. In addition, the charges in the MONTHLY RATES AND CHARGES - Regulatory Component of this schedule do not apply to a customer that is an embedded wholesale market participant. | H216: 7_STREET LIGHTING SERVICE CLASSIFICATION | AA216: Unless specifically noted, this schedule does not contain any charges for the electricity commodity, be it under the Regulated Price Plan, a contract with a retailer or the wholesale market price, as applicable. In addition, the charges in the MONTHLY RATES AND CHARGES - Regulatory Component of this schedule do not apply to a customer that is an embedded wholesale market participant.
B218: It should be noted that this schedule does not list any charges, assessments, or credits that are required by law to be invoiced by a distributor and that are not subject to Ontario Energy Board approval, such as the Global Adjustment and the HST. | H218: 7_STREET LIGHTING SERVICE CLASSIFICATION | AA218: It should be noted that this schedule does not list any charges, assessments, or credits that are required by law to be invoiced by a distributor and that are not subject to Ontario Energy Board approval, such as the Global Adjustment and the HST.
B220: MONTHLY RATES AND CHARGES - Delivery Component | H220: 7_MRC_Del | AA220: MONTHLY RATES AND CHARGES - Delivery Component
B222: Service Charge (per connection) | D222: $ | E222: 2.29 | H222: 7_STREET LIGHTING SERVICE CLASSIFICATION | I222: A | M222: 7_STREET LIGHTING SERVICE CLASSIFICATION_MSC | Z222: Service Charge (per connection)
B223: Distribution Volumetric Rate | D223: $/kW | E223: 11.0823 | H223: 7_STREET LIGHTING SERVICE CLASSIFICATION | I223: A | M223: 7_STREET LIGHTING SERVICE CLASSIFICATION_DVC | Z223: Distribution Volumetric Rate
B224: Low Voltage Service Rate | D224: $/kW | E224: 0.772 | H224: 7_STREET LIGHTING SERVICE CLASSIFICATION | I224: B | M224: 7_STREET LIGHTING SERVICE CLASSIFICATION_LV | Z224: Low Voltage Service Rate
B225: Rate Rider for Disposition of Lost Revenue Adjustment Mechanism Variance Account (LRAMVA) (2018) - effective until December 31, 2021 | D225: $/kW | E225: 3.0915 | H225: 7_STREET LIGHTING SERVICE CLASSIFICATION | I225: A | M225: 7_STREET LIGHTING SERVICE CLASSIFICATION_LRAM | Q225: 44561 | R225: X | Z225: Rate Rider for Disposition of Lost Revenue Adjustment Mechanism Variance Account (LRAMVA) (2018) - effective until December 31, 2021
B226: Rate Rider per 2018 Settlement Proposal (2018) - effective from January 1, 2021 until December 31, 2021 | D226: $/kW | E226: -0.8951 | H226: 7_STREET LIGHTING SERVICE CLASSIFICATION | I226: A | M226: 7_STREET LIGHTING SERVICE CLASSIFICATION_VR_RR_580 | Q226: 44561 | R226: X | Z226: Rate Rider per 2018 Settlement Proposal (2018) - effective from January 1, 2021 until December 31, 2021
B227: Rate Rider per 2018 Settlement Proposal (2018) - effective from January 1, 2022 until the effective date of next Cost of Service or Custom IR Rate Order | D227: $/kW | E227: -0.4645 | H227: 7_STREET LIGHTING SERVICE CLASSIFICATION | I227: A | M227: 7_STREET LIGHTING SERVICE CLASSIFICATION_VR_RR_581 | Z227: Rate Rider per 2018 Settlement Proposal (2018) - effective from January 1, 2022 until the effective date of next Cost of Service or Custom IR Rate Order
B228: Retail Transmission Rate - Network Service Rate | D228: $/kW | E228: 1.8072 | H228: 7_STREET LIGHTING SERVICE CLASSIFICATION | I228: C | M228: 7_STREET LIGHTING SERVICE CLASSIFICATION_Retail Transmission Rate - Network Service Rate | Z228: Retail Transmission Rate - Network Service Rate
B229: Retail Transmission Rate - Line and Transformation Connection Service Rate | D229: $/kW | E229: 1.5097 | H229: 7_STREET LIGHTING SERVICE CLASSIFICATION | I229: C | M229: 7_STREET LIGHTING SERVICE CLASSIFICATION_Retail Transmission Rate - Line and Transformation Connection Service Rate | Z229: Retail Transmission Rate - Line and Transformation Connection Service Rate
B231: MONTHLY RATES AND CHARGES - Regulatory Component | H231: 7_MRC_Reg | Z231: MONTHLY RATES AND CHARGES - Regulatory Component
B233: Wholesale Market Service Rate (WMS) - not including CBR | D233: $/kWh | E233: 0.003 | H233: 7_STREET LIGHTING SERVICE CLASSIFICATION | I233: T | M233: 7_STREET LIGHTING SERVICE CLASSIFICATION_WMSR | Z233: Wholesale Market Service Rate (WMS) - not including CBR
B234: Capacity Based Recovery (CBR) - Applicable for Class B Customers | D234: $/kWh | E234: 0.0004 | H234: 7_STREET LIGHTING SERVICE CLASSIFICATION | I234: T | M234: 7_STREET LIGHTING SERVICE CLASSIFICATION_WMSR | Z234: Capacity Based Recovery (CBR) - Applicable for Class B Customers
B235: Rural or Remote Electricity Rate Protection Charge (RRRP) | D235: $/kWh | E235: 0.0005 | H235: 7_STREET LIGHTING SERVICE CLASSIFICATION | I235: T | M235: 7_STREET LIGHTING SERVICE CLASSIFICATION_RRRP | Z235: Rural or Remote Electricity Rate Protection Charge (RRRP)
B236: Standard Supply Service - Administrative Charge (if applicable) | D236: $ | E236: 0.25 | H236: 7_STREET LIGHTING SERVICE CLASSIFICATION | I236: T | M236: 7_STREET LIGHTING SERVICE CLASSIFICATION_SSS | Z236: Standard Supply Service - Administrative Charge (if applicable) | AS236: X
B237: microFIT SERVICE CLASSIFICATION | H237: 8_microFIT SERVICE CLASSIFICATION | AA237: microFIT SERVICE CLASSIFICATION
B238: This classification applies to an electricity generation facility contracted under the Independent Electricity System Operator’s microFIT program and connected to the distributor's distribution system. Further servicing details are available in the distributor's Conditions of Service. | H238: 8_microFIT SERVICE CLASSIFICATION | AA238: This classification applies to an electricity generation facility contracted under the Independent Electricity System Operator’s microFIT program and connected to the distributor's distribution system. Further servicing details are available in the distributor's Conditions of Service.
B240: APPLICATION | H240: 8_APPLICATION | AA240: APPLICATION
B242: The application of these rates and charges shall be in accordance with the Licence of the Distributor and any Code or Order of the Ontario Energy Board, and amendments thereto as approved by the Ontario Energy Board, which may be applicable to the administration of this schedule. | H242: 8_microFIT SERVICE CLASSIFICATION | AA242: The application of these rates and charges shall be in accordance with the Licence of the Distributor and any Code or Order of the Ontario Energy Board, and amendments thereto as approved by the Ontario Energy Board, which may be applicable to the administration of this schedule.
B244: No rates and charges for the distribution of electricity and charges to meet the costs of any work or service done or furnished for the purpose of the distribution of electricity shall be made except as permitted by this schedule, unless required by the Distributor’s Licence or a Code or Order of the Ontario Energy Board, and amendments thereto as approved by the Ontario Energy Board, or as specified herein. | H244: 8_microFIT SERVICE CLASSIFICATION | AA244: No rates and charges for the distribution of electricity and charges to meet the costs of any work or service done or furnished for the purpose of the distribution of electricity shall be made except as permitted by this schedule, unless required by the Distributor’s Licence or a Code or Order of the Ontario Energy Board, and amendments thereto as approved by the Ontario Energy Board, or as specified herein.
B246: Unless specifically noted, this schedule does not contain any charges for the electricity commodity, be it under the Regulated Price Plan, a contract with a retailer or the wholesale market price, as applicable. | H246: 8_microFIT SERVICE CLASSIFICATION | AA246: Unless specifically noted, this schedule does not contain any charges for the electricity commodity, be it under the Regulated Price Plan, a contract with a retailer or the wholesale market price, as applicable.
B248: It should be noted that this schedule does not list any charges, assessments, or credits that are required by law to be invoiced by a distributor and that are not subject to Ontario Energy Board approval, such as the Global Adjustment and the HST. | H248: 8_microFIT SERVICE CLASSIFICATION | AA248: It should be noted that this schedule does not list any charges, assessments, or credits that are required by law to be invoiced by a distributor and that are not subject to Ontario Energy Board approval, such as the Global Adjustment and the HST.
B250: MONTHLY RATES AND CHARGES - Delivery Component | H250: 8_MRC_Del | AA250: MONTHLY RATES AND CHARGES - Delivery Component
B252: Service Charge | D252: $ | E252: 10 | H252: 8_microFIT SERVICE CLASSIFICATION | I252: A | M252: 8_microFIT SERVICE CLASSIFICATION_MSC | Z252: Service Charge
B254: ALLOWANCES | H254: Centre Wellington Hydro Ltd._ALLOWANCES
B255: Transformer Allowance for Ownership - per kW of billing demand/month | D255: $/kW | E255: -0.6 | Z255: Transformer Allowance for Ownership - per kW of billing demand/month
B256: Primary Metering Allowance for Transformer Losses - applied to measured demand & energy | D256: % | E256: -1 | Z256: Primary Metering Allowance for Transformer Losses - applied to measured demand & energy
B257: SPECIFIC SERVICE CHARGES | H257: Centre Wellington Hydro Ltd._SSC
B258: The application of these rates and charges shall be in accordance with the Licence of the Distributor and any Code or Order of the Ontario Energy Board, and amendments thereto as approved by the Ontario Energy Board, which may be applicable to the administration of this schedule. | AA258: The application of these rates and charges shall be in accordance with the Licence of the Distributor and any Code or Order of the Ontario Energy Board, and amendments thereto as approved by the Ontario Energy Board, which may be applicable to the administration of this schedule.
B260: No charges to meet the costs of any work or service done or furnished for the purpose of the distribution of electricity shall be made except as permitted by this schedule, unless required by the Distributor’s Licence or a Code or Order of the Ontario Energy Board, and amendments thereto as approved by the Ontario Energy Board, or as specified herein. | AA260: No charges to meet the costs of any work or service done or furnished for the purpose of the distribution of electricity shall be made except as permitted by this schedule, unless required by the Distributor’s Licence or a Code or Order of the Ontario Energy Board, and amendments thereto as approved by the Ontario Energy Board, or as specified herein.
B262: It should be noted that this schedule does not list any charges, assessments, or credits that are required by law to be invoiced by a distributor and that are not subject to Ontario Energy Board approval, such as the Global Adjustment and the HST. | AA262: It should be noted that this schedule does not list any charges, assessments, or credits that are required by law to be invoiced by a distributor and that are not subject to Ontario Energy Board approval, such as the Global Adjustment and the HST.
B264: Customer Administration | H264: Centre Wellington Hydro Ltd._CA
B265: Arrears certificate | D265: $ | E265: 15 | Z265: Arrears certificate
B266: Statement of account | D266: $ | E266: 15 | Z266: Statement of account
B267: Pulling post dated cheques | D267: $ | E267: 15 | Z267: Pulling post dated cheques
B268: Duplicate invoices for previous billing | D268: $ | E268: 15 | Z268: Duplicate invoices for previous billing
B269: Request for other billing information | D269: $ | E269: 15 | Z269: Request for other billing information
B270: Easement letter | D270: $ | E270: 15 | Z270: Easement letter
B271: Income tax letter | D271: $ | E271: 15 | Z271: Income tax letter
B272: Notification charge | D272: $ | E272: 15 | Z272: Notification charge
B273: Account history | D273: $ | E273: 15 | Z273: Account history
B274: Credit reference/credit check (plus credit agency costs) | D274: $ | E274: 15 | Z274: Credit reference/credit check (plus credit agency costs)
B275: Returned cheque (plus bank charges) | D275: $ | E275: 15 | Z275: Returned cheque (plus bank charges)
B276: Charge to certify cheque | D276: $ | E276: 15 | Z276: Charge to certify cheque
B277: Legal letter charge | D277: $ | E277: 15 | Z277: Legal letter charge
B278: Account set up charge/change of occupancy charge (plus credit agency costs if applicable) | D278: $ | E278: 30 | Z278: Account set up charge/change of occupancy charge (plus credit agency costs if applicable)
B279: Special meter reads | D279: $ | E279: 30 | Z279: Special meter reads
B280: Meter dispute charge plus Measurement Canada fees (if meter found correct) | D280: $ | E280: 30 | Z280: Meter dispute charge plus Measurement Canada fees (if meter found correct)
B282: Non-Payment of Account | H282: Centre Wellington Hydro Ltd._NPoA
B283: Late payment - per month (effective annual rate 19.56% per annum or 0.04896% compounded daily rate) | D283: % | E283: 1.5 | Z283: Late payment - per month (effective annual rate 19.56% per annum or 0.04896% compounded daily rate)
B284: Reconnection at meter - during regular hours | D284: $ | E284: 65 | Z284: Reconnection at meter - during regular hours
... 35 more rows

Sheet 3. Continuity Schedule
CB1: FALSE
C2: FALSE | CB2: FALSE
C3: TRUE | CB3: FALSE
CB4: FALSE
CB5: FALSE
CB6: FALSE
CB7: FALSE
CB8: FALSE
CB9: FALSE
CB10: TRUE
CB11: TRUE
C12: Please complete the following continuity schedule for the following Deferral/Variance Accounts. Enter information into green cells only. Please see instructions tab for detailed instructions on how to complete tabs 3 to 7. Column BV has been prepopulated from the latest 2.1.7 RRR filing. Please refer to the footnotes for further instructions.
E16: 2015 | O16: =E16+1 -> 2016 | Y16: =O16+1 -> 2017 | AI16: =Y16+1 -> 2018 | AS16: =AI16+1 -> 2019 | BC16: =AS16+1 -> 2020 | BM16: =BC16+1 -> 2021 | BQ16: Projected Interest on Dec-31-2020 Balances | BV16: 2.1.7 RRR5
C17: Account Descriptions | D17: Account Number | E17: Opening Principal Amounts as of Jan 1, 2015 | F17: Transactions Debit / (Credit) during 2015 | G17: OEB-Approved Disposition during 2015 | H17: Principal Adjustments1 during 2015 | I17: Closing Principal Balance as of Dec 31, 2015 | J17: Opening Interest Amounts as of Jan 1, 2015 | K17: Interest Jan 1 to Dec 31, 2015 | L17: OEB-Approved Disposition during 2015 | M17: Interest Adjustments1 during 2015 | N17: Closing Interest Amounts as of Dec 31, 2015 | O17: Opening Principal Amounts as of Jan 1, 2016 | P17: Transactions Debit / (Credit) during 2016 | Q17: OEB-Approved Disposition during 2016 | R17: Principal Adjustments1 during 2016 | S17: Closing Principal Balance as of Dec 31, 2016 | T17: Opening Interest Amounts as of Jan 1, 2016 | U17: Interest Jan 1 to Dec 31, 2016 | V17: OEB-Approved Disposition during 2016 | W17: Interest Adjustments1 during 2016 | X17: Closing Interest Amounts as of Dec 31, 2016 | Y17: Opening Principal Amounts as of Jan 1, 2017 | Z17: Transactions Debit / (Credit) during 2017 | AA17: OEB-Approved Disposition during 2017 | AB17: Principal Adjustments1 during 2017 | AC17: Closing Principal Balance as of Dec 31, 2017 | AD17: Opening Interest Amounts as of Jan 1, 2017 | AE17: Interest Jan 1 to Dec 31, 2017 | AF17: OEB-Approved Disposition during 2017 | AG17: Interest Adjustments1 during 2017 | AH17: Closing Interest Amounts as of Dec 31, 2017 | AI17: Opening Principal Amounts as of Jan 1, 2018 | AJ17: Transactions Debit / (Credit) during 2018 | AK17: OEB-Approved Disposition during 2018 | AL17: Principal Adjustments1 during 2018 | AM17: Closing Principal Balance as of Dec 31, 2018 | AN17: Opening Interest Amounts as of Jan 1, 2018 | AO17: Interest Jan 1 to Dec 31, 2018 | AP17: OEB-Approved Disposition during 2018 | AQ17: Interest Adjustments1 during 2018 | AR17: Closing Interest Amounts as of Dec 31, 2018 | AS17: Opening Principal Amounts as of Jan 1, 2019 | AT17: Transactions Debit / (Credit) during 2019 | AU17: OEB-Approved Disposition during 2019 | AV17: Principal Adjustments1 during 2019 | AW17: Closing Principal Balance as of Dec 31, 2019 | AX17: Opening Interest Amounts as of Jan 1, 2019 | AY17: Interest Jan 1 to Dec 31, 2019 | AZ17: OEB-Approved Disposition during 2019 | BA17: Interest Adjustments1 during 2019 | BB17: Closing Interest Amounts as of Dec 31, 2019 | BC17: Opening Principal Amounts as of Jan 1, 2020 | BD17: Transactions Debit / (Credit) during 2020 | BE17: OEB-Approved Disposition during 2020 | BF17: Principal Adjustments1 during 2020 | BG17: Closing Principal Balance as of Dec 31, 2020 | BH17: Opening Interest Amounts as of Jan 1, 2020 | BI17: Interest Jan 1 to Dec 31, 2020 | BJ17: OEB-Approved Disposition during 2020 | BK17: Interest Adjustments1 during 2020 | BL17: Closing Interest Amounts as of Dec 31, 2020 | BM17: Principal Disposition during 2021 - instructed by OEB | BN17: Interest Disposition during 2021 - instructed by OEB | BO17: Closing Principal Balances as of Dec 31, 2020 Adjusted for Disposition during 2021 | BP17: Closing Interest Balances as of Dec 31, 2020 Adjusted for Disposition during 2021 | BQ17: Projected Interest from Jan 1, 2021 to Dec 31, 2021 on Dec 31, 2020 balance adjusted for disposition during 2021 2 | BR17: Projected Interest from Jan 1, 2022 to Apr 30, 2022 on Dec 31, 2020 balance adjusted for disposition during 2021 2 | BS17: Total Interest | BT17: Total Claim | BU17: Account Disposition: Yes/No? | BV17: As of Dec 31, 2020 | BW17: Variance RRR vs. 2020 Balance (Principal + Interest)
BT19: Claim before Forecasted Transactions
C20: Group 1 Accounts
C21: LV Variance Account | D21: 1550 | I21: =E21+F21-G21+H21 -> 0 | N21: =J21+K21-L21+M21 -> 0 | O21: =I21 -> 0 | S21: =O21+P21-Q21+SUM(R21:R21) -> 0 | T21: =N21 -> 0 | X21: =T21+U21-V21+W21 -> 0 | Y21: =S21 -> 0 | AB21: 491436.09 | AC21: =Y21+Z21-AA21+SUM(AB21:AB21) -> 491436.09 | AD21: =X21 -> 0 | AG21: 9654.74 | AH21: =AD21+AE21-AF21+AG21 -> 9654.74 | AI21: =AC21 -> 491436.09 | AJ21: 3206.85 | AK21: 332973.76 | AM21: =AI21+AJ21-AK21+SUM(AL21:AL21) -> 161669.18 | AN21: =AH21 -> 9654.74 | AO21: 2979.97 | AP21: 8385.37 | AR21: =AN21+AO21-AP21+AQ21 -> 4249.34 | AS21: =AM21 -> 161669.18 | AT21: 21557.07 | AU21: 158462.33 | AW21: =AS21+AT21-AU21+SUM(AV21:AV21) -> 24763.92 | AX21: =AR21 -> 4249.34 | AY21: 112.43 | AZ21: 4109.81 | BB21: =AX21+AY21-AZ21+BA21 -> 251.96 | BC21: =AW21 -> 24763.92 | BD21: 87757.29 | BG21: =BC21+BD21-BE21+SUM(BF21:BF21) -> 112521.21 | BH21: =BB21 -> 251.96 | BI21: 613.27 | BL21: =BH21+BI21-BJ21+BK21 -> 865.23 | BO21: =BG21-BM21 -> 112521.21 | BP21: =BL21-BN21 -> 865.23 | BQ21: =BO21*0.0057 -> 641.370897 | BS21: =BP21+BQ21+BR21 -> 1506.600897 | BT21: =SUM(BO21:BR21) -> 114027.8109 | BV21: 113386.44 | BW21: =ROUND(BV21-SUM(BG21,BL21),2) -> 0 | BX21: =IF(ABS(BW21)>1,"Please provide an explanation of the variance in the Manager's Summary","") -> 
C22: Smart Metering Entity Charge Variance Account | D22: 1551 | I22: =E22+F22-G22+H22 -> 0 | N22: =J22+K22-L22+M22 -> 0 | O22: =I22 -> 0 | S22: 0 | T22: 0 | X22: =T22+U22-V22+W22 -> 0 | Y22: =S22 -> 0 | AB22: -4174.68 | AC22: =Y22+Z22-AA22+SUM(AB22:AB22) -> -4174.68 | AD22: =X22 -> 0 | AG22: -83.24 | AH22: =AD22+AE22-AF22+AG22 -> -83.24 | AI22: -4174.68 | AJ22: -6231.74 | AK22: -2971.72 | AM22: -7434.7 | AN22: -83.24 | AO22: -107.81 | AP22: -75.75 | AR22: =AN22+AO22-AP22+AQ22 -> -115.3 | AS22: -7434.7 | AT22: -1503.35 | AU22: -1202.96 | AW22: -7735.09 | AX22: -115.3 | AY22: -154.05 | AZ22: -29.05 | BB22: =AX22+AY22-AZ22+BA22 -> -240.3 | BC22: -7735.09 | BD22: -1161.55 | BG22: -8896.64 | BH22: -240.3 | BI22: -109.21 | BL22: =BH22+BI22-BJ22+BK22 -> -349.51 | BO22: =BG22-BM22 -> -8896.64 | BP22: =BL22-BN22 -> -349.51 | BQ22: =BO22*0.0057 -> -50.710848 | BS22: =BP22+BQ22+BR22 -> -400.220848 | BT22: =SUM(BO22:BR22) -> -9296.860848 | BV22: -9246.15 | BW22: =ROUND(BV22-SUM(BG22,BL22),2) -> 0 | BX22: =IF(ABS(BW22)>1,"Please provide an explanation of the variance in the Manager's Summary","") -> 
C23: RSVA - Wholesale Market Service Charge5 | D23: 1580 | I23: =E23+F23-G23+H23 -> 0 | N23: =J23+K23-L23+M23 -> 0 | O23: =I23 -> 0 | S23: 0 | T23: 0 | X23: =T23+U23-V23+W23 -> 0 | Y23: 0 | AB23: -380461.53 | AC23: =Y23+Z23-AA23+SUM(AB23:AB23) -> -380461.53 | AD23: 0 | AG23: -11085.47 | AH23: =AD23+AE23-AF23+AG23 -> -11085.47 | AI23: -380461.53 | AJ23: -13671.4 | AK23: -329778.25 | AM23: -64354.68 | AN23: -11085.47 | AO23: -1027.48 | AP23: -10483.06 | AR23: =AN23+AO23-AP23+AQ23 -> -1629.89 | AS23: -64354.68 | AT23: -17642.83 | AU23: -50683.28 | AW23: -31314.23 | AX23: -1629.89 | AY23: -317.84 | AZ23: -1510.91 | BB23: =AX23+AY23-AZ23+BA23 -> -436.82 | BC23: -31314.23 | BD23: -28478.7 | BG23: -59792.93 | BH23: -436.82 | BI23: -547.12 | BL23: =BH23+BI23-BJ23+BK23 -> -983.94 | BO23: -59792.93 | BP23: -983.94 | BQ23: -340.819701 | BS23: -1324.759701 | BT23: =SUM(BO23:BR23) -> -61117.6897 | BV23: -64135.02 | BW23: -3358.15 | BX23: =IF(ROUND(BW23,0)=ROUND(BV25,0),"","The variance does not match the value in cell BV25. Please provide an explanation of the variance in the Manager's Summary") -> 
C24: Variance WMS – Sub-account CBR Class A5 | D24: 1580 | I24: 0 | N24: 0 | O24: 0 | S24: 0 | T24: 0 | X24: 0 | Y24: 0 | AB24: 0 | AC24: 0 | AD24: 0 | AG24: 0 | AH24: 0 | AI24: 0 | AJ24: 0 | AK24: 0 | AM24: 0 | AN24: 0 | AR24: 0 | AS24: 0 | AW24: 0 | AX24: 0 | AY24: 0 | AZ24: 0 | BB24: 0 | BC24: 0 | BG24: =BC24+BD24-BE24+SUM(BF24:BF24) -> 0 | BH24: 0 | BI24: 0 | BL24: 0 | BO24: 0 | BP24: 0 | BQ24: 0 | BS24: 0 | BT24: =IF(CB5=TRUE, 0, 0) -> 0 | BV24: 0 | BW24: 0
C25: Variance WMS – Sub-account CBR Class B5 | D25: 1580 | I25: 0 | N25: 0 | O25: 0 | S25: 0 | T25: 0 | X25: 0 | Y25: 0 | AB25: 10327.59 | AC25: 10327.59 | AD25: 0 | AG25: 292.2 | AH25: 292.2 | AI25: 10327.59 | AJ25: -713.01 | AK25: 10834.31 | AM25: -1219.73 | AN25: 292.2 | AO25: -20.4 | AP25: 285.12 | AR25: -13.32 | AS25: -1219.73 | AT25: -1797.42 | AU25: -506.72 | AW25: -2510.43 | AX25: -13.32 | AY25: -31.57 | AZ25: -2 | BB25: -42.89 | BC25: -2510.43 | BD25: -762.08 | BG25: -3272.51 | BH25: -42.89 | BI25: -42.75 | BL25: -85.64 | BO25: -3272.51 | BP25: -85.64 | BQ25: -18.653307 | BS25: -104.293307 | BT25: =SUM(BO25:BR25) -> -3376.803307 | BV25: -3358.15 | BW25: 0
C26: RSVA - Retail Transmission Network Charge | D26: 1584 | I26: 0 | N26: 0 | O26: 0 | S26: 0 | T26: 0 | X26: 0 | Y26: 0 | AB26: -54827.61 | AC26: -54827.61 | AD26: 0 | AG26: -2618.7 | AH26: -2618.7 | AI26: -54827.61 | AJ26: -11061.26 | AK26: -40276.74 | AM26: -25612.13 | AN26: -2618.7 | AO26: -386.16 | AP26: -2422.45 | AR26: -582.41 | AS26: -25612.13 | AT26: -23382.24 | AU26: -14550.87 | AW26: -34443.5 | AX26: -582.41 | AY26: -567.8 | AZ26: -457.07 | BB26: -693.14 | BC26: -34443.5 | BD26: 22475.25 | BG26: -11968.25 | BH26: -693.14 | BI26: -514.66 | BL26: -1207.8 | BO26: -11968.25 | BP26: -1207.8 | BQ26: -68.219025 | BS26: -1276.019025 | BT26: =SUM(BO26:BR26) -> -13244.26902 | BV26: -13176.05 | BW26: 0
C27: RSVA - Retail Transmission Connection Charge | D27: 1586 | I27: 0 | N27: 0 | O27: 0 | S27: 0 | T27: 0 | X27: 0 | Y27: 0 | AB27: 1980.11 | AC27: 1980.11 | AD27: 0 | AG27: -1070.37 | AH27: -1070.37 | AI27: 1980.11 | AJ27: -9852.81 | AK27: 10586.54 | AM27: -18459.24 | AN27: -1070.37 | AO27: -259.87 | AP27: -1011.34 | AR27: -318.9 | AS27: -18459.24 | AT27: 337.21 | AU27: -8606.43 | AW27: -9515.6 | AX27: -318.9 | AY27: -406.63 | AZ27: -213.3 | BB27: -512.23 | BC27: -9515.6 | BD27: 7483.94 | BG27: -2031.66 | BH27: -512.23 | BI27: -214.9 | BL27: -727.13 | BO27: -2031.66 | BP27: -727.13 | BQ27: -11.580462 | BS27: -738.710462 | BT27: =SUM(BO27:BR27) -> -2770.370462 | BV27: -2758.79 | BW27: 0
C28: RSVA - Power4 | D28: 1588 | I28: 0 | N28: 0 | O28: 0 | S28: 0 | T28: 0 | X28: 0 | Y28: 0 | AB28: 38637.47 | AC28: 38637.47 | AD28: 0 | AG28: -999.85 | AH28: -999.85 | AI28: 38637.47 | AJ28: 32657.65 | AK28: -52129.9 | AL28: -69775.58 | AM28: 53649.44 | AN28: -999.85 | AO28: -355.63 | AP28: -1243.47 | AR28: -112.01 | AS28: 53649.44 | AT28: 72653.58 | AU28: 20991.79 | AV28: =-34190.07+5236.92 -> -28953.15 | AW28: 76358.08 | AX28: -112.01 | AY28: 876.18 | AZ28: 619.9 | BB28: 144.27 | BC28: 76358.08 | BD28: 29287.98 | BG28: 105646.06 | BH28: 144.27 | BI28: 1721.59 | BL28: 1865.86 | BO28: 105646.06 | BP28: 1865.86 | BQ28: 602.182542 | BS28: 2468.042542 | BT28: =IF(BU28="Yes", SUM(BO28:BR28), 0) -> 108114.1025 | BU28: Yes | BV28: 107511.92 | BW28: 0
C29: RSVA - Global Adjustment4 | D29: 1589 | I29: 0 | N29: 0 | O29: 0 | S29: 0 | T29: 0 | X29: 0 | Y29: 0 | AB29: 310413.23 | AC29: 310413.23 | AD29: 0 | AG29: 10831.44 | AH29: 10831.44 | AI29: 310413.23 | AJ29: -44124.78 | AK29: 326898.43 | AL29: 69775.58 | AM29: 9165.6 | AN29: 10831.44 | AO29: 1237.96 | AP29: 10394.76 | AR29: 1674.64 | AS29: 9165.6 | AT29: 88565.87 | AU29: 53290.38 | AV29: 34190.07 | AW29: 78631.16 | AX29: 1674.64 | AY29: 1993.8 | AZ29: 1391.91 | BB29: 2276.53 | BC29: 78631.16 | BD29: 40110.51 | BG29: 118741.67 | BH29: 2276.53 | BI29: 1880.6 | BL29: 4157.13 | BO29: 118741.67 | BP29: 4157.13 | BQ29: 676.827519 | BS29: 4833.957519 | BT29: =IF(BU29="Yes", SUM(BO29:BR29), 0) -> 123575.6275 | BU29: Yes | BV29: 122898.8 | BW29: 0
C30: Disposition and Recovery/Refund of Regulatory Balances (2009)3 | D30: 1595 | I30: 0 | N30: 0 | O30: 0 | S30: 0 | T30: 0 | X30: 0 | Y30: 0 | AC30: 0 | AD30: 0 | AH30: 0 | AI30: 0 | AM30: 0 | AN30: 0 | AR30: 0 | AS30: 0 | AW30: 0 | AX30: 0 | BB30: 0 | BC30: 0 | BG30: 0 | BH30: 0 | BL30: 0 | BO30: 0 | BP30: 0 | BQ30: 0 | BS30: 0 | BT30: =IF(CB7=TRUE, SUM(BO30:BR30), 0) -> 0 | BU30: Yes | BW30: 0
C31: Disposition and Recovery/Refund of Regulatory Balances (2015 and pre-2015)3 | D31: 1595 | I31: 0 | N31: 0 | O31: 0 | S31: 0 | T31: 0 | X31: 0 | Y31: 0 | Z31: 0 | AA31: 0 | AB31: 67641.96 | AC31: 67641.96 | AD31: 0 | AE31: 0 | AF31: 0 | AG31: -76738.65 | AH31: -76738.65 | AI31: 67641.96 | AJ31: 0 | AK31: 67641.96 | AM31: 0 | AN31: -76738.65 | AO31: 0 | AP31: -76583.6 | AQ31: 155.05 | AR31: 1.165290087e-11 | AS31: 0 | AW31: 0 | AX31: 1.165290087e-11 | BB31: 1.165290087e-11 | BC31: 0 | BD31: 0 | BG31: 0 | BH31: 1.165290087e-11 | BL31: 1.165290087e-11 | BO31: 0 | BP31: 1.165290087e-11 | BQ31: 0 | BS31: 1.165290087e-11 | BT31: =IF(BU31="Yes", SUM(BO31:BR31), 0) -> 0 | BU31: No | BV31: 0 | BW31: 0
C32: Disposition and Recovery/Refund of Regulatory Balances (2016)3 | D32: 1595 | I32: 0 | N32: 0 | O32: 0 | S32: =O32+P32-Q32+SUM(R32:R32) -> 0 | T32: 0 | X32: 0 | Y32: 0 | Z32: 0 | AA32: 0 | AB32: -7124 | AC32: =Y32+Z32-AA32+SUM(AB32:AB32) -> -7124 | AD32: =X32 -> 0 | AE32: 0 | AF32: 0 | AG32: -238.62 | AH32: -238.62 | AI32: -7124 | AJ32: 0 | AK32: -4912 | AM32: -2212 | AN32: -238.62 | AO32: -41.27 | AP32: -219.16 | AR32: -60.73 | AS32: -2212 | AU32: -2212 | AW32: 0 | AX32: -60.73 | AZ32: -60.73 | BB32: 7.105427358e-15 | BC32: 0 | BD32: 0 | BG32: 0 | BH32: 7.105427358e-15 | BL32: 7.105427358e-15 | BO32: 0 | BP32: 7.105427358e-15 | BQ32: 0 | BS32: 7.105427358e-15 | BT32: =IF(BU32="Yes", SUM(BO32:BR32), 0) -> 0 | BU32: No | BV32: 0 | BW32: 0
C33: Disposition and Recovery/Refund of Regulatory Balances (2017)3 | D33: 1595 | I33: 0 | N33: 0 | O33: 0 | S33: 0 | T33: 0 | X33: 0 | Y33: 0 | Z33: -52989.61 | AA33: -70317.59 | AB33: 0 | AC33: 17327.98 | AD33: 0 | AE33: 317.31 | AF33: -2420.2 | AH33: 2737.51 | AI33: 17327.98 | AJ33: -28364.59 | AK33: 0 | AM33: -11036.61 | AN33: 2737.51 | AO33: -80.79 | AP33: 0 | AR33: 2656.72 | AS33: -11036.61 | AW33: -11036.61 | AX33: 2656.72 | AY33: -193.56 | BB33: 2463.16 | BC33: -11036.61 | BD33: 0 | BG33: -11036.61 | BH33: 2463.16 | BI33: -118.11 | BL33: 2345.05 | BO33: -11036.61 | BP33: 2345.05 | BQ33: -62.908677 | BS33: 2282.141323 | BT33: -8754.468677 | BU33: Yes | BV33: -8691.56 | BW33: 0
C34: Disposition and Recovery/Refund of Regulatory Balances (2018)3 | D34: 1595 | I34: 0 | N34: 0 | O34: 0 | S34: 0 | T34: 0 | X34: 0 | Y34: 0 | Z34: 0 | AA34: 0 | AB34: 0 | AC34: 0 | AD34: 0 | AE34: 0 | AF34: 0 | AG34: 0 | AH34: 0 | AI34: 0 | AJ34: -406161.08 | AK34: -540271.85 | AM34: 134110.77 | AN34: 0 | AO34: 6446.91 | AP34: 19069.75 | AR34: -12622.84 | AS34: 134110.77 | AT34: -32402.01 | AW34: 101708.76 | AX34: -12622.84 | AY34: 2001.29 | BB34: -10621.55 | BC34: 101708.76 | BD34: -33476.07 | BF34: -70.77 | BG34: 68161.92 | BH34: -10621.55 | BI34: 833.17 | BK34: -0.08 | BL34: -9788.46 | BO34: 68161.92 | BP34: -9788.46 | BQ34: 388.522944 | BS34: -9399.937056 | BT34: 0 | BU34: No | BV34: 58372.86 | BW34: -0.6
C35: Disposition and Recovery/Refund of Regulatory Balances (2019)3 | D35: 1595 | I35: 0 | N35: 0 | O35: 0 | S35: 0 | T35: 0 | X35: 0 | Y35: 0 | Z35: 0 | AA35: 0 | AB35: 0 | AC35: 0 | AD35: 0 | AE35: 0 | AF35: 0 | AG35: 0 | AH35: 0 | AI35: 0 | AJ35: 0 | AM35: 0 | AN35: 0 | AO35: 0 | AP35: 0 | AR35: 0 | AS35: 0 | AT35: -254557.17 | AU35: -241961.36 | AW35: -12595.81 | AX35: 0 | AY35: 2850.88 | AZ35: -5977.93 | BB35: 8828.81 | BC35: -12595.81 | BD35: -13.06 | BF35: -221.39 | BG35: -12830.26 | BH35: 8828.81 | BI35: -124.92 | BK35: -4.14 | BL35: 8699.75 | BO35: -12830.26 | BP35: 8699.75 | BQ35: =BO35*0.0057 -> -73.132482 | BS35: 8626.617518 | BT35: 0 | BU35: No | BV35: -4130.51 | BW35: 0
C36: Disposition and Recovery/Refund of Regulatory Balances (2020)3 | D36: 1595 | I36: 0 | N36: 0 | O36: 0 | S36: 0 | T36: =N36 -> 0 | X36: 0 | Y36: 0 | Z36: 0 | AA36: 0 | AB36: 0 | AC36: 0 | AD36: 0 | AE36: 0 | AH36: 0 | AI36: 0 | AJ36: 0 | AM36: 0 | AN36: 0 | AO36: 0 | AP36: 0 | AR36: 0 | AS36: 0 | AW36: 0 | AX36: 0 | AY36: 0 | AZ36: 0 | BB36: 0 | BC36: 0 | BD36: =-36168.89+32531.36 -> -3637.53 | BG36: -3637.53 | BH36: 0 | BI36: =296.43+1029.28 -> 1325.71 | BL36: 1325.71 | BO36: -3637.53 | BP36: 1325.71 | BQ36: -20.733921 | BS36: 1304.976079 | BT36: 0 | BU36: No | BV36: -2311.82 | BW36: 0
C37: Disposition and Recovery/Refund of Regulatory Balances (2021)3 Not to be disposed of until two years after rate rider has expired and that balance has been audited. Refer to the Filing Requirements for disposition eligibility. | D37: 1595 | I37: 0 | N37: 0 | O37: 0 | S37: 0 | T37: 0 | X37: 0 | Y37: 0 | Z37: 0 | AA37: 0 | AB37: 0 | AC37: 0 | AD37: 0 | AE37: 0 | AF37: 0 | AG37: 0 | AH37: 0 | AI37: 0 | AJ37: 0 | AM37: 0 | AN37: 0 | AO37: 0 | AP37: 0 | AR37: 0 | AS37: 0 | AW37: 0 | AX37: 0 | AY37: 0 | AZ37: 0 | BB37: 0 | BC37: 0 | BD37: 0 | BE37: 0 | BF37: 0 | BG37: 0 | BH37: 0 | BI37: 0 | BJ37: 0 | BK37: 0 | BL37: 0 | BO37: 0 | BP37: 0 | BS37: 0 | BT37: 0 | BU37: No | BW37: =ROUND(BV37-SUM(BG37,BL37),2) -> 0
C39: RSVA - Global Adjustment requested for disposition | D39: 1589 | E39: =IF($BU$29="No",0,E29) -> 0 | F39: =IF($BU$29="No",0,F29) -> 0 | G39: 0 | H39: 0 | I39: 0 | J39: 0 | K39: 0 | L39: 0 | M39: 0 | N39: 0 | O39: 0 | P39: 0 | Q39: 0 | R39: 0 | S39: 0 | T39: 0 | U39: 0 | V39: 0 | W39: 0 | X39: 0 | Y39: 0 | Z39: 0 | AA39: 0 | AB39: 310413.23 | AC39: 310413.23 | AD39: 0 | AE39: 0 | AF39: 0 | AG39: 10831.44 | AH39: 10831.44 | AI39: 310413.23 | AJ39: -44124.78 | AK39: 326898.43 | AL39: 69775.58 | AM39: 9165.6 | AN39: 10831.44 | AO39: 1237.96 | AP39: 10394.76 | AQ39: 0 | AR39: 1674.64 | AS39: 9165.6 | AT39: 88565.87 | AU39: 53290.38 | AV39: 34190.07 | AW39: 78631.16 | AX39: 1674.64 | AY39: 1993.8 | AZ39: 1391.91 | BA39: 0 | BB39: 2276.53 | BC39: 78631.16 | BD39: 40110.51 | BE39: 0 | BF39: 0 | BG39: 118741.67 | BH39: 2276.53 | BI39: 1880.6 | BJ39: 0 | BK39: 0 | BL39: 4157.13 | BM39: 0 | BN39: 0 | BO39: 118741.67 | BP39: 4157.13 | BQ39: 676.827519 | BR39: =IF($BU$29="No",0,BR29) -> 0 | BS39: =IF($BU$29="No",0,BS29) -> 4833.957519 | BT39: =BT29 -> 123575.6275 | BV39: =BV29 -> 122898.8 | BW39: =ROUND(BV39-SUM(BG39,BL39),2) -> 0
C40: Total Group 1 Balance excluding Account 1589 - Global Adjustment requested for disposition | E40: =SUM(E21:E37)-E24-E29-IF($BU$31="No",E31,0)-IF($BU$32="No",E32,0)-IF($BU$33="No",E33,0)-IF($BU$34="No",E34,0)-IF($BU$35="No",E35,0)-IF($BU$36="No",E36,0)-IF($BU$37="No",E37,0) -> 0 | F40: =SUM(F21:F37)-F24-F29-IF($BU$31="No",F31,0)-IF($BU$32="No",F32,0)-IF($BU$33="No",F33,0)-IF($BU$34="No",F34,0)-IF($BU$35="No",F35,0)-IF($BU$36="No",F36,0)-IF($BU$37="No",F37,0) -> 0 | G40: 0 | H40: 0 | I40: 0 | J40: 0 | K40: 0 | L40: 0 | M40: 0 | N40: 0 | O40: 0 | P40: 0 | Q40: 0 | R40: 0 | S40: 0 | T40: 0 | U40: 0 | V40: 0 | W40: 0 | X40: 0 | Y40: 0 | Z40: -52989.61 | AA40: -70317.59 | AB40: 102917.44 | AC40: 120245.42 | AD40: 0 | AE40: 317.31 | AF40: -2420.2 | AG40: -5910.69 | AH40: -3173.18 | AI40: 120245.42 | AJ40: -34030.31 | AK40: -70762 | AL40: -69775.58 | AM40: 87201.53 | AN40: -3173.18 | AO40: 741.83 | AP40: -6565.58 | AQ40: 0 | AR40: 4134.23 | AS40: 87201.53 | AT40: 50222.02 | AU40: 103903.86 | AV40: -28953.15 | AW40: 4566.54 | AX40: 4134.23 | AY40: -682.84 | AZ40: 2517.38 | BA40: 0 | BB40: 934.01 | BC40: 4566.54 | BD40: 116602.13 | BE40: 0 | BF40: 0 | BG40: 121168.67 | BH40: 934.01 | BI40: 788.11 | BJ40: 0 | BK40: 0 | BL40: 1722.12 | BM40: 0 | BN40: 0 | BO40: 121168.67 | BP40: 1722.12 | BQ40: 690.661419 | BR40: =SUM(BR21:BR37)-BR24-BR29-IF($BU$31="No",BR31,0)-IF($BU$32="No",BR32,0)-IF($BU$33="No",BR33,0)-IF($BU$34="No",BR34,0)-IF($BU$35="No",BR35,0)-IF($BU$36="No",BR36,0)-IF($BU$37="No",BR37,0) -> 0 | BS40: =SUM(BS21:BS37)-BS24-BS29-IF($BU$31="No",BS31,0)-IF($BU$32="No",BS32,0)-IF($BU$33="No",BS33,0)-IF($BU$34="No",BS34,0)-IF($BU$35="No",BS35,0)-IF($BU$36="No",BS36,0)-IF($BU$37="No",BS37,0) -> 2412.781419 | BT40: =SUM(BT21:BT37)-BT29 -> 123581.4514 | BV40: =SUM(BV21:BV37)-BV29-BV24-BV25 -> 174821.32 | BW40: =ROUND(BV40-SUM(BG40,BL40),2) -> 51930.53
C41: Total Group 1 Balance requested for disposition | E41: =SUM(E39,E40) -> 0 | F41: =SUM(F39,F40) -> 0 | G41: =SUM(G39,G40) -> 0 | H41: 0 | I41: 0 | J41: 0 | K41: 0 | L41: 0 | M41: 0 | N41: 0 | O41: 0 | P41: =SUM(P39,P40) -> 0 | Q41: =SUM(Q39,Q40) -> 0 | R41: =SUM(R39,R40) -> 0 | S41: 0 | T41: 0 | U41: 0 | V41: 0 | W41: 0 | X41: 0 | Y41: 0 | Z41: -52989.61 | AA41: =SUM(AA39,AA40) -> -70317.59 | AB41: 413330.67 | AC41: 430658.65 | AD41: 0 | AE41: 317.31 | AF41: -2420.2 | AG41: 4920.75 | AH41: 7658.26 | AI41: 430658.65 | AJ41: -78155.09 | AK41: =SUM(AK39,AK40) -> 256136.43 | AL41: 0 | AM41: 96367.13 | AN41: 7658.26 | AO41: 1979.79 | AP41: 3829.18 | AQ41: 0 | AR41: 5808.87 | AS41: 96367.13 | AT41: 138787.89 | AU41: =SUM(AU39,AU40) -> 157194.24 | AV41: 5236.92 | AW41: 83197.7 | AX41: 5808.87 | AY41: 1310.96 | AZ41: 3909.29 | BA41: 0 | BB41: 3210.54 | BC41: 83197.7 | BD41: 156712.64 | BE41: =SUM(BE39,BE40) -> 0 | BF41: 0 | BG41: 239910.34 | BH41: 3210.54 | BI41: 2668.71 | BJ41: 0 | BK41: 0 | BL41: 5879.25 | BM41: =SUM(BM39,BM40) -> 0 | BN41: 0 | BO41: 239910.34 | BP41: 5879.25 | BQ41: 1367.488938 | BR41: 0 | BS41: 7246.738938 | BT41: =SUM(BT39,BT40) -> 247157.0789 | BV41: =SUM(BV39,BV40) -> 297720.12 | BW41: =ROUND(BV41-SUM(BG41,BL41),2) -> 51930.53
C43: RSVA - Global Adjustment | E43: =E29 -> 0 | F43: =F29 -> 0 | G43: 0 | H43: 0 | I43: 0 | J43: 0 | K43: 0 | L43: 0 | M43: 0 | N43: 0 | O43: 0 | P43: 0 | Q43: 0 | R43: 0 | S43: 0 | T43: 0 | U43: 0 | V43: 0 | W43: 0 | X43: 0 | Y43: 0 | Z43: 0 | AA43: 0 | AB43: 310413.23 | AC43: 310413.23 | AD43: 0 | AE43: 0 | AF43: 0 | AG43: 10831.44 | AH43: 10831.44 | AI43: 310413.23 | AJ43: -44124.78 | AK43: 326898.43 | AL43: 69775.58 | AM43: 9165.6 | AN43: 10831.44 | AO43: 1237.96 | AP43: 10394.76 | AQ43: 0 | AR43: 1674.64 | AS43: 9165.6 | AT43: 88565.87 | AU43: 53290.38 | AV43: 34190.07 | AW43: 78631.16 | AX43: 1674.64 | AY43: 1993.8 | AZ43: 1391.91 | BA43: 0 | BB43: 2276.53 | BC43: 78631.16 | BD43: 40110.51 | BE43: 0 | BF43: 0 | BG43: 118741.67 | BH43: 2276.53 | BI43: 1880.6 | BJ43: 0 | BK43: 0 | BL43: 4157.13 | BM43: 0 | BN43: 0 | BO43: 118741.67 | BP43: 4157.13 | BQ43: 676.827519 | BR43: =BR29 -> 0 | BS43: =BS29 -> 4833.957519
C44: Total Group 1 Balance excluding Account 1589 - Global Adjustment | E44: =SUM(E21:E37)-E29 -> 0 | F44: =SUM(F21:F37)-F29 -> 0 | G44: 0 | H44: 0 | I44: 0 | J44: 0 | K44: 0 | L44: 0 | M44: 0 | N44: 0 | O44: 0 | P44: 0 | Q44: 0 | R44: 0 | S44: 0 | T44: 0 | U44: 0 | V44: 0 | W44: 0 | X44: 0 | Y44: 0 | Z44: -52989.61 | AA44: -70317.59 | AB44: 163435.4 | AC44: 180763.38 | AD44: 0 | AE44: 317.31 | AF44: -2420.2 | AG44: -82887.96 | AH44: -80150.45 | AI44: 180763.38 | AJ44: -440191.39 | AK44: -548303.89 | AL44: -69775.58 | AM44: 219100.3 | AN44: -80150.45 | AO44: 7147.47 | AP44: -64298.59 | AQ44: 155.05 | AR44: -8549.34 | AS44: 219100.3 | AT44: -236737.16 | AU44: -140269.5 | AV44: -28953.15 | AW44: 93679.49 | AX44: -8549.34 | AY44: 4169.33 | AZ44: -3521.28 | BA44: 0 | BB44: -858.73 | BC44: 93679.49 | BD44: 79475.47 | BE44: 0 | BF44: -292.16 | BG44: 172862.8 | BH44: -858.73 | BI44: 2822.07 | BJ44: 0 | BK44: -4.22 | BL44: 1959.12 | BM44: 0 | BN44: 0 | BO44: 172862.8 | BP44: 1959.12 | BQ44: 985.31796 | BR44: =SUM(BR21:BR37)-BR29 -> 0 | BS44: =SUM(BS21:BS37)-BS29 -> 2944.43796
C45: Total Group 1 Balance | E45: =SUM(E43:E44) -> 0 | F45: =SUM(F43:F44) -> 0 | G45: 0 | H45: 0 | I45: 0 | J45: 0 | K45: 0 | L45: 0 | M45: 0 | N45: 0 | O45: 0 | P45: 0 | Q45: 0 | R45: 0 | S45: 0 | T45: 0 | U45: 0 | V45: 0 | W45: 0 | X45: 0 | Y45: 0 | Z45: -52989.61 | AA45: -70317.59 | AB45: 473848.63 | AC45: 491176.61 | AD45: 0 | AE45: 317.31 | AF45: -2420.2 | AG45: -72056.52 | AH45: -69319.01 | AI45: 491176.61 | AJ45: -484316.17 | AK45: -221405.46 | AL45: 0 | AM45: 228265.9 | AN45: -69319.01 | AO45: 8385.43 | AP45: -53903.83 | AQ45: 155.05 | AR45: -6874.7 | AS45: 228265.9 | AT45: -148171.29 | AU45: -86979.12 | AV45: 5236.92 | AW45: 172310.65 | AX45: -6874.7 | AY45: 6163.13 | AZ45: -2129.37 | BA45: 0 | BB45: 1417.8 | BC45: 172310.65 | BD45: 119585.98 | BE45: 0 | BF45: -292.16 | BG45: 291604.47 | BH45: 1417.8 | BI45: 4702.67 | BJ45: 0 | BK45: -4.22 | BL45: 6116.25 | BM45: 0 | BN45: 0 | BO45: 291604.47 | BP45: 6116.25 | BQ45: 1662.145479 | BR45: =SUM(BR43:BR44) -> 0 | BS45: =SUM(BS43:BS44) -> 7778.395479 | BV45: =SUM(BV41,BV43) -> 297720.12
A46: 29 | C46: LRAM Variance Account (only input amounts if applying for disposition of this account) | D46: 1568 | S46: =O46+P46-Q46+SUM(R46:R46) -> 0 | X46: =T46+U46-V46+W46 -> 0 | Y46: =S46 -> 0 | Z46: 0 | AA46: 0 | AB46: 119727.52 | AC46: =Y46+Z46-AA46+SUM(AB46:AB46) -> 119727.52 | AD46: =X46 -> 0 | AE46: 2821.12 | AF46: 2420.02 | AG46: 2165.74 | AH46: =AD46+AE46-AF46+AG46 -> 2566.84 | AI46: =AC46 -> 119727.52 | AJ46: 86979.12 | AK46: 119727.55 | AL46: 0.04 | AM46: =AI46+AJ46-AK46+SUM(AL46:AL46) -> 86979.13 | AN46: =AH46 -> 2566.84 | AO46: 2070.1 | AP46: 3124.5 | AQ46: 557.66 | AR46: =AN46+AO46-AP46+AQ46 -> 2070.1 | AS46: =AM46 -> 86979.13 | AT46: 32531.36 | AU46: 86979.13 | AW46: =AS46+AT46-AU46+SUM(AV46:AV46) -> 32531.36 | AX46: =AR46 -> 2070.1 | AY46: 1029.28 | AZ46: 2130.98 | BA46: 60.88 | BB46: =AX46+AY46-AZ46+BA46 -> 1029.28 | BC46: =AW46 -> 32531.36 | BE46: 32531.36 | BG46: =BC46+BD46-BE46+SUM(BF46:BF46) -> 0 | BH46: =BB46 -> 1029.28 | BJ46: 1029.28 | BL46: =BH46+BI46-BJ46+BK46 -> -6.821210263e-13 | BO46: =BG46-BM46 -> 0 | BP46: =BL46-BN46 -> -6.821210263e-13 | BS46: =BP46+BQ46+BR46 -> -6.821210263e-13 | BT46: =SUM(BO46:BR46) -> -6.821210263e-13 | BW46: =ROUND(BV46-SUM(BG46,BL46),2) -> 0
C48: Total Group 1 Balance including Account 1568 - LRAMVA requested for disposition | E48: =SUM(E41,E46) -> 0 | F48: =SUM(F41,F46) -> 0 | G48: 0 | H48: 0 | I48: 0 | J48: 0 | K48: 0 | L48: 0 | M48: 0 | N48: 0 | O48: 0 | P48: 0 | Q48: 0 | R48: 0 | S48: 0 | T48: 0 | U48: 0 | V48: 0 | W48: 0 | X48: 0 | Y48: 0 | Z48: -52989.61 | AA48: -70317.59 | AB48: 533058.19 | AC48: 550386.17 | AD48: 0 | AE48: 3138.43 | AF48: -0.18 | AG48: 7086.49 | AH48: 10225.1 | AI48: 550386.17 | AJ48: 8824.03 | AK48: 375863.98 | AL48: 0.04 | AM48: 183346.26 | AN48: 10225.1 | AO48: 4049.89 | AP48: 6953.68 | AQ48: 557.66 | AR48: 7878.97 | AS48: 183346.26 | AT48: 171319.25 | AU48: 244173.37 | AV48: 5236.92 | AW48: 115729.06 | AX48: 7878.97 | AY48: 2340.24 | AZ48: 6040.27 | BA48: 60.88 | BB48: 4239.82 | BC48: 115729.06 | BD48: 156712.64 | BE48: 32531.36 | BF48: 0 | BG48: 239910.34 | BH48: 4239.82 | BI48: 2668.71 | BJ48: 1029.28 | BK48: 0 | BL48: 5879.25 | BM48: 0 | BN48: 0 | BO48: 239910.34 | BP48: 5879.25 | BQ48: 1367.488938 | BR48: =SUM(BR41,BR46) -> 0 | BS48: =SUM(BS41,BS46) -> 7246.738938 | BT48: =SUM(BT41,BT46) -> 247157.0789 | BV48: =SUM(BV41,BV46) -> 297720.12 | BW48: =ROUND(SUM(BW41,BW46),2) -> 51930.53
C51: For all OEB-Approved dispositions, please ensure that the disposition amount has the same sign (e.g: debit balances are to have a positive figure and credit balance are to have a negative figure) as per the related OEB decision.
B54: 1 | C54: Please provide explanations for the nature of the adjustments. If the adjustment relates to previously OEB-Approved disposed balances, please provide amounts for adjustments and include supporting documentations.
B55: 2 | C55: If the LDC’s rate year begins on January 1, 2022, the projected interest is recorded from January 1, 2021 to December 31, 2021 on the December 31, 2020 balances adjusted to remove balances approved for disposition in the 2021 rate decision. 2) If the LDC’s rate year begins on May 1, 2022, the projected interest is recorded from January 1, 2021 to April 30, 2022 on the December 31, 2020 balances adjusted to remove balances approved for disposition in the 2021 rate decision.
B56: 3 | C56: The individual sub-accounts as well as the total for all Account 1595 sub-accounts is to agree to the RRR data. Differences need to be explained. For each Account 1595 sub-account, the transfer of the balance approved for disposition into Account 1595 is to be recorded in "OEB Approved Disposition" column. The recovery/refund is to be recorded in the "Transaction" column. Any vintage year of Account 1595 is only to be disposed once on a final basis. No further dispositions of these accounts are generally expected thereafter, unless justified by the distributor. Refer to Filing Requirements for disposition eligibility of the sub-accounts. Select "yes" column BU if the sub-account is requested for disposition. Note that Accounts 1595 (2019), (2020) and (2021) will not be eligilble for disposition in the 2022 rate application.
B57: 4 | C57: New accounting guidance effective January 1, 2019 for Accounts 1588 and 1589 was issued Feb. 21, 2019 titled Accounting Procedures Handbook Update - Accounting Guidance Related to Commodity Pass-Through Accounts 1588 & 1589. The amount in the "Transactions" column in this DVA Continuity Schedule are to equal the transactions in the General Ledger (excluding any amounts approved for disposition, which is shown separately in the "OEB Approved Disposition" columns). Any true-ups/adjustments/reversals needed to derive the claim amount must be shown separately in the "Principal Adjustments" columns of this DVA Continuity Schedule.
B58: 5 | C58: RRR balance for Account 1580 RSVA - Wholesale Market Service Charge should equal to the control account as reported in the RRR. This would include the balance for Account 1580,Variance WMS – Sub-account CBR Class B.

Sheet 2016 List (hidden)
A1: Alectra Utilities Corporation | B1: HHPNS717 | I1: RESIDENTIAL SERVICE CLASSIFICATION | Q1: RESIDENTIAL SERVICE CLASSIFICATION | X1: 8 | Y1: 0
A2: Algoma Power Inc. | B2: WKBSV849 | C2: Brampton Rate Zone | D2: X | I2: GENERAL SERVICE LESS THAN 50 KW SERVICE CLASSIFICATION | Q2: GENERAL SERVICE LESS THAN 50 KW SERVICE CLASSIFICATION | AA2: Retail Transmission Rate - Line and Transformation Connection Service Rate
A3: Atikokan Hydro Inc. | B3: NJYBW716 | C3: Enersource Rate Zone | D3: X | I3: GENERAL SERVICE 50 TO 2,999 KW SERVICE CLASSIFICATION | Q3: GENERAL SERVICE 50 TO 2,999 KW SERVICE CLASSIFICATION | AA3: Retail Transmission Rate - Line and Transformation Connection Service Rate - < 1,000 kW
A4: Bluewater Power Distribution Corporation | B4: GQQHM388 | C4: Horizon Utilities Rate Zone | D4: X | I4: GENERAL SERVICE 3,000 TO 4,999 KW SERVICE CLASSIFICATION | Q4: GENERAL SERVICE 3,000 TO 4,999 KW SERVICE CLASSIFICATION | AA4: Retail Transmission Rate - Line and Transformation Connection Service Rate - Interval Metered
A5: Brantford Power Inc. | B5: SFXZP935 | C5: PowerStream Rate Zone | D5: X | I5: UNMETERED SCATTERED LOAD SERVICE CLASSIFICATION | Q5: UNMETERED SCATTERED LOAD SERVICE CLASSIFICATION | AA5: Retail Transmission Rate - Line and Transformation Connection Service Rate - Interval Metered (1,000 to 4,999 kW)
A6: Burlington Hydro Inc. | B6: OARZC118 | C6: Guelph Rate Zone | D6: X | I6: SENTINEL LIGHTING SERVICE CLASSIFICATION | Q6: SENTINEL LIGHTING SERVICE CLASSIFICATION | AA6: Retail Transmission Rate - Line and Transformation Connection Service Rate - Interval Metered < 1,000 kW
A7: Canadian Niagara Power Inc. | B7: HJHBH994 | I7: STREET LIGHTING SERVICE CLASSIFICATION | Q7: STREET LIGHTING SERVICE CLASSIFICATION | AA7: Retail Transmission Rate - Line and Transformation Connection Service Rate - Interval Metered > 1,000 kW
A8: Centre Wellington Hydro Ltd. | B8: KQEEH473 | D8: X | I8: microFIT SERVICE CLASSIFICATION | AA8: Retail Transmission Rate - Line Connection Service Rate
A9: Chapleau Public Utilities Corporation | B9: CPEFQ593 | C9: Goderich Rate Zone | AA9: Retail Transmission Rate - Transformation Connection Service Rate
A10: Cooperative Hydro Embrun Inc. | B10: QXHJU641 | C10: Main Rate Zone | D10: X
A11: E.L.K. Energy Inc. | B11: AVXSO594
A12: Elexicon Energy Inc. | B12: JMNNR431 | C12: For The Whitby Rate Zone | D12: X
A13: Energy+ Inc. | B13: JKBZG525 | C13: Veridian Rate Zone
A14: Entegrus Powerlines Inc. | B14: YEOQG654
A15: ENWIN Utilities Ltd. | B15: PTLUC812 | D15: X
A16: EPCOR Electricity Distribution Ontario Inc. | B16: ADICB565 | D16: X
A17: ERTH Power Corporation | B17: LRECV427 | D17: X
A18: Espanola Regional Hydro Distribution Corporation | B18: KTCNY552 | D18: X
A19: Essex Powerlines Corporation | B19: YEPCI143
A20: Festival Hydro Inc. | B20: GRHTW113 | D20: X
A21: Fort Frances Power Corporation | B21: GMGHU415 | C21: Former Haldimand County Hydro Inc. Service Area | AA21: Retail Transmission Rate - Network Service Rate
A22: Greater Sudbury Hydro Inc. | B22: YTPWF351 | C22: Former Norfolk Power Distribution Inc. Service Area | AA22: Retail Transmission Rate - Network Service Rate - < 1,000 kW
A23: Grimsby Power Incorporated | B23: YCYKQ642 | C23: Former Woodstock Hydro Services Inc. Service Area | AA23: Retail Transmission Rate - Network Service Rate - Interval Metered
A24: Halton Hills Hydro Inc. | B24: ADZFM459 | AA24: Retail Transmission Rate - Network Service Rate - Interval Metered (1,000 to 4,999 kW)
A25: Hearst Power Distribution Co. Ltd. | B25: RVWKN794 | C25: For Former St. Thomas Energy Rate Zone | D25: X | AA25: Retail Transmission Rate - Network Service Rate - Interval Metered < 1,000 kW
A26: Hydro 2000 Inc. | B26: KESKM585 | C26: For Entegrus-Main Rate Zone
A27: Hydro Hawkesbury Inc. | B27: MQFNL784 | AA27: Retail Transmission Rate - Network Service Rate - Interval Metered > 1,000 kW
A28: Hydro One Networks Inc. | B28: FNDHH648 | C28: For Former Midland Power Utility Rate Zone
A29: Hydro Ottawa Limited | B29: PTREM828 | C29: For Newmarket-Tay Power Main Rate Zone | D29: X
A30: InnPower Corporation | B30: UBBYF452
A31: Kingston Hydro Corporation | B31: NSBED625
A32: Kitchener-Wilmot Hydro Inc. | B32: TXKTT167
A33: Lakefront Utilities Inc. | B33: ZHKLA874 | C33: Kenora Rate Zone
A34: Lakeland Power Distribution Ltd. | B34: YLJHT264 | C34: Thunder Bay Rate Zone | D34: X
A35: London Hydro Inc. | B35: YLCEC559
A36: Milton Hydro Distribution Inc. | B36: NHKJF259 | D36: X
A37: Newmarket-Tay Power Distribution Ltd. | B37: SLRXO177 | D37: X
A38: Niagara Peninsula Energy Inc. | B38: UIFEM157
A39: Niagara-on-the-Lake Hydro Inc. | B39: RUZIU984
A40: North Bay Hydro Distribution Limited | B40: KSUYD122 | D40: X
A41: Northern Ontario Wires Inc. | B41: QHCKN852 | D41: X
A42: Oakville Hydro Electricity Distribution Inc. | B42: FUIJX538
A43: Orangeville Hydro Limited | B43: PWKJP953
A44: Orillia Power Distribution Corporation | B44: JEGGW178
A45: Oshawa PUC Networks Inc. | B45: TVKSH414
A46: Ottawa River Power Corporation | B46: DUISI693
A47: Peterborough Distribution Incorporated | B47: PQZCY963 | D47: X
A48: PUC Distribution Inc. | B48: GTLBW445
A49: Renfrew Hydro Inc. | B49: XCFPH269 | D49: X
A50: Rideau St. Lawrence Distribution Inc. | B50: MLWYG784 | D50: X
A51: Sioux Lookout Hydro Inc. | B51: QDKIF127 | D51: X
A52: Synergy North Corporation | B52: AMZEN437
A53: Tillsonburg Hydro Inc. | B53: ACEVX242
A54: Toronto Hydro-Electric System Limited | B54: DSPWZ318 | D54: X
A55: Wasaga Distribution Inc. | B55: OLIUU862 | D55: X
A56: Waterloo North Hydro Inc. | B56: NIOJF461
A57: Welland Hydro-Electric System Corp. | B57: ZYZFO848
A58: Wellington North Power Inc. | B58: ASEGZ471
A59: Westario Power Inc. | B59: IOKHC383 | D59: X
D61: X
D62: X
D66: X
D68: X
D71: X
D72: X

Sheet 4. Billing Det. for Def-Var
R1: =IF(C31="YES", "YES", "NO") -> YES
B2: =IF(J4="Yes",TRUE,FALSE) -> TRUE | G2: Data on this worksheet has been populated using your most recent RRR filing.
G3: If you have identified any issues, please contact the OEB.
G4: Have you confirmed the accuracy of the data below? | J4: Yes
G6: If a distributor uses the actual GA price to bill non-RPP Class B customers for an entire rate class, it must exclude these customers from the allocation of the GA balance and the calculation of the resulting rate riders. These rate classes are not to be charged/refunded the general GA rate rider as they did not contribute to the GA balance.
G12: Please contact the OEB to make adjustments to the IRM rate generator for this situation.
C15: Total Metered kWh | D15: Total Metered kW | E15: Metered kWh for Non-RPP Customers (excluding WMP) | F15: Metered kW for Non-RPP Customers (excluding WMP) | G15: Metered kWh for Wholesale Market Participants (WMP) | H15: Metered kW for Wholesale Market Participants (WMP) | I15: Total Metered kWh less WMP consumption (if applicable) | J15: Total Metered kW less WMP consumption (if applicable) | K15: 1595 Recovery Proportion (2009) 1 | L15: 1595 Recovery Proportion (2015 and pre-2015) 1 | M15: 1595 Recovery Proportion (2016) 1 | N15: 1595 Recovery Proportion (2017) 1 | O15: 1595 Recovery Proportion (2018) 1 | P15: 1595 Recovery Proportion (2019) 1 | Q15: 1595 Recovery Proportion (2020) 1 | R15: 1595 Recovery Proportion (2021) 1 | S15: 1568 LRAM Variance Account Class Allocation ($ amounts) | T15: Number of Customers for Residential and GS<50 classes3
A16: Rate Class | B16: Unit
A17: RESIDENTIAL SERVICE CLASSIFICATION | B17: kWh | C17: 49496752 | D17: 0 | E17: 831365 | F17: 0 | G17: 0 | H17: 0 | I17: =C17-G17 -> 49496752 | J17: 0 | N17: 0.01438037889 | S17: 0 | T17: 6447
A18: GENERAL SERVICE LESS THAN 50 KW SERVICE CLASSIFICATION | B18: kWh | C18: 23240081 | D18: 0 | E18: 4886335 | F18: 0 | G18: 0 | H18: 0 | I18: 23240081 | J18: 0 | N18: 1.162830982 | S18: 0 | T18: 777
A19: GENERAL SERVICE 50 TO 2,999 KW SERVICE CLASSIFICATION | B19: kW | C19: 53199233 | D19: 143721 | E19: 49005846 | F19: 134089 | G19: 2742232 | H19: 5245 | I19: 50457001 | J19: 138476 | N19: -0.112155957 | S19: 0
A20: GENERAL SERVICE 3,000 TO 4,999 KW SERVICE CLASSIFICATION | B20: kW | C20: 14539031 | D20: 38002 | E20: 14539031 | F20: 38002 | G20: 0 | H20: 0 | I20: 14539031 | J20: 38002 | N20: -0.04408974676 | S20: 0
A21: UNMETERED SCATTERED LOAD SERVICE CLASSIFICATION | B21: kWh | C21: 589141 | D21: 0 | E21: 90336 | F21: 0 | G21: 0 | H21: 0 | I21: 589141 | J21: 0 | N21: -0.003684456543 | S21: 0
A22: SENTINEL LIGHTING SERVICE CLASSIFICATION | B22: kW | C22: 35580 | D22: 99 | E22: 12956 | F22: 35 | G22: 0 | H22: 0 | I22: 35580 | J22: 99 | N22: -0.000549918887 | S22: 0
A23: STREET LIGHTING SERVICE CLASSIFICATION | B23: kW | C23: 525999 | D23: 1445 | E23: 525999 | F23: 1445 | G23: 0 | H23: 0 | I23: 525999 | J23: 1445 | N23: -0.01673128214 | S23: 0
B24: Total | C24: =SUM($C$17:$C$23) -> 141625817 | D24: =SUM($D$17:$D$23) -> 183267 | E24: =SUM($E$17:$E$23) -> 69891868 | F24: =SUM($F$17:$F$23) -> 173571 | G24: =SUM($G$17:$G$23) -> 2742232 | H24: =SUM($H$17:$H$23) -> 5245 | I24: =SUM($I$17:$I$23) -> 138883585 | J24: =SUM($J$17:$J$23) -> 178022 | K24: =SUM($K$17:$K$23) -> 0 | L24: =SUM($L$17:$L$23) -> 0 | M24: =SUM($M$17:$M$23) -> 0 | N24: =SUM($N$17:$N$23) -> 1 | O24: =SUM($O$17:$O$23) -> 0 | P24: =SUM($P$17:$P$23) -> 0 | Q24: =SUM($Q$17:$Q$23) -> 0 | R24: =SUM($R$17:$R$23) -> 0 | S24: =SUM($S$17:$S$23) -> 0 | T24: =SUM($T$17:$T$23) -> 7224
L25: =IF($L$24<>1,"Does not equal 100%","") -> Does not equal 100% | M25: =IF($M$24<>1,"Does not equal 100%","") -> Does not equal 100% | N25: =IF($N$24<>1,"Does not equal 100%","") ->  | O25: =IF($O$24<>1,"Does not equal 100%","") -> Does not equal 100% | P25: =IF($P$24<>1,"Does not equal 100%","") -> Does not equal 100% | Q25: =IF($Q$24<>1,"Does not equal 100%","") -> Does not equal 100% | R25: =IF($R$24<>1,"Does not equal 100%","") -> Does not equal 100%
A26: Threshold Test
A27: Total Claim (including Account 1568)
A28: Total Claim for Threshold Test (All Group 1 Accounts) | C28: 247157.0789
A29: Threshold Test (Total claim per kWh) 2 | C29: 0.001745141417
A31: Currently, the threshold test has been met and the default is that Group 1 account balances will be disposed. If you are requesting not to dispose of the Group 1 account balances, please select NO and provide detailed reasons in the manager's summary. | C31: YES
A35: 1 Residual Account balance to be allocated to rate classes in proportion to the recovery share as established when rate riders were implemented.
A36: 2 The Threshold Test does not include the amount in 1568.
A37: 3 The proportion of customers for the Residential and GS<50 Classes will be used to allocate Account 1551.

Sheet 5. Allocating Def-Var Balances
A11: No input required. This workshseet allocates the deferral/variance account balances (Group 1 and Account 1568) to the appropriate classes as per EDDVAR dated July 31, 2009.
A13: Allocation of Group 1 Accounts (including Account 1568)
C14: % of Total kWh | D14: % of Total non-RPP kWh | E14: % of Customer Numbers ** | F14: % of Total kWh adjusted for WMP | I14: allocated based on Total less WMP | N14: allocated based on Total less WMP | O14: 1595_(2009) | P14: 1595_(2015 and pre-2015) | Q14: 1595_(2016) | R14: 1595_(2017) | S14: 1595_(2018) | T14: 1595_(2019) | U14: 1595_(2020) | V14: 1595_(2021) | W14: 1568
A15: Rate Class | G15: 1550 | H15: 1551 | I15: 1580 | J15: 1580 (Class A) | K15: 1580 (Class B) | L15: 1584 | M15: 1586 | N15: 1588
A17: RESIDENTIAL SERVICE CLASSIFICATION | C17: 0.3494896132 | D17: 0.0118950176 | E17: 0.8924418605 | F17: 0.3563902242 | G17: 39851.53552 | H17: -8296.907792 | I17: -22985.20682 | J17: 0 | L17: -4628.734458 | M17: -968.2157011 | N17: 38530.80925 | P17: 0 | Q17: 0 | R17: -125.8925766 | S17: 0 | T17: 0 | U17: 0 | V17: 0 | W17: 0
A18: GENERAL SERVICE LESS THAN 50 KW SERVICE CLASSIFICATION | C18: 0.1640949475 | D18: 0.06991278299 | E18: 0.1075581395 | F18: 0.1673349734 | G18: 18711.38764 | H18: -999.9530563 | I18: -10792.18427 | J18: 0 | L18: -2173.31763 | M18: -454.6037954 | N18: 18091.27047 | P18: 0 | Q18: 0 | R18: -10179.96741 | S18: 0 | T18: 0 | U18: 0 | V18: 0 | W18: 0
A19: GENERAL SERVICE 50 TO 2,999 KW SERVICE CLASSIFICATION | C19: 0.3756323114 | D19: 0.7011666364 | E19: 0 | F19: 0.3633042811 | G19: 42832.53018 | H19: 0 | I19: -23431.12541 | J19: 0 | L19: -4974.975387 | M19: -1040.64066 | N19: 39278.3163 | P19: 0 | Q19: 0 | R19: 981.8658125 | S19: 0 | T19: 0 | U19: 0 | V19: 0 | W19: 0
A20: GENERAL SERVICE 3,000 TO 4,999 KW SERVICE CLASSIFICATION | C20: 0.1026580556 | D20: 0.208021783 | E20: 0 | F20: 0.1046850209 | G20: 11705.87335 | H20: 0 | I20: -6751.607349 | J20: 0 | L20: -1359.630906 | M20: -284.400845 | N20: 11317.92709 | P20: 0 | Q20: 0 | R20: 385.982307 | S20: 0 | T20: 0 | U20: 0 | V20: 0 | W20: 0
A21: UNMETERED SCATTERED LOAD SERVICE CLASSIFICATION | C21: 0.004159841846 | D21: 0.001292510883 | E21: 0 | F21: 0.004241977193 | G21: 474.3376594 | H21: 0 | I21: -273.5841684 | J21: 0 | L21: -55.09406451 | M21: -11.52430298 | N21: 458.6175572 | P21: 0 | Q21: 0 | R21: 32.25545939 | S21: 0 | T21: 0 | U21: 0 | V21: 0 | W21: 0
A22: SENTINEL LIGHTING SERVICE CLASSIFICATION | C22: 0.0002512253822 | D22: 0.0001853720665 | E22: 0 | F22: 0.0002561857832 | G22: 28.64668037 | H22: 0 | I22: -16.5225722 | J22: 0 | L22: -3.327296547 | M22: -0.695987378 | N22: 27.69729604 | P22: 0 | Q22: 0 | R22: 4.814247671 | S22: 0 | T22: 0 | U22: 0 | V22: 0 | W22: 0
A23: STREET LIGHTING SERVICE CLASSIFICATION | C23: 0.003714005053 | D23: 0.007525897004 | E23: 0 | F23: 0.003787337431 | G23: 423.4998659 | H23: 0 | I23: -244.2624075 | J23: 0 | L23: -49.18928208 | M23: -10.2891699 | N23: 409.4645874 | P23: 0 | Q23: 0 | R23: 146.4734854 | S23: 0 | T23: 0 | U23: 0 | V23: 0 | W23: 0
A25: Total | C25: =SUM($C$17:$C$23) -> 1 | D25: =SUM($D$17:$D$23) -> 1 | E25: =SUM($E$17:$E$23) -> 1 | F25: =SUM($F$17:$F$23) -> 1 | G25: =SUM($G$17:$G$23) -> 114027.8109 | H25: =SUM($H$17:$H$23) -> -9296.860848 | I25: =SUM($I$17:$I$23) -> -64494.49301 | J25: =SUM($J$17:$J$23) -> 0 | K25: =SUM($K$17:$K$23) -> 0 | L25: =SUM($L$17:$L$23) -> -13244.26902 | M25: =SUM($M$17:$M$23) -> -2770.370462 | N25: =SUM($N$17:$N$23) -> 108114.1025 | O25: =SUM($O$17:$O$23) -> 0 | P25: =SUM($P$17:$P$23) -> 0 | Q25: =SUM($Q$17:$Q$23) -> 0 | R25: =SUM($R$17:$R$23) -> -8754.468677 | S25: =SUM($S$17:$S$23) -> 0 | T25: =SUM($T$17:$T$23) -> 0 | U25: =SUM($U$17:$U$23) -> 0 | V25: =SUM($V$17:$V$23) -> 0 | W25: =SUM($W$17:$W$23) -> 0
A28: ** Used to allocate Account 1551 as this account records the variances arising from the Smart Metering Entity Charges to Residential and GS<50 customers.

Sheet 6. Class A Consumption Data
A14: 1a | B14: The year Account 1589 GA was last disposed | C14: ='1. Information Sheet'!F34 -> 2017
C16: Years since Account 1589 GA balance was last disposed (up to 2016) | F16: 2016 | H16: 2015 | J16: 2014 | L16: 2013 | N16: 2012
A17: 1b | B17: The year Account 1580 CBR Class B was last disposed | C17: ='1. Information Sheet'!F42 -> 2017 | D17: Note that the sub-account was established in 2015.
A19: 2a | B19: Did you have any customers who transitioned between Class A and Class B (transition customers) during the period the Account 1589 GA balance accumulated (i.e. from the year after the balance was last disposed per #1a above to the current year requested for disposition)? | C19: Yes | D19: (If you received approval to dispose of the CBR Class B account balance as at December 31, 2017, the period the GA variance accumulated would be 2018 to 2020.)
A21: 2b | B21: Did you have any customers who transitioned between Class A and Class B (transition customers) during the period the Account 1580, sub-account CBR Class B balance accumulated (i.e. from the year after the balance was last disposed per #1b above to the current year requested for disposition)? | C21: Yes | D21: (If you received approval to dispose of the CBR Class B account balance as at December 31, 2017, the period the GA variance accumulated would be 2018 to 2020.)
A25: 3a | B25: Enter the number of transition customer you had during the period the Account 1589 GA or Account 1580 CBR B balance accumulated (i.e. from the year after the balance was last disposed per #1a/1b above to the current year requested for disposition). | C25: 2
C27: Transition Customers - Non-loss Adjusted Billing Determinants by Customer
C28: Customer | D28: Rate Class | F28: 2020 | H28: 2019 | J28: 2018 | L28: 2017 | N28: 2016
F29: July to December | G29: January to June | H29: July to December | I29: January to June | J29: July to December | K29: January to June | L29: July to December | M29: January to June | N29: July to December | O29: January to June
A30: =IF(AND(F32=G32,H32=I32,J32=K32,F32="A"),"2016 - kwh",IF(AND(F32=G32,H32=I32,J32<>K32,F32="A"),"2017 - kwh",IF(AND(F32=G32,H32<>I32,F32="A"),"2018 - kwh","N/A"))) -> 2017 - kwh | B30: =IF(AND(F32="A",G32="A"),"A","") -> A | C30: Customer 1 | D30: GENERAL SERVICE 50 TO 2,999 KW SERVICE CLASSIFICATION | E30: kWh | F30: 1879472 | G30: 1915210 | H30: 1885089.6 | I30: 1997133 | J30: 2011441.8 | K30: 1906703.4 | AA30: =IF(AND(F32=G32,H32=I32,F32="A"),"2016 - kwh","") -> 2016 - kwh | AB30: =IF(OR(B30="2017 - kwh",B30="2018 - kwh"),"2016 - kwh","") -> 
A31: =IF(AND(F32=G32,H32=I32,J32=K32,F32="A"),"2016 - kw",IF(AND(F32=G32,H32=I32,J32<>K32,F32="A"),"2017 - kw",IF(AND(F32=G32,H32<>I32,F32="A"),"2018 - kw","N/A"))) -> 2017 - kw | B31: =IF(AND(F32="A",G32="A"),"A","") -> A | D31: =D30 & "kW" -> GENERAL SERVICE 50 TO 2,999 KW SERVICE CLASSIFICATIONkW | E31: kW | F31: 4745.5 | G31: 4851.4 | H31: 4808.16 | I31: 4749.84 | J31: 4961.52 | K31: 4706.64 | AA31: =IF(AND(F32=G32,H32=I32,F32="A"),"2016 - kw","") -> 2016 - kw | AB31: =IF(OR(B31="2017 - kw",B31="2018 - kw"),"2016 - kw","") -> 
E32: Class A/B | F32: A | G32: A | H32: A | I32: A | J32: A | K32: B
A33: =IF(AND(F35=G35,H35=I35,J35=K35,F35="A"),"2016 - kwh",IF(AND(F35=G35,H35=I35,J35<>K35,F35="A"),"2017 - kwh",IF(AND(F35=G35,H35<>I35,F35="A"),"2018 - kwh","N/A"))) -> 2017 - kwh | B33: =IF(AND(F35="A",G35="A"),"A","") -> A | C33: Customer 2 | D33: GENERAL SERVICE 3,000 TO 4,999 KW SERVICE CLASSIFICATION | E33: kWh | F33: 7474444 | G33: 7064587 | H33: 8249023.2 | I33: 9852331.2 | J33: 8805124.8 | K33: 10194816 | AA33: =IF(AND(F35=G35,H35=I35,F35="A"),"2016 - kwh","") -> 2016 - kwh | AB33: =IF(OR(B33="2017 - kwh",B33="2018 - kwh"),"2016 - kwh","") -> 
A34: =IF(AND(F35=G35,H35=I35,J35=K35,F35="A"),"2016 - kw",IF(AND(F35=G35,H35=I35,J35<>K35,F35="A"),"2017 - kw",IF(AND(F35=G35,H35<>I35,F35="A"),"2018 - kw","N/A"))) -> 2017 - kw | B34: =IF(AND(F35="A",G35="A"),"A","") -> A | D34: =D33 & "kW" -> GENERAL SERVICE 3,000 TO 4,999 KW SERVICE CLASSIFICATIONkW | E34: kW | F34: 18427.1 | G34: 19575.2 | H34: 20318.69 | I34: 22281.6 | J34: 21280.64 | K34: 22608.62 | AA34: =IF(AND(F35=G35,H35=I35,F35="A"),"2016 - kw","") -> 2016 - kw | AB34: =IF(OR(B34="2017 - kw",B34="2018 - kw"),"2016 - kw","") -> 
E35: Class A/B | F35: A | G35: A | H35: A | I35: A | J35: A | K35: B
A36: =IF(AND(F38=G38,H38=I38,J38=K38,F38="A"),"2016 - kwh",IF(AND(F38=G38,H38=I38,J38<>K38,F38="A"),"2017 - kwh",IF(AND(F38=G38,H38<>I38,F38="A"),"2018 - kwh","N/A"))) -> N/A | B36: =IF(AND(F38="A",G38="A"),"A","") ->  | C36: Customer 3 | E36: kWh | AA36: =IF(AND(F38=G38,H38=I38,F38="A"),"2016 - kwh","") ->  | AB36: =IF(OR(B36="2017 - kwh",B36="2018 - kwh"),"2016 - kwh","") -> 
A37: =IF(AND(F38=G38,H38=I38,J38=K38,F38="A"),"2016 - kw",IF(AND(F38=G38,H38=I38,J38<>K38,F38="A"),"2017 - kw",IF(AND(F38=G38,H38<>I38,F38="A"),"2018 - kw","N/A"))) -> N/A | B37: =IF(AND(F38="A",G38="A"),"A","") ->  | D37: =D36 & "kW" -> kW | E37: kW | AA37: =IF(AND(F38=G38,H38=I38,F38="A"),"2016 - kw","") ->  | AB37: =IF(OR(B37="2017 - kw",B37="2018 - kw"),"2016 - kw","") -> 
E38: Class A/B
A39: =IF(AND(F41=G41,H41=I41,J41=K41,F41="A"),"2016 - kwh",IF(AND(F41=G41,H41=I41,J41<>K41,F41="A"),"2017 - kwh",IF(AND(F41=G41,H41<>I41,F41="A"),"2018 - kwh","N/A"))) -> N/A | B39: =IF(AND(F41="A",G41="A"),"A","") ->  | C39: Customer 4 | E39: kWh | AA39: =IF(AND(F41=G41,H41=I41,F41="A"),"2016 - kwh","") ->  | AB39: =IF(OR(B39="2017 - kwh",B39="2018 - kwh"),"2016 - kwh","") -> 
A40: =IF(AND(F41=G41,H41=I41,J41=K41,F41="A"),"2016 - kw",IF(AND(F41=G41,H41=I41,J41<>K41,F41="A"),"2017 - kw",IF(AND(F41=G41,H41<>I41,F41="A"),"2018 - kw","N/A"))) -> N/A | B40: =IF(AND(F41="A",G41="A"),"A","") ->  | D40: =D39 & "kW" -> kW | E40: kW | AA40: =IF(AND(F41=G41,H41=I41,F41="A"),"2016 - kw","") ->  | AB40: =IF(OR(B40="2017 - kw",B40="2018 - kw"),"2016 - kw","") -> 
E41: Class A/B
A42: =IF(AND(F44=G44,H44=I44,J44=K44,F44="A"),"2016 - kwh",IF(AND(F44=G44,H44=I44,J44<>K44,F44="A"),"2017 - kwh",IF(AND(F44=G44,H44<>I44,F44="A"),"2018 - kwh","N/A"))) -> N/A | B42: =IF(AND(F44="A",G44="A"),"A","") ->  | C42: Customer 5 | E42: kWh | AA42: =IF(AND(F44=G44,H44=I44,F44="A"),"2016 - kwh","") ->  | AB42: =IF(OR(B42="2017 - kwh",B42="2018 - kwh"),"2016 - kwh","") -> 
A43: =IF(AND(F44=G44,H44=I44,J44=K44,F44="A"),"2016 - kw",IF(AND(F44=G44,H44=I44,J44<>K44,F44="A"),"2017 - kw",IF(AND(F44=G44,H44<>I44,F44="A"),"2018 - kw","N/A"))) -> N/A | B43: =IF(AND(F44="A",G44="A"),"A","") ->  | D43: =D42 & "kW" -> kW | E43: kW | AA43: =IF(AND(F44=G44,H44=I44,F44="A"),"2016 - kw","") ->  | AB43: =IF(OR(B43="2017 - kw",B43="2018 - kw"),"2016 - kw","") -> 
E44: Class A/B
A45: =IF(AND(F47=G47,H47=I47,J47=K47,F47="A"),"2016 - kwh",IF(AND(F47=G47,H47=I47,J47<>K47,F47="A"),"2017 - kwh",IF(AND(F47=G47,H47<>I47,F47="A"),"2018 - kwh","N/A"))) -> N/A | B45: =IF(AND(F47="A",G47="A"),"A","") ->  | C45: Customer 6 | E45: kWh | AA45: =IF(AND(F47=G47,H47=I47,F47="A"),"2016 - kwh","") ->  | AB45: =IF(OR(B45="2017 - kwh",B45="2018 - kwh"),"2016 - kwh","") -> 
A46: =IF(AND(F47=G47,H47=I47,J47=K47,F47="A"),"2016 - kw",IF(AND(F47=G47,H47=I47,J47<>K47,F47="A"),"2017 - kw",IF(AND(F47=G47,H47<>I47,F47="A"),"2018 - kw","N/A"))) -> N/A | B46: =IF(AND(F47="A",G47="A"),"A","") ->  | D46: =D45 & "kW" -> kW | E46: kW | AA46: =IF(AND(F47=G47,H47=I47,F47="A"),"2016 - kw","") ->  | AB46: =IF(OR(B46="2017 - kw",B46="2018 - kw"),"2016 - kw","") -> 
E47: Class A/B
A48: =IF(AND(F50=G50,H50=I50,J50=K50,F50="A"),"2016 - kwh",IF(AND(F50=G50,H50=I50,J50<>K50,F50="A"),"2017 - kwh",IF(AND(F50=G50,H50<>I50,F50="A"),"2018 - kwh","N/A"))) -> N/A | B48: =IF(AND(F50="A",G50="A"),"A","") ->  | C48: Customer 7 | E48: kWh | AA48: =IF(AND(F50=G50,H50=I50,F50="A"),"2016 - kwh","") ->  | AB48: =IF(OR(B48="2017 - kwh",B48="2018 - kwh"),"2016 - kwh","") -> 
A49: =IF(AND(F50=G50,H50=I50,J50=K50,F50="A"),"2016 - kw",IF(AND(F50=G50,H50=I50,J50<>K50,F50="A"),"2017 - kw",IF(AND(F50=G50,H50<>I50,F50="A"),"2018 - kw","N/A"))) -> N/A | B49: =IF(AND(F50="A",G50="A"),"A","") ->  | D49: =D48 & "kW" -> kW | E49: kW | AA49: =IF(AND(F50=G50,H50=I50,F50="A"),"2016 - kw","") ->  | AB49: =IF(OR(B49="2017 - kw",B49="2018 - kw"),"2016 - kw","") -> 
E50: Class A/B
A51: =IF(AND(F53=G53,H53=I53,J53=K53,F53="A"),"2016 - kwh",IF(AND(F53=G53,H53=I53,J53<>K53,F53="A"),"2017 - kwh",IF(AND(F53=G53,H53<>I53,F53="A"),"2018 - kwh","N/A"))) -> N/A | B51: =IF(AND(F53="A",G53="A"),"A","") ->  | C51: Customer 8 | E51: kWh | AA51: =IF(AND(F53=G53,H53=I53,F53="A"),"2016 - kwh","") ->  | AB51: =IF(OR(B51="2017 - kwh",B51="2018 - kwh"),"2016 - kwh","") -> 
A52: =IF(AND(F53=G53,H53=I53,J53=K53,F53="A"),"2016 - kw",IF(AND(F53=G53,H53=I53,J53<>K53,F53="A"),"2017 - kw",IF(AND(F53=G53,H53<>I53,F53="A"),"2018 - kw","N/A"))) -> N/A | B52: =IF(AND(F53="A",G53="A"),"A","") ->  | D52: =D51 & "kW" -> kW | E52: kW | AA52: =IF(AND(F53=G53,H53=I53,F53="A"),"2016 - kw","") ->  | AB52: =IF(OR(B52="2017 - kw",B52="2018 - kw"),"2016 - kw","") -> 
E53: Class A/B
A54: =IF(AND(F56=G56,H56=I56,J56=K56,F56="A"),"2016 - kwh",IF(AND(F56=G56,H56=I56,J56<>K56,F56="A"),"2017 - kwh",IF(AND(F56=G56,H56<>I56,F56="A"),"2018 - kwh","N/A"))) -> N/A | B54: =IF(AND(F56="A",G56="A"),"A","") ->  | C54: Customer 9 | E54: kWh | AA54: =IF(AND(F56=G56,H56=I56,F56="A"),"2016 - kwh","") ->  | AB54: =IF(OR(B54="2017 - kwh",B54="2018 - kwh"),"2016 - kwh","") -> 
A55: =IF(AND(F56=G56,H56=I56,J56=K56,F56="A"),"2016 - kw",IF(AND(F56=G56,H56=I56,J56<>K56,F56="A"),"2017 - kw",IF(AND(F56=G56,H56<>I56,F56="A"),"2018 - kw","N/A"))) -> N/A | B55: =IF(AND(F56="A",G56="A"),"A","") ->  | D55: =D54 & "kW" -> kW | E55: kW | AA55: =IF(AND(F56=G56,H56=I56,F56="A"),"2016 - kw","") ->  | AB55: =IF(OR(B55="2017 - kw",B55="2018 - kw"),"2016 - kw","") -> 
E56: Class A/B
A57: =IF(AND(F59=G59,H59=I59,J59=K59,F59="A"),"2016 - kwh",IF(AND(F59=G59,H59=I59,J59<>K59,F59="A"),"2017 - kwh",IF(AND(F59=G59,H59<>I59,F59="A"),"2018 - kwh","N/A"))) -> N/A | B57: =IF(AND(F59="A",G59="A"),"A","") ->  | C57: Customer 10 | E57: kWh | AA57: =IF(AND(F59=G59,H59=I59,F59="A"),"2016 - kwh","") ->  | AB57: =IF(OR(B57="2017 - kwh",B57="2018 - kwh"),"2016 - kwh","") -> 
A58: =IF(AND(F59=G59,H59=I59,J59=K59,F59="A"),"2016 - kw",IF(AND(F59=G59,H59=I59,J59<>K59,F59="A"),"2017 - kw",IF(AND(F59=G59,H59<>I59,F59="A"),"2018 - kw","N/A"))) -> N/A | B58: =IF(AND(F59="A",G59="A"),"A","") ->  | D58: =D57 & "kW" -> kW | E58: kW | AA58: =IF(AND(F59=G59,H59=I59,F59="A"),"2016 - kw","") ->  | AB58: =IF(OR(B58="2017 - kw",B58="2018 - kw"),"2016 - kw","") -> 
E59: Class A/B
A60: =IF(AND(F62=G62,H62=I62,J62=K62,F62="A"),"2016 - kwh",IF(AND(F62=G62,H62=I62,J62<>K62,F62="A"),"2017 - kwh",IF(AND(F62=G62,H62<>I62,F62="A"),"2018 - kwh","N/A"))) -> N/A | B60: =IF(AND(F62="A",G62="A"),"A","") ->  | C60: Customer 11 | E60: kWh | AA60: =IF(AND(F62=G62,H62=I62,F62="A"),"2016 - kwh","") ->  | AB60: =IF(OR(B60="2017 - kwh",B60="2018 - kwh"),"2016 - kwh","") -> 
A61: =IF(AND(F62=G62,H62=I62,J62=K62,F62="A"),"2016 - kw",IF(AND(F62=G62,H62=I62,J62<>K62,F62="A"),"2017 - kw",IF(AND(F62=G62,H62<>I62,F62="A"),"2018 - kw","N/A"))) -> N/A | B61: =IF(AND(F62="A",G62="A"),"A","") ->  | D61: =D60 & "kW" -> kW | E61: kW | AA61: =IF(AND(F62=G62,H62=I62,F62="A"),"2016 - kw","") ->  | AB61: =IF(OR(B61="2017 - kw",B61="2018 - kw"),"2016 - kw","") -> 
E62: Class A/B
A63: =IF(AND(F65=G65,H65=I65,J65=K65,F65="A"),"2016 - kwh",IF(AND(F65=G65,H65=I65,J65<>K65,F65="A"),"2017 - kwh",IF(AND(F65=G65,H65<>I65,F65="A"),"2018 - kwh","N/A"))) -> N/A | B63: =IF(AND(F65="A",G65="A"),"A","") ->  | C63: Customer 12 | E63: kWh | AA63: =IF(AND(F65=G65,H65=I65,F65="A"),"2016 - kwh","") ->  | AB63: =IF(OR(B63="2017 - kwh",B63="2018 - kwh"),"2016 - kwh","") -> 
A64: =IF(AND(F65=G65,H65=I65,J65=K65,F65="A"),"2016 - kw",IF(AND(F65=G65,H65=I65,J65<>K65,F65="A"),"2017 - kw",IF(AND(F65=G65,H65<>I65,F65="A"),"2018 - kw","N/A"))) -> N/A | B64: =IF(AND(F65="A",G65="A"),"A","") ->  | D64: =D63 & "kW" -> kW | E64: kW | AA64: =IF(AND(F65=G65,H65=I65,F65="A"),"2016 - kw","") ->  | AB64: =IF(OR(B64="2017 - kw",B64="2018 - kw"),"2016 - kw","") -> 
E65: Class A/B
A66: =IF(AND(F68=G68,H68=I68,J68=K68,F68="A"),"2016 - kwh",IF(AND(F68=G68,H68=I68,J68<>K68,F68="A"),"2017 - kwh",IF(AND(F68=G68,H68<>I68,F68="A"),"2018 - kwh","N/A"))) -> N/A | B66: =IF(AND(F68="A",G68="A"),"A","") ->  | C66: Customer 13 | E66: kWh | AA66: =IF(AND(F68=G68,H68=I68,F68="A"),"2016 - kwh","") ->  | AB66: =IF(OR(B66="2017 - kwh",B66="2018 - kwh"),"2016 - kwh","") -> 
A67: =IF(AND(F68=G68,H68=I68,J68=K68,F68="A"),"2016 - kw",IF(AND(F68=G68,H68=I68,J68<>K68,F68="A"),"2017 - kw",IF(AND(F68=G68,H68<>I68,F68="A"),"2018 - kw","N/A"))) -> N/A | B67: =IF(AND(F68="A",G68="A"),"A","") ->  | D67: =D66 & "kW" -> kW | E67: kW | AA67: =IF(AND(F68=G68,H68=I68,F68="A"),"2016 - kw","") ->  | AB67: =IF(OR(B67="2017 - kw",B67="2018 - kw"),"2016 - kw","") -> 
E68: Class A/B
A69: =IF(AND(F71=G71,H71=I71,J71=K71,F71="A"),"2016 - kwh",IF(AND(F71=G71,H71=I71,J71<>K71,F71="A"),"2017 - kwh",IF(AND(F71=G71,H71<>I71,F71="A"),"2018 - kwh","N/A"))) -> N/A | B69: =IF(AND(F71="A",G71="A"),"A","") ->  | C69: Customer 14 | E69: kWh | AA69: =IF(AND(F71=G71,H71=I71,F71="A"),"2016 - kwh","") ->  | AB69: =IF(OR(B69="2017 - kwh",B69="2018 - kwh"),"2016 - kwh","") -> 
A70: =IF(AND(F71=G71,H71=I71,J71=K71,F71="A"),"2016 - kw",IF(AND(F71=G71,H71=I71,J71<>K71,F71="A"),"2017 - kw",IF(AND(F71=G71,H71<>I71,F71="A"),"2018 - kw","N/A"))) -> N/A | B70: =IF(AND(F71="A",G71="A"),"A","") ->  | D70: =D69 & "kW" -> kW | E70: kW | AA70: =IF(AND(F71=G71,H71=I71,F71="A"),"2016 - kw","") ->  | AB70: =IF(OR(B70="2017 - kw",B70="2018 - kw"),"2016 - kw","") -> 
E71: Class A/B
A72: =IF(AND(F74=G74,H74=I74,J74=K74,F74="A"),"2016 - kwh",IF(AND(F74=G74,H74=I74,J74<>K74,F74="A"),"2017 - kwh",IF(AND(F74=G74,H74<>I74,F74="A"),"2018 - kwh","N/A"))) -> N/A | B72: =IF(AND(F74="A",G74="A"),"A","") ->  | C72: Customer 15 | E72: kWh | AA72: =IF(AND(F74=G74,H74=I74,F74="A"),"2016 - kwh","") ->  | AB72: =IF(OR(B72="2017 - kwh",B72="2018 - kwh"),"2016 - kwh","") -> 
A73: =IF(AND(F74=G74,H74=I74,J74=K74,F74="A"),"2016 - kw",IF(AND(F74=G74,H74=I74,J74<>K74,F74="A"),"2017 - kw",IF(AND(F74=G74,H74<>I74,F74="A"),"2018 - kw","N/A"))) -> N/A | B73: =IF(AND(F74="A",G74="A"),"A","") ->  | D73: =D72 & "kW" -> kW | E73: kW | AA73: =IF(AND(F74=G74,H74=I74,F74="A"),"2016 - kw","") ->  | AB73: =IF(OR(B73="2017 - kw",B73="2018 - kw"),"2016 - kw","") -> 
E74: Class A/B
A75: =IF(AND(F77=G77,H77=I77,J77=K77,F77="A"),"2016 - kwh",IF(AND(F77=G77,H77=I77,J77<>K77,F77="A"),"2017 - kwh",IF(AND(F77=G77,H77<>I77,F77="A"),"2018 - kwh","N/A"))) -> N/A | B75: =IF(AND(F77="A",G77="A"),"A","") ->  | C75: Customer 16 | E75: kWh | AA75: =IF(AND(F77=G77,H77=I77,F77="A"),"2016 - kwh","") ->  | AB75: =IF(OR(B75="2017 - kwh",B75="2018 - kwh"),"2016 - kwh","") -> 
A76: =IF(AND(F77=G77,H77=I77,J77=K77,F77="A"),"2016 - kw",IF(AND(F77=G77,H77=I77,J77<>K77,F77="A"),"2017 - kw",IF(AND(F77=G77,H77<>I77,F77="A"),"2018 - kw","N/A"))) -> N/A | B76: =IF(AND(F77="A",G77="A"),"A","") ->  | D76: =D75 & "kW" -> kW | E76: kW | AA76: =IF(AND(F77=G77,H77=I77,F77="A"),"2016 - kw","") ->  | AB76: =IF(OR(B76="2017 - kw",B76="2018 - kw"),"2016 - kw","") -> 
E77: Class A/B
A78: =IF(AND(F80=G80,H80=I80,J80=K80,F80="A"),"2016 - kwh",IF(AND(F80=G80,H80=I80,J80<>K80,F80="A"),"2017 - kwh",IF(AND(F80=G80,H80<>I80,F80="A"),"2018 - kwh","N/A"))) -> N/A | B78: =IF(AND(F80="A",G80="A"),"A","") ->  | C78: Customer 17 | E78: kWh | AA78: =IF(AND(F80=G80,H80=I80,F80="A"),"2016 - kwh","") ->  | AB78: =IF(OR(B78="2017 - kwh",B78="2018 - kwh"),"2016 - kwh","") -> 
A79: =IF(AND(F80=G80,H80=I80,J80=K80,F80="A"),"2016 - kw",IF(AND(F80=G80,H80=I80,J80<>K80,F80="A"),"2017 - kw",IF(AND(F80=G80,H80<>I80,F80="A"),"2018 - kw","N/A"))) -> N/A | B79: =IF(AND(F80="A",G80="A"),"A","") ->  | D79: =D78 & "kW" -> kW | E79: kW | AA79: =IF(AND(F80=G80,H80=I80,F80="A"),"2016 - kw","") ->  | AB79: =IF(OR(B79="2017 - kw",B79="2018 - kw"),"2016 - kw","") -> 
E80: Class A/B
A81: =IF(AND(F83=G83,H83=I83,J83=K83,F83="A"),"2016 - kwh",IF(AND(F83=G83,H83=I83,J83<>K83,F83="A"),"2017 - kwh",IF(AND(F83=G83,H83<>I83,F83="A"),"2018 - kwh","N/A"))) -> N/A | B81: =IF(AND(F83="A",G83="A"),"A","") ->  | C81: Customer 18 | E81: kWh | AA81: =IF(AND(F83=G83,H83=I83,F83="A"),"2016 - kwh","") ->  | AB81: =IF(OR(B81="2017 - kwh",B81="2018 - kwh"),"2016 - kwh","") -> 
A82: =IF(AND(F83=G83,H83=I83,J83=K83,F83="A"),"2016 - kw",IF(AND(F83=G83,H83=I83,J83<>K83,F83="A"),"2017 - kw",IF(AND(F83=G83,H83<>I83,F83="A"),"2018 - kw","N/A"))) -> N/A | B82: =IF(AND(F83="A",G83="A"),"A","") ->  | D82: =D81 & "kW" -> kW | E82: kW | AA82: =IF(AND(F83=G83,H83=I83,F83="A"),"2016 - kw","") ->  | AB82: =IF(OR(B82="2017 - kw",B82="2018 - kw"),"2016 - kw","") -> 
E83: Class A/B
A84: =IF(AND(F86=G86,H86=I86,J86=K86,F86="A"),"2016 - kwh",IF(AND(F86=G86,H86=I86,J86<>K86,F86="A"),"2017 - kwh",IF(AND(F86=G86,H86<>I86,F86="A"),"2018 - kwh","N/A"))) -> N/A | B84: =IF(AND(F86="A",G86="A"),"A","") ->  | C84: Customer 19 | E84: kWh | AA84: =IF(AND(F86=G86,H86=I86,F86="A"),"2016 - kwh","") ->  | AB84: =IF(OR(B84="2017 - kwh",B84="2018 - kwh"),"2016 - kwh","") -> 
A85: =IF(AND(F86=G86,H86=I86,J86=K86,F86="A"),"2016 - kw",IF(AND(F86=G86,H86=I86,J86<>K86,F86="A"),"2017 - kw",IF(AND(F86=G86,H86<>I86,F86="A"),"2018 - kw","N/A"))) -> N/A | B85: =IF(AND(F86="A",G86="A"),"A","") ->  | D85: =D84 & "kW" -> kW | E85: kW | AA85: =IF(AND(F86=G86,H86=I86,F86="A"),"2016 - kw","") ->  | AB85: =IF(OR(B85="2017 - kw",B85="2018 - kw"),"2016 - kw","") -> 
E86: Class A/B
A87: =IF(AND(F89=G89,H89=I89,J89=K89,F89="A"),"2016 - kwh",IF(AND(F89=G89,H89=I89,J89<>K89,F89="A"),"2017 - kwh",IF(AND(F89=G89,H89<>I89,F89="A"),"2018 - kwh","N/A"))) -> N/A | B87: =IF(AND(F89="A",G89="A"),"A","") ->  | C87: Customer 20 | E87: kWh | AA87: =IF(AND(F89=G89,H89=I89,F89="A"),"2016 - kwh","") ->  | AB87: =IF(OR(B87="2017 - kwh",B87="2018 - kwh"),"2016 - kwh","") -> 
A88: =IF(AND(F89=G89,H89=I89,J89=K89,F89="A"),"2016 - kw",IF(AND(F89=G89,H89=I89,J89<>K89,F89="A"),"2017 - kw",IF(AND(F89=G89,H89<>I89,F89="A"),"2018 - kw","N/A"))) -> N/A | B88: =IF(AND(F89="A",G89="A"),"A","") ->  | D88: =D87 & "kW" -> kW | E88: kW | AA88: =IF(AND(F89=G89,H89=I89,F89="A"),"2016 - kw","") ->  | AB88: =IF(OR(B88="2017 - kw",B88="2018 - kw"),"2016 - kw","") -> 
E89: Class A/B
A90: =IF(AND(F92=G92,H92=I92,J92=K92,F92="A"),"2016 - kwh",IF(AND(F92=G92,H92=I92,J92<>K92,F92="A"),"2017 - kwh",IF(AND(F92=G92,H92<>I92,F92="A"),"2018 - kwh","N/A"))) -> N/A | B90: =IF(AND(F92="A",G92="A"),"A","") ->  | C90: Customer 21 | E90: kWh | AA90: =IF(AND(F92=G92,H92=I92,F92="A"),"2016 - kwh","") ->  | AB90: =IF(OR(B90="2017 - kwh",B90="2018 - kwh"),"2016 - kwh","") -> 
A91: =IF(AND(F92=G92,H92=I92,J92=K92,F92="A"),"2016 - kw",IF(AND(F92=G92,H92=I92,J92<>K92,F92="A"),"2017 - kw",IF(AND(F92=G92,H92<>I92,F92="A"),"2018 - kw","N/A"))) -> N/A | B91: =IF(AND(F92="A",G92="A"),"A","") ->  | D91: =D90 & "kW" -> kW | E91: kW | AA91: =IF(AND(F92=G92,H92=I92,F92="A"),"2016 - kw","") ->  | AB91: =IF(OR(B91="2017 - kw",B91="2018 - kw"),"2016 - kw","") -> 
E92: Class A/B
A93: =IF(AND(F95=G95,H95=I95,J95=K95,F95="A"),"2016 - kwh",IF(AND(F95=G95,H95=I95,J95<>K95,F95="A"),"2017 - kwh",IF(AND(F95=G95,H95<>I95,F95="A"),"2018 - kwh","N/A"))) -> N/A | B93: =IF(AND(F95="A",G95="A"),"A","") ->  | C93: Customer 22 | E93: kWh | AA93: =IF(AND(F95=G95,H95=I95,F95="A"),"2016 - kwh","") ->  | AB93: =IF(OR(B93="2017 - kwh",B93="2018 - kwh"),"2016 - kwh","") -> 
A94: =IF(AND(F95=G95,H95=I95,J95=K95,F95="A"),"2016 - kw",IF(AND(F95=G95,H95=I95,J95<>K95,F95="A"),"2017 - kw",IF(AND(F95=G95,H95<>I95,F95="A"),"2018 - kw","N/A"))) -> N/A | B94: =IF(AND(F95="A",G95="A"),"A","") ->  | D94: =D93 & "kW" -> kW | E94: kW | AA94: =IF(AND(F95=G95,H95=I95,F95="A"),"2016 - kw","") ->  | AB94: =IF(OR(B94="2017 - kw",B94="2018 - kw"),"2016 - kw","") -> 
E95: Class A/B
A96: =IF(AND(F98=G98,H98=I98,J98=K98,F98="A"),"2016 - kwh",IF(AND(F98=G98,H98=I98,J98<>K98,F98="A"),"2017 - kwh",IF(AND(F98=G98,H98<>I98,F98="A"),"2018 - kwh","N/A"))) -> N/A | B96: =IF(AND(F98="A",G98="A"),"A","") ->  | C96: Customer 23 | E96: kWh | AA96: =IF(AND(F98=G98,H98=I98,F98="A"),"2016 - kwh","") ->  | AB96: =IF(OR(B96="2017 - kwh",B96="2018 - kwh"),"2016 - kwh","") -> 
A97: =IF(AND(F98=G98,H98=I98,J98=K98,F98="A"),"2016 - kw",IF(AND(F98=G98,H98=I98,J98<>K98,F98="A"),"2017 - kw",IF(AND(F98=G98,H98<>I98,F98="A"),"2018 - kw","N/A"))) -> N/A | B97: =IF(AND(F98="A",G98="A"),"A","") ->  | D97: =D96 & "kW" -> kW | E97: kW | AA97: =IF(AND(F98=G98,H98=I98,F98="A"),"2016 - kw","") ->  | AB97: =IF(OR(B97="2017 - kw",B97="2018 - kw"),"2016 - kw","") -> 
E98: Class A/B
A99: =IF(AND(F101=G101,H101=I101,J101=K101,F101="A"),"2016 - kwh",IF(AND(F101=G101,H101=I101,J101<>K101,F101="A"),"2017 - kwh",IF(AND(F101=G101,H101<>I101,F101="A"),"2018 - kwh","N/A"))) -> N/A | B99: =IF(AND(F101="A",G101="A"),"A","") ->  | C99: Customer 24 | E99: kWh | AA99: =IF(AND(F101=G101,H101=I101,F101="A"),"2016 - kwh","") ->  | AB99: =IF(OR(B99="2017 - kwh",B99="2018 - kwh"),"2016 - kwh","") -> 
A100: =IF(AND(F101=G101,H101=I101,J101=K101,F101="A"),"2016 - kw",IF(AND(F101=G101,H101=I101,J101<>K101,F101="A"),"2017 - kw",IF(AND(F101=G101,H101<>I101,F101="A"),"2018 - kw","N/A"))) -> N/A | B100: =IF(AND(F101="A",G101="A"),"A","") ->  | D100: =D99 & "kW" -> kW | E100: kW | AA100: =IF(AND(F101=G101,H101=I101,F101="A"),"2016 - kw","") ->  | AB100: =IF(OR(B100="2017 - kw",B100="2018 - kw"),"2016 - kw","") -> 
E101: Class A/B
A102: =IF(AND(F104=G104,H104=I104,J104=K104,F104="A"),"2016 - kwh",IF(AND(F104=G104,H104=I104,J104<>K104,F104="A"),"2017 - kwh",IF(AND(F104=G104,H104<>I104,F104="A"),"2018 - kwh","N/A"))) -> N/A | B102: =IF(AND(F104="A",G104="A"),"A","") ->  | C102: Customer 25 | E102: kWh | AA102: =IF(AND(F104=G104,H104=I104,F104="A"),"2016 - kwh","") ->  | AB102: =IF(OR(B102="2017 - kwh",B102="2018 - kwh"),"2016 - kwh","") -> 
A103: =IF(AND(F104=G104,H104=I104,J104=K104,F104="A"),"2016 - kw",IF(AND(F104=G104,H104=I104,J104<>K104,F104="A"),"2017 - kw",IF(AND(F104=G104,H104<>I104,F104="A"),"2018 - kw","N/A"))) -> N/A | B103: =IF(AND(F104="A",G104="A"),"A","") ->  | D103: =D102 & "kW" -> kW | E103: kW | AA103: =IF(AND(F104=G104,H104=I104,F104="A"),"2016 - kw","") ->  | AB103: =IF(OR(B103="2017 - kw",B103="2018 - kw"),"2016 - kw","") -> 
E104: Class A/B
A105: =IF(AND(F107=G107,H107=I107,J107=K107,F107="A"),"2016 - kwh",IF(AND(F107=G107,H107=I107,J107<>K107,F107="A"),"2017 - kwh",IF(AND(F107=G107,H107<>I107,F107="A"),"2018 - kwh","N/A"))) -> N/A | B105: =IF(AND(F107="A",G107="A"),"A","") ->  | C105: Customer 26 | E105: kWh | AA105: =IF(AND(F107=G107,H107=I107,F107="A"),"2016 - kwh","") ->  | AB105: =IF(OR(B105="2017 - kwh",B105="2018 - kwh"),"2016 - kwh","") -> 
A106: =IF(AND(F107=G107,H107=I107,J107=K107,F107="A"),"2016 - kw",IF(AND(F107=G107,H107=I107,J107<>K107,F107="A"),"2017 - kw",IF(AND(F107=G107,H107<>I107,F107="A"),"2018 - kw","N/A"))) -> N/A | B106: =IF(AND(F107="A",G107="A"),"A","") ->  | D106: =D105 & "kW" -> kW | E106: kW | AA106: =IF(AND(F107=G107,H107=I107,F107="A"),"2016 - kw","") ->  | AB106: =IF(OR(B106="2017 - kw",B106="2018 - kw"),"2016 - kw","") -> 
E107: Class A/B
A108: =IF(AND(F110=G110,H110=I110,J110=K110,F110="A"),"2016 - kwh",IF(AND(F110=G110,H110=I110,J110<>K110,F110="A"),"2017 - kwh",IF(AND(F110=G110,H110<>I110,F110="A"),"2018 - kwh","N/A"))) -> N/A | B108: =IF(AND(F110="A",G110="A"),"A","") ->  | C108: Customer 27 | E108: kWh | AA108: =IF(AND(F110=G110,H110=I110,F110="A"),"2016 - kwh","") ->  | AB108: =IF(OR(B108="2017 - kwh",B108="2018 - kwh"),"2016 - kwh","") -> 
A109: =IF(AND(F110=G110,H110=I110,J110=K110,F110="A"),"2016 - kw",IF(AND(F110=G110,H110=I110,J110<>K110,F110="A"),"2017 - kw",IF(AND(F110=G110,H110<>I110,F110="A"),"2018 - kw","N/A"))) -> N/A | B109: =IF(AND(F110="A",G110="A"),"A","") ->  | D109: =D108 & "kW" -> kW | E109: kW | AA109: =IF(AND(F110=G110,H110=I110,F110="A"),"2016 - kw","") ->  | AB109: =IF(OR(B109="2017 - kw",B109="2018 - kw"),"2016 - kw","") -> 
E110: Class A/B
A111: =IF(AND(F113=G113,H113=I113,J113=K113,F113="A"),"2016 - kwh",IF(AND(F113=G113,H113=I113,J113<>K113,F113="A"),"2017 - kwh",IF(AND(F113=G113,H113<>I113,F113="A"),"2018 - kwh","N/A"))) -> N/A | B111: =IF(AND(F113="A",G113="A"),"A","") ->  | C111: Customer 28 | E111: kWh | AA111: =IF(AND(F113=G113,H113=I113,F113="A"),"2016 - kwh","") ->  | AB111: =IF(OR(B111="2017 - kwh",B111="2018 - kwh"),"2016 - kwh","") -> 
A112: =IF(AND(F113=G113,H113=I113,J113=K113,F113="A"),"2016 - kw",IF(AND(F113=G113,H113=I113,J113<>K113,F113="A"),"2017 - kw",IF(AND(F113=G113,H113<>I113,F113="A"),"2018 - kw","N/A"))) -> N/A | B112: =IF(AND(F113="A",G113="A"),"A","") ->  | D112: =D111 & "kW" -> kW | E112: kW | AA112: =IF(AND(F113=G113,H113=I113,F113="A"),"2016 - kw","") ->  | AB112: =IF(OR(B112="2017 - kw",B112="2018 - kw"),"2016 - kw","") -> 
E113: Class A/B
A114: =IF(AND(F116=G116,H116=I116,J116=K116,F116="A"),"2016 - kwh",IF(AND(F116=G116,H116=I116,J116<>K116,F116="A"),"2017 - kwh",IF(AND(F116=G116,H116<>I116,F116="A"),"2018 - kwh","N/A"))) -> N/A | B114: =IF(AND(F116="A",G116="A"),"A","") ->  | C114: Customer 29 | E114: kWh | AA114: =IF(AND(F116=G116,H116=I116,F116="A"),"2016 - kwh","") ->  | AB114: =IF(OR(B114="2017 - kwh",B114="2018 - kwh"),"2016 - kwh","") -> 
A115: =IF(AND(F116=G116,H116=I116,J116=K116,F116="A"),"2016 - kw",IF(AND(F116=G116,H116=I116,J116<>K116,F116="A"),"2017 - kw",IF(AND(F116=G116,H116<>I116,F116="A"),"2018 - kw","N/A"))) -> N/A | B115: =IF(AND(F116="A",G116="A"),"A","") ->  | D115: =D114 & "kW" -> kW | E115: kW | AA115: =IF(AND(F116=G116,H116=I116,F116="A"),"2016 - kw","") ->  | AB115: =IF(OR(B115="2017 - kw",B115="2018 - kw"),"2016 - kw","") -> 
E116: Class A/B
A117: =IF(AND(F119=G119,H119=I119,J119=K119,F119="A"),"2016 - kwh",IF(AND(F119=G119,H119=I119,J119<>K119,F119="A"),"2017 - kwh",IF(AND(F119=G119,H119<>I119,F119="A"),"2018 - kwh","N/A"))) -> N/A | B117: =IF(AND(F119="A",G119="A"),"A","") ->  | C117: Customer 30 | E117: kWh | AA117: =IF(AND(F119=G119,H119=I119,F119="A"),"2016 - kwh","") ->  | AB117: =IF(OR(B117="2017 - kwh",B117="2018 - kwh"),"2016 - kwh","") -> 
A118: =IF(AND(F119=G119,H119=I119,J119=K119,F119="A"),"2016 - kw",IF(AND(F119=G119,H119=I119,J119<>K119,F119="A"),"2017 - kw",IF(AND(F119=G119,H119<>I119,F119="A"),"2018 - kw","N/A"))) -> N/A | B118: =IF(AND(F119="A",G119="A"),"A","") ->  | D118: =D117 & "kW" -> kW | E118: kW | AA118: =IF(AND(F119=G119,H119=I119,F119="A"),"2016 - kw","") ->  | AB118: =IF(OR(B118="2017 - kw",B118="2018 - kw"),"2016 - kw","") -> 
E119: Class A/B
A120: =IF(AND(F122=G122,H122=I122,J122=K122,F122="A"),"2016 - kwh",IF(AND(F122=G122,H122=I122,J122<>K122,F122="A"),"2017 - kwh",IF(AND(F122=G122,H122<>I122,F122="A"),"2018 - kwh","N/A"))) -> N/A | B120: =IF(AND(F122="A",G122="A"),"A","") ->  | C120: Customer 31 | E120: kWh | AA120: =IF(AND(F122=G122,H122=I122,F122="A"),"2016 - kwh","") ->  | AB120: =IF(OR(B120="2017 - kwh",B120="2018 - kwh"),"2016 - kwh","") -> 
A121: =IF(AND(F122=G122,H122=I122,J122=K122,F122="A"),"2016 - kw",IF(AND(F122=G122,H122=I122,J122<>K122,F122="A"),"2017 - kw",IF(AND(F122=G122,H122<>I122,F122="A"),"2018 - kw","N/A"))) -> N/A | B121: =IF(AND(F122="A",G122="A"),"A","") ->  | D121: =D120 & "kW" -> kW | E121: kW | AA121: =IF(AND(F122=G122,H122=I122,F122="A"),"2016 - kw","") ->  | AB121: =IF(OR(B121="2017 - kw",B121="2018 - kw"),"2016 - kw","") -> 
E122: Class A/B
A123: =IF(AND(F125=G125,H125=I125,J125=K125,F125="A"),"2016 - kwh",IF(AND(F125=G125,H125=I125,J125<>K125,F125="A"),"2017 - kwh",IF(AND(F125=G125,H125<>I125,F125="A"),"2018 - kwh","N/A"))) -> N/A | B123: =IF(AND(F125="A",G125="A"),"A","") ->  | C123: Customer 32 | E123: kWh | AA123: =IF(AND(F125=G125,H125=I125,F125="A"),"2016 - kwh","") ->  | AB123: =IF(OR(B123="2017 - kwh",B123="2018 - kwh"),"2016 - kwh","") -> 
A124: =IF(AND(F125=G125,H125=I125,J125=K125,F125="A"),"2016 - kw",IF(AND(F125=G125,H125=I125,J125<>K125,F125="A"),"2017 - kw",IF(AND(F125=G125,H125<>I125,F125="A"),"2018 - kw","N/A"))) -> N/A | B124: =IF(AND(F125="A",G125="A"),"A","") ->  | D124: =D123 & "kW" -> kW | E124: kW | AA124: =IF(AND(F125=G125,H125=I125,F125="A"),"2016 - kw","") ->  | AB124: =IF(OR(B124="2017 - kw",B124="2018 - kw"),"2016 - kw","") -> 
E125: Class A/B
A126: =IF(AND(F128=G128,H128=I128,J128=K128,F128="A"),"2016 - kwh",IF(AND(F128=G128,H128=I128,J128<>K128,F128="A"),"2017 - kwh",IF(AND(F128=G128,H128<>I128,F128="A"),"2018 - kwh","N/A"))) -> N/A | B126: =IF(AND(F128="A",G128="A"),"A","") ->  | C126: Customer 33 | E126: kWh | AA126: =IF(AND(F128=G128,H128=I128,F128="A"),"2016 - kwh","") ->  | AB126: =IF(OR(B126="2017 - kwh",B126="2018 - kwh"),"2016 - kwh","") -> 
A127: =IF(AND(F128=G128,H128=I128,J128=K128,F128="A"),"2016 - kw",IF(AND(F128=G128,H128=I128,J128<>K128,F128="A"),"2017 - kw",IF(AND(F128=G128,H128<>I128,F128="A"),"2018 - kw","N/A"))) -> N/A | B127: =IF(AND(F128="A",G128="A"),"A","") ->  | D127: =D126 & "kW" -> kW | E127: kW | AA127: =IF(AND(F128=G128,H128=I128,F128="A"),"2016 - kw","") ->  | AB127: =IF(OR(B127="2017 - kw",B127="2018 - kw"),"2016 - kw","") -> 
E128: Class A/B
A129: =IF(AND(F131=G131,H131=I131,J131=K131,F131="A"),"2016 - kwh",IF(AND(F131=G131,H131=I131,J131<>K131,F131="A"),"2017 - kwh",IF(AND(F131=G131,H131<>I131,F131="A"),"2018 - kwh","N/A"))) -> N/A | B129: =IF(AND(F131="A",G131="A"),"A","") ->  | C129: Customer 34 | E129: kWh | AA129: =IF(AND(F131=G131,H131=I131,F131="A"),"2016 - kwh","") ->  | AB129: =IF(OR(B129="2017 - kwh",B129="2018 - kwh"),"2016 - kwh","") -> 
A130: =IF(AND(F131=G131,H131=I131,J131=K131,F131="A"),"2016 - kw",IF(AND(F131=G131,H131=I131,J131<>K131,F131="A"),"2017 - kw",IF(AND(F131=G131,H131<>I131,F131="A"),"2018 - kw","N/A"))) -> N/A | B130: =IF(AND(F131="A",G131="A"),"A","") ->  | D130: =D129 & "kW" -> kW | E130: kW | AA130: =IF(AND(F131=G131,H131=I131,F131="A"),"2016 - kw","") ->  | AB130: =IF(OR(B130="2017 - kw",B130="2018 - kw"),"2016 - kw","") -> 
E131: Class A/B
A132: =IF(AND(F134=G134,H134=I134,J134=K134,F134="A"),"2016 - kwh",IF(AND(F134=G134,H134=I134,J134<>K134,F134="A"),"2017 - kwh",IF(AND(F134=G134,H134<>I134,F134="A"),"2018 - kwh","N/A"))) -> N/A | B132: =IF(AND(F134="A",G134="A"),"A","") ->  | C132: Customer 35 | E132: kWh | AA132: =IF(AND(F134=G134,H134=I134,F134="A"),"2016 - kwh","") ->  | AB132: =IF(OR(B132="2017 - kwh",B132="2018 - kwh"),"2016 - kwh","") -> 
A133: =IF(AND(F134=G134,H134=I134,J134=K134,F134="A"),"2016 - kw",IF(AND(F134=G134,H134=I134,J134<>K134,F134="A"),"2017 - kw",IF(AND(F134=G134,H134<>I134,F134="A"),"2018 - kw","N/A"))) -> N/A | B133: =IF(AND(F134="A",G134="A"),"A","") ->  | D133: =D132 & "kW" -> kW | E133: kW | AA133: =IF(AND(F134=G134,H134=I134,F134="A"),"2016 - kw","") ->  | AB133: =IF(OR(B133="2017 - kw",B133="2018 - kw"),"2016 - kw","") -> 
E134: Class A/B
A135: =IF(AND(F137=G137,H137=I137,J137=K137,F137="A"),"2016 - kwh",IF(AND(F137=G137,H137=I137,J137<>K137,F137="A"),"2017 - kwh",IF(AND(F137=G137,H137<>I137,F137="A"),"2018 - kwh","N/A"))) -> N/A | B135: =IF(AND(F137="A",G137="A"),"A","") ->  | C135: Customer 36 | E135: kWh | AA135: =IF(AND(F137=G137,H137=I137,F137="A"),"2016 - kwh","") ->  | AB135: =IF(OR(B135="2017 - kwh",B135="2018 - kwh"),"2016 - kwh","") -> 
A136: =IF(AND(F137=G137,H137=I137,J137=K137,F137="A"),"2016 - kw",IF(AND(F137=G137,H137=I137,J137<>K137,F137="A"),"2017 - kw",IF(AND(F137=G137,H137<>I137,F137="A"),"2018 - kw","N/A"))) -> N/A | B136: =IF(AND(F137="A",G137="A"),"A","") ->  | D136: =D135 & "kW" -> kW | E136: kW | AA136: =IF(AND(F137=G137,H137=I137,F137="A"),"2016 - kw","") ->  | AB136: =IF(OR(B136="2017 - kw",B136="2018 - kw"),"2016 - kw","") -> 
E137: Class A/B
A138: =IF(AND(F140=G140,H140=I140,J140=K140,F140="A"),"2016 - kwh",IF(AND(F140=G140,H140=I140,J140<>K140,F140="A"),"2017 - kwh",IF(AND(F140=G140,H140<>I140,F140="A"),"2018 - kwh","N/A"))) -> N/A | B138: =IF(AND(F140="A",G140="A"),"A","") ->  | C138: Customer 37 | E138: kWh | AA138: =IF(AND(F140=G140,H140=I140,F140="A"),"2016 - kwh","") ->  | AB138: =IF(OR(B138="2017 - kwh",B138="2018 - kwh"),"2016 - kwh","") -> 
A139: =IF(AND(F140=G140,H140=I140,J140=K140,F140="A"),"2016 - kw",IF(AND(F140=G140,H140=I140,J140<>K140,F140="A"),"2017 - kw",IF(AND(F140=G140,H140<>I140,F140="A"),"2018 - kw","N/A"))) -> N/A | B139: =IF(AND(F140="A",G140="A"),"A","") ->  | D139: =D138 & "kW" -> kW | E139: kW | AA139: =IF(AND(F140=G140,H140=I140,F140="A"),"2016 - kw","") ->  | AB139: =IF(OR(B139="2017 - kw",B139="2018 - kw"),"2016 - kw","") -> 
E140: Class A/B
A141: =IF(AND(F143=G143,H143=I143,J143=K143,F143="A"),"2016 - kwh",IF(AND(F143=G143,H143=I143,J143<>K143,F143="A"),"2017 - kwh",IF(AND(F143=G143,H143<>I143,F143="A"),"2018 - kwh","N/A"))) -> N/A | B141: =IF(AND(F143="A",G143="A"),"A","") ->  | C141: Customer 38 | E141: kWh | AA141: =IF(AND(F143=G143,H143=I143,F143="A"),"2016 - kwh","") ->  | AB141: =IF(OR(B141="2017 - kwh",B141="2018 - kwh"),"2016 - kwh","") -> 
A142: =IF(AND(F143=G143,H143=I143,J143=K143,F143="A"),"2016 - kw",IF(AND(F143=G143,H143=I143,J143<>K143,F143="A"),"2017 - kw",IF(AND(F143=G143,H143<>I143,F143="A"),"2018 - kw","N/A"))) -> N/A | B142: =IF(AND(F143="A",G143="A"),"A","") ->  | D142: =D141 & "kW" -> kW | E142: kW | AA142: =IF(AND(F143=G143,H143=I143,F143="A"),"2016 - kw","") ->  | AB142: =IF(OR(B142="2017 - kw",B142="2018 - kw"),"2016 - kw","") -> 
E143: Class A/B
A144: =IF(AND(F146=G146,H146=I146,J146=K146,F146="A"),"2016 - kwh",IF(AND(F146=G146,H146=I146,J146<>K146,F146="A"),"2017 - kwh",IF(AND(F146=G146,H146<>I146,F146="A"),"2018 - kwh","N/A"))) -> N/A | B144: =IF(AND(F146="A",G146="A"),"A","") ->  | C144: Customer 39 | E144: kWh | AA144: =IF(AND(F146=G146,H146=I146,F146="A"),"2016 - kwh","") ->  | AB144: =IF(OR(B144="2017 - kwh",B144="2018 - kwh"),"2016 - kwh","") -> 
A145: =IF(AND(F146=G146,H146=I146,J146=K146,F146="A"),"2016 - kw",IF(AND(F146=G146,H146=I146,J146<>K146,F146="A"),"2017 - kw",IF(AND(F146=G146,H146<>I146,F146="A"),"2018 - kw","N/A"))) -> N/A | B145: =IF(AND(F146="A",G146="A"),"A","") ->  | D145: =D144 & "kW" -> kW | E145: kW | AA145: =IF(AND(F146=G146,H146=I146,F146="A"),"2016 - kw","") ->  | AB145: =IF(OR(B145="2017 - kw",B145="2018 - kw"),"2016 - kw","") -> 
E146: Class A/B
A147: =IF(AND(F149=G149,H149=I149,J149=K149,F149="A"),"2016 - kwh",IF(AND(F149=G149,H149=I149,J149<>K149,F149="A"),"2017 - kwh",IF(AND(F149=G149,H149<>I149,F149="A"),"2018 - kwh","N/A"))) -> N/A | B147: =IF(AND(F149="A",G149="A"),"A","") ->  | C147: Customer 40 | E147: kWh | AA147: =IF(AND(F149=G149,H149=I149,F149="A"),"2016 - kwh","") ->  | AB147: =IF(OR(B147="2017 - kwh",B147="2018 - kwh"),"2016 - kwh","") -> 
A148: =IF(AND(F149=G149,H149=I149,J149=K149,F149="A"),"2016 - kw",IF(AND(F149=G149,H149=I149,J149<>K149,F149="A"),"2017 - kw",IF(AND(F149=G149,H149<>I149,F149="A"),"2018 - kw","N/A"))) -> N/A | B148: =IF(AND(F149="A",G149="A"),"A","") ->  | D148: =D147 & "kW" -> kW | E148: kW | AA148: =IF(AND(F149=G149,H149=I149,F149="A"),"2016 - kw","") ->  | AB148: =IF(OR(B148="2017 - kw",B148="2018 - kw"),"2016 - kw","") -> 
E149: Class A/B
A150: =IF(AND(F152=G152,H152=I152,J152=K152,F152="A"),"2016 - kwh",IF(AND(F152=G152,H152=I152,J152<>K152,F152="A"),"2017 - kwh",IF(AND(F152=G152,H152<>I152,F152="A"),"2018 - kwh","N/A"))) -> N/A | B150: =IF(AND(F152="A",G152="A"),"A","") ->  | C150: Customer 41 | E150: kWh | AA150: =IF(AND(F152=G152,H152=I152,F152="A"),"2016 - kwh","") ->  | AB150: =IF(OR(B150="2017 - kwh",B150="2018 - kwh"),"2016 - kwh","") -> 
A151: =IF(AND(F152=G152,H152=I152,J152=K152,F152="A"),"2016 - kw",IF(AND(F152=G152,H152=I152,J152<>K152,F152="A"),"2017 - kw",IF(AND(F152=G152,H152<>I152,F152="A"),"2018 - kw","N/A"))) -> N/A | B151: =IF(AND(F152="A",G152="A"),"A","") ->  | D151: =D150 & "kW" -> kW | E151: kW | AA151: =IF(AND(F152=G152,H152=I152,F152="A"),"2016 - kw","") ->  | AB151: =IF(OR(B151="2017 - kw",B151="2018 - kw"),"2016 - kw","") -> 
E152: Class A/B
A153: =IF(AND(F155=G155,H155=I155,J155=K155,F155="A"),"2016 - kwh",IF(AND(F155=G155,H155=I155,J155<>K155,F155="A"),"2017 - kwh",IF(AND(F155=G155,H155<>I155,F155="A"),"2018 - kwh","N/A"))) -> N/A | B153: =IF(AND(F155="A",G155="A"),"A","") ->  | C153: Customer 42 | E153: kWh | AA153: =IF(AND(F155=G155,H155=I155,F155="A"),"2016 - kwh","") ->  | AB153: =IF(OR(B153="2017 - kwh",B153="2018 - kwh"),"2016 - kwh","") -> 
A154: =IF(AND(F155=G155,H155=I155,J155=K155,F155="A"),"2016 - kw",IF(AND(F155=G155,H155=I155,J155<>K155,F155="A"),"2017 - kw",IF(AND(F155=G155,H155<>I155,F155="A"),"2018 - kw","N/A"))) -> N/A | B154: =IF(AND(F155="A",G155="A"),"A","") ->  | D154: =D153 & "kW" -> kW | E154: kW | AA154: =IF(AND(F155=G155,H155=I155,F155="A"),"2016 - kw","") ->  | AB154: =IF(OR(B154="2017 - kw",B154="2018 - kw"),"2016 - kw","") -> 
E155: Class A/B
A156: =IF(AND(F158=G158,H158=I158,J158=K158,F158="A"),"2016 - kwh",IF(AND(F158=G158,H158=I158,J158<>K158,F158="A"),"2017 - kwh",IF(AND(F158=G158,H158<>I158,F158="A"),"2018 - kwh","N/A"))) -> N/A | B156: =IF(AND(F158="A",G158="A"),"A","") ->  | C156: Customer 43 | E156: kWh | AA156: =IF(AND(F158=G158,H158=I158,F158="A"),"2016 - kwh","") ->  | AB156: =IF(OR(B156="2017 - kwh",B156="2018 - kwh"),"2016 - kwh","") -> 
A157: =IF(AND(F158=G158,H158=I158,J158=K158,F158="A"),"2016 - kw",IF(AND(F158=G158,H158=I158,J158<>K158,F158="A"),"2017 - kw",IF(AND(F158=G158,H158<>I158,F158="A"),"2018 - kw","N/A"))) -> N/A | B157: =IF(AND(F158="A",G158="A"),"A","") ->  | D157: =D156 & "kW" -> kW | E157: kW | AA157: =IF(AND(F158=G158,H158=I158,F158="A"),"2016 - kw","") ->  | AB157: =IF(OR(B157="2017 - kw",B157="2018 - kw"),"2016 - kw","") -> 
E158: Class A/B
A159: =IF(AND(F161=G161,H161=I161,J161=K161,F161="A"),"2016 - kwh",IF(AND(F161=G161,H161=I161,J161<>K161,F161="A"),"2017 - kwh",IF(AND(F161=G161,H161<>I161,F161="A"),"2018 - kwh","N/A"))) -> N/A | B159: =IF(AND(F161="A",G161="A"),"A","") ->  | C159: Customer 44 | E159: kWh | AA159: =IF(AND(F161=G161,H161=I161,F161="A"),"2016 - kwh","") ->  | AB159: =IF(OR(B159="2017 - kwh",B159="2018 - kwh"),"2016 - kwh","") -> 
A160: =IF(AND(F161=G161,H161=I161,J161=K161,F161="A"),"2016 - kw",IF(AND(F161=G161,H161=I161,J161<>K161,F161="A"),"2017 - kw",IF(AND(F161=G161,H161<>I161,F161="A"),"2018 - kw","N/A"))) -> N/A | B160: =IF(AND(F161="A",G161="A"),"A","") ->  | D160: =D159 & "kW" -> kW | E160: kW | AA160: =IF(AND(F161=G161,H161=I161,F161="A"),"2016 - kw","") ->  | AB160: =IF(OR(B160="2017 - kw",B160="2018 - kw"),"2016 - kw","") -> 
E161: Class A/B
A162: =IF(AND(F164=G164,H164=I164,J164=K164,F164="A"),"2016 - kwh",IF(AND(F164=G164,H164=I164,J164<>K164,F164="A"),"2017 - kwh",IF(AND(F164=G164,H164<>I164,F164="A"),"2018 - kwh","N/A"))) -> N/A | B162: =IF(AND(F164="A",G164="A"),"A","") ->  | C162: Customer 45 | E162: kWh | AA162: =IF(AND(F164=G164,H164=I164,F164="A"),"2016 - kwh","") ->  | AB162: =IF(OR(B162="2017 - kwh",B162="2018 - kwh"),"2016 - kwh","") -> 
A163: =IF(AND(F164=G164,H164=I164,J164=K164,F164="A"),"2016 - kw",IF(AND(F164=G164,H164=I164,J164<>K164,F164="A"),"2017 - kw",IF(AND(F164=G164,H164<>I164,F164="A"),"2018 - kw","N/A"))) -> N/A | B163: =IF(AND(F164="A",G164="A"),"A","") ->  | D163: =D162 & "kW" -> kW | E163: kW | AA163: =IF(AND(F164=G164,H164=I164,F164="A"),"2016 - kw","") ->  | AB163: =IF(OR(B163="2017 - kw",B163="2018 - kw"),"2016 - kw","") -> 
E164: Class A/B
A165: =IF(AND(F167=G167,H167=I167,J167=K167,F167="A"),"2016 - kwh",IF(AND(F167=G167,H167=I167,J167<>K167,F167="A"),"2017 - kwh",IF(AND(F167=G167,H167<>I167,F167="A"),"2018 - kwh","N/A"))) -> N/A | B165: =IF(AND(F167="A",G167="A"),"A","") ->  | C165: Customer 46 | E165: kWh | AA165: =IF(AND(F167=G167,H167=I167,F167="A"),"2016 - kwh","") ->  | AB165: =IF(OR(B165="2017 - kwh",B165="2018 - kwh"),"2016 - kwh","") -> 
A166: =IF(AND(F167=G167,H167=I167,J167=K167,F167="A"),"2016 - kw",IF(AND(F167=G167,H167=I167,J167<>K167,F167="A"),"2017 - kw",IF(AND(F167=G167,H167<>I167,F167="A"),"2018 - kw","N/A"))) -> N/A | B166: =IF(AND(F167="A",G167="A"),"A","") ->  | D166: =D165 & "kW" -> kW | E166: kW | AA166: =IF(AND(F167=G167,H167=I167,F167="A"),"2016 - kw","") ->  | AB166: =IF(OR(B166="2017 - kw",B166="2018 - kw"),"2016 - kw","") -> 
E167: Class A/B
A168: =IF(AND(F170=G170,H170=I170,J170=K170,F170="A"),"2016 - kwh",IF(AND(F170=G170,H170=I170,J170<>K170,F170="A"),"2017 - kwh",IF(AND(F170=G170,H170<>I170,F170="A"),"2018 - kwh","N/A"))) -> N/A | B168: =IF(AND(F170="A",G170="A"),"A","") ->  | C168: Customer 47 | E168: kWh | AA168: =IF(AND(F170=G170,H170=I170,F170="A"),"2016 - kwh","") ->  | AB168: =IF(OR(B168="2017 - kwh",B168="2018 - kwh"),"2016 - kwh","") -> 
A169: =IF(AND(F170=G170,H170=I170,J170=K170,F170="A"),"2016 - kw",IF(AND(F170=G170,H170=I170,J170<>K170,F170="A"),"2017 - kw",IF(AND(F170=G170,H170<>I170,F170="A"),"2018 - kw","N/A"))) -> N/A | B169: =IF(AND(F170="A",G170="A"),"A","") ->  | D169: =D168 & "kW" -> kW | E169: kW | AA169: =IF(AND(F170=G170,H170=I170,F170="A"),"2016 - kw","") ->  | AB169: =IF(OR(B169="2017 - kw",B169="2018 - kw"),"2016 - kw","") -> 
E170: Class A/B
A171: =IF(AND(F173=G173,H173=I173,J173=K173,F173="A"),"2016 - kwh",IF(AND(F173=G173,H173=I173,J173<>K173,F173="A"),"2017 - kwh",IF(AND(F173=G173,H173<>I173,F173="A"),"2018 - kwh","N/A"))) -> N/A | B171: =IF(AND(F173="A",G173="A"),"A","") ->  | C171: Customer 48 | E171: kWh | AA171: =IF(AND(F173=G173,H173=I173,F173="A"),"2016 - kwh","") ->  | AB171: =IF(OR(B171="2017 - kwh",B171="2018 - kwh"),"2016 - kwh","") -> 
A172: =IF(AND(F173=G173,H173=I173,J173=K173,F173="A"),"2016 - kw",IF(AND(F173=G173,H173=I173,J173<>K173,F173="A"),"2017 - kw",IF(AND(F173=G173,H173<>I173,F173="A"),"2018 - kw","N/A"))) -> N/A | B172: =IF(AND(F173="A",G173="A"),"A","") ->  | D172: =D171 & "kW" -> kW | E172: kW | AA172: =IF(AND(F173=G173,H173=I173,F173="A"),"2016 - kw","") ->  | AB172: =IF(OR(B172="2017 - kw",B172="2018 - kw"),"2016 - kw","") -> 
E173: Class A/B
A174: =IF(AND(F176=G176,H176=I176,J176=K176,F176="A"),"2016 - kwh",IF(AND(F176=G176,H176=I176,J176<>K176,F176="A"),"2017 - kwh",IF(AND(F176=G176,H176<>I176,F176="A"),"2018 - kwh","N/A"))) -> N/A | B174: =IF(AND(F176="A",G176="A"),"A","") ->  | C174: Customer 49 | E174: kWh | AA174: =IF(AND(F176=G176,H176=I176,F176="A"),"2016 - kwh","") ->  | AB174: =IF(OR(B174="2017 - kwh",B174="2018 - kwh"),"2016 - kwh","") -> 
A175: =IF(AND(F176=G176,H176=I176,J176=K176,F176="A"),"2016 - kw",IF(AND(F176=G176,H176=I176,J176<>K176,F176="A"),"2017 - kw",IF(AND(F176=G176,H176<>I176,F176="A"),"2018 - kw","N/A"))) -> N/A | B175: =IF(AND(F176="A",G176="A"),"A","") ->  | D175: =D174 & "kW" -> kW | E175: kW | AA175: =IF(AND(F176=G176,H176=I176,F176="A"),"2016 - kw","") ->  | AB175: =IF(OR(B175="2017 - kw",B175="2018 - kw"),"2016 - kw","") -> 
E176: Class A/B
A177: =IF(AND(F179=G179,H179=I179,J179=K179,F179="A"),"2016 - kwh",IF(AND(F179=G179,H179=I179,J179<>K179,F179="A"),"2017 - kwh",IF(AND(F179=G179,H179<>I179,F179="A"),"2018 - kwh","N/A"))) -> N/A | B177: =IF(AND(F179="A",G179="A"),"A","") ->  | C177: Customer 50 | E177: kWh | AA177: =IF(AND(F179=G179,H179=I179,F179="A"),"2016 - kwh","") ->  | AB177: =IF(OR(B177="2017 - kwh",B177="2018 - kwh"),"2016 - kwh","") -> 
A178: =IF(AND(F179=G179,H179=I179,J179=K179,F179="A"),"2016 - kw",IF(AND(F179=G179,H179=I179,J179<>K179,F179="A"),"2017 - kw",IF(AND(F179=G179,H179<>I179,F179="A"),"2018 - kw","N/A"))) -> N/A | B178: =IF(AND(F179="A",G179="A"),"A","") ->  | D178: =D177 & "kW" -> kW | E178: kW | AA178: =IF(AND(F179=G179,H179=I179,F179="A"),"2016 - kw","") ->  | AB178: =IF(OR(B178="2017 - kw",B178="2018 - kw"),"2016 - kw","") -> 
E179: Class A/B
A180: =IF(AND(F182=G182,H182=I182,J182=K182,F182="A"),"2016 - kwh",IF(AND(F182=G182,H182=I182,J182<>K182,F182="A"),"2017 - kwh",IF(AND(F182=G182,H182<>I182,F182="A"),"2018 - kwh","N/A"))) -> N/A | B180: =IF(AND(F182="A",G182="A"),"A","") ->  | C180: Customer 51 | E180: kWh | AA180: =IF(AND(F182=G182,H182=I182,F182="A"),"2016 - kwh","") ->  | AB180: =IF(OR(B180="2017 - kwh",B180="2018 - kwh"),"2016 - kwh","") -> 
A181: =IF(AND(F182=G182,H182=I182,J182=K182,F182="A"),"2016 - kw",IF(AND(F182=G182,H182=I182,J182<>K182,F182="A"),"2017 - kw",IF(AND(F182=G182,H182<>I182,F182="A"),"2018 - kw","N/A"))) -> N/A | B181: =IF(AND(F182="A",G182="A"),"A","") ->  | D181: =D180 & "kW" -> kW | E181: kW | AA181: =IF(AND(F182=G182,H182=I182,F182="A"),"2016 - kw","") ->  | AB181: =IF(OR(B181="2017 - kw",B181="2018 - kw"),"2016 - kw","") -> 
E182: Class A/B
A183: =IF(AND(F185=G185,H185=I185,J185=K185,F185="A"),"2016 - kwh",IF(AND(F185=G185,H185=I185,J185<>K185,F185="A"),"2017 - kwh",IF(AND(F185=G185,H185<>I185,F185="A"),"2018 - kwh","N/A"))) -> N/A | B183: =IF(AND(F185="A",G185="A"),"A","") ->  | C183: Customer 52 | E183: kWh | AA183: =IF(AND(F185=G185,H185=I185,F185="A"),"2016 - kwh","") ->  | AB183: =IF(OR(B183="2017 - kwh",B183="2018 - kwh"),"2016 - kwh","") -> 
A184: =IF(AND(F185=G185,H185=I185,J185=K185,F185="A"),"2016 - kw",IF(AND(F185=G185,H185=I185,J185<>K185,F185="A"),"2017 - kw",IF(AND(F185=G185,H185<>I185,F185="A"),"2018 - kw","N/A"))) -> N/A | B184: =IF(AND(F185="A",G185="A"),"A","") ->  | D184: =D183 & "kW" -> kW | E184: kW | AA184: =IF(AND(F185=G185,H185=I185,F185="A"),"2016 - kw","") ->  | AB184: =IF(OR(B184="2017 - kw",B184="2018 - kw"),"2016 - kw","") -> 
E185: Class A/B
A186: =IF(AND(F188=G188,H188=I188,J188=K188,F188="A"),"2016 - kwh",IF(AND(F188=G188,H188=I188,J188<>K188,F188="A"),"2017 - kwh",IF(AND(F188=G188,H188<>I188,F188="A"),"2018 - kwh","N/A"))) -> N/A | B186: =IF(AND(F188="A",G188="A"),"A","") ->  | C186: Customer 53 | E186: kWh | AA186: =IF(AND(F188=G188,H188=I188,F188="A"),"2016 - kwh","") ->  | AB186: =IF(OR(B186="2017 - kwh",B186="2018 - kwh"),"2016 - kwh","") -> 
A187: =IF(AND(F188=G188,H188=I188,J188=K188,F188="A"),"2016 - kw",IF(AND(F188=G188,H188=I188,J188<>K188,F188="A"),"2017 - kw",IF(AND(F188=G188,H188<>I188,F188="A"),"2018 - kw","N/A"))) -> N/A | B187: =IF(AND(F188="A",G188="A"),"A","") ->  | D187: =D186 & "kW" -> kW | E187: kW | AA187: =IF(AND(F188=G188,H188=I188,F188="A"),"2016 - kw","") ->  | AB187: =IF(OR(B187="2017 - kw",B187="2018 - kw"),"2016 - kw","") -> 
E188: Class A/B
A189: =IF(AND(F191=G191,H191=I191,J191=K191,F191="A"),"2016 - kwh",IF(AND(F191=G191,H191=I191,J191<>K191,F191="A"),"2017 - kwh",IF(AND(F191=G191,H191<>I191,F191="A"),"2018 - kwh","N/A"))) -> N/A | B189: =IF(AND(F191="A",G191="A"),"A","") ->  | C189: Customer 54 | E189: kWh | AA189: =IF(AND(F191=G191,H191=I191,F191="A"),"2016 - kwh","") ->  | AB189: =IF(OR(B189="2017 - kwh",B189="2018 - kwh"),"2016 - kwh","") -> 
A190: =IF(AND(F191=G191,H191=I191,J191=K191,F191="A"),"2016 - kw",IF(AND(F191=G191,H191=I191,J191<>K191,F191="A"),"2017 - kw",IF(AND(F191=G191,H191<>I191,F191="A"),"2018 - kw","N/A"))) -> N/A | B190: =IF(AND(F191="A",G191="A"),"A","") ->  | D190: =D189 & "kW" -> kW | E190: kW | AA190: =IF(AND(F191=G191,H191=I191,F191="A"),"2016 - kw","") ->  | AB190: =IF(OR(B190="2017 - kw",B190="2018 - kw"),"2016 - kw","") -> 
E191: Class A/B
A192: =IF(AND(F194=G194,H194=I194,J194=K194,F194="A"),"2016 - kwh",IF(AND(F194=G194,H194=I194,J194<>K194,F194="A"),"2017 - kwh",IF(AND(F194=G194,H194<>I194,F194="A"),"2018 - kwh","N/A"))) -> N/A | B192: =IF(AND(F194="A",G194="A"),"A","") ->  | C192: Customer 55 | E192: kWh | AA192: =IF(AND(F194=G194,H194=I194,F194="A"),"2016 - kwh","") ->  | AB192: =IF(OR(B192="2017 - kwh",B192="2018 - kwh"),"2016 - kwh","") -> 
A193: =IF(AND(F194=G194,H194=I194,J194=K194,F194="A"),"2016 - kw",IF(AND(F194=G194,H194=I194,J194<>K194,F194="A"),"2017 - kw",IF(AND(F194=G194,H194<>I194,F194="A"),"2018 - kw","N/A"))) -> N/A | B193: =IF(AND(F194="A",G194="A"),"A","") ->  | D193: =D192 & "kW" -> kW | E193: kW | AA193: =IF(AND(F194=G194,H194=I194,F194="A"),"2016 - kw","") ->  | AB193: =IF(OR(B193="2017 - kw",B193="2018 - kw"),"2016 - kw","") -> 
E194: Class A/B
A195: =IF(AND(F197=G197,H197=I197,J197=K197,F197="A"),"2016 - kwh",IF(AND(F197=G197,H197=I197,J197<>K197,F197="A"),"2017 - kwh",IF(AND(F197=G197,H197<>I197,F197="A"),"2018 - kwh","N/A"))) -> N/A | B195: =IF(AND(F197="A",G197="A"),"A","") ->  | C195: Customer 56 | E195: kWh | AA195: =IF(AND(F197=G197,H197=I197,F197="A"),"2016 - kwh","") ->  | AB195: =IF(OR(B195="2017 - kwh",B195="2018 - kwh"),"2016 - kwh","") -> 
A196: =IF(AND(F197=G197,H197=I197,J197=K197,F197="A"),"2016 - kw",IF(AND(F197=G197,H197=I197,J197<>K197,F197="A"),"2017 - kw",IF(AND(F197=G197,H197<>I197,F197="A"),"2018 - kw","N/A"))) -> N/A | B196: =IF(AND(F197="A",G197="A"),"A","") ->  | D196: =D195 & "kW" -> kW | E196: kW | AA196: =IF(AND(F197=G197,H197=I197,F197="A"),"2016 - kw","") ->  | AB196: =IF(OR(B196="2017 - kw",B196="2018 - kw"),"2016 - kw","") -> 
E197: Class A/B
A198: =IF(AND(F200=G200,H200=I200,J200=K200,F200="A"),"2016 - kwh",IF(AND(F200=G200,H200=I200,J200<>K200,F200="A"),"2017 - kwh",IF(AND(F200=G200,H200<>I200,F200="A"),"2018 - kwh","N/A"))) -> N/A | B198: =IF(AND(F200="A",G200="A"),"A","") ->  | C198: Customer 57 | E198: kWh | AA198: =IF(AND(F200=G200,H200=I200,F200="A"),"2016 - kwh","") ->  | AB198: =IF(OR(B198="2017 - kwh",B198="2018 - kwh"),"2016 - kwh","") -> 
A199: =IF(AND(F200=G200,H200=I200,J200=K200,F200="A"),"2016 - kw",IF(AND(F200=G200,H200=I200,J200<>K200,F200="A"),"2017 - kw",IF(AND(F200=G200,H200<>I200,F200="A"),"2018 - kw","N/A"))) -> N/A | B199: =IF(AND(F200="A",G200="A"),"A","") ->  | D199: =D198 & "kW" -> kW | E199: kW | AA199: =IF(AND(F200=G200,H200=I200,F200="A"),"2016 - kw","") ->  | AB199: =IF(OR(B199="2017 - kw",B199="2018 - kw"),"2016 - kw","") -> 
E200: Class A/B
A201: =IF(AND(F203=G203,H203=I203,J203=K203,F203="A"),"2016 - kwh",IF(AND(F203=G203,H203=I203,J203<>K203,F203="A"),"2017 - kwh",IF(AND(F203=G203,H203<>I203,F203="A"),"2018 - kwh","N/A"))) -> N/A | B201: =IF(AND(F203="A",G203="A"),"A","") ->  | C201: Customer 58 | E201: kWh | AA201: =IF(AND(F203=G203,H203=I203,F203="A"),"2016 - kwh","") ->  | AB201: =IF(OR(B201="2017 - kwh",B201="2018 - kwh"),"2016 - kwh","") -> 
A202: =IF(AND(F203=G203,H203=I203,J203=K203,F203="A"),"2016 - kw",IF(AND(F203=G203,H203=I203,J203<>K203,F203="A"),"2017 - kw",IF(AND(F203=G203,H203<>I203,F203="A"),"2018 - kw","N/A"))) -> N/A | B202: =IF(AND(F203="A",G203="A"),"A","") ->  | D202: =D201 & "kW" -> kW | E202: kW | AA202: =IF(AND(F203=G203,H203=I203,F203="A"),"2016 - kw","") ->  | AB202: =IF(OR(B202="2017 - kw",B202="2018 - kw"),"2016 - kw","") -> 
E203: Class A/B
A204: =IF(AND(F206=G206,H206=I206,J206=K206,F206="A"),"2016 - kwh",IF(AND(F206=G206,H206=I206,J206<>K206,F206="A"),"2017 - kwh",IF(AND(F206=G206,H206<>I206,F206="A"),"2018 - kwh","N/A"))) -> N/A | B204: =IF(AND(F206="A",G206="A"),"A","") ->  | C204: Customer 59 | E204: kWh | AA204: =IF(AND(F206=G206,H206=I206,F206="A"),"2016 - kwh","") ->  | AB204: =IF(OR(B204="2017 - kwh",B204="2018 - kwh"),"2016 - kwh","") -> 
A205: =IF(AND(F206=G206,H206=I206,J206=K206,F206="A"),"2016 - kw",IF(AND(F206=G206,H206=I206,J206<>K206,F206="A"),"2017 - kw",IF(AND(F206=G206,H206<>I206,F206="A"),"2018 - kw","N/A"))) -> N/A | B205: =IF(AND(F206="A",G206="A"),"A","") ->  | D205: =D204 & "kW" -> kW | E205: kW | AA205: =IF(AND(F206=G206,H206=I206,F206="A"),"2016 - kw","") ->  | AB205: =IF(OR(B205="2017 - kw",B205="2018 - kw"),"2016 - kw","") -> 
E206: Class A/B
A207: =IF(AND(F209=G209,H209=I209,J209=K209,F209="A"),"2016 - kwh",IF(AND(F209=G209,H209=I209,J209<>K209,F209="A"),"2017 - kwh",IF(AND(F209=G209,H209<>I209,F209="A"),"2018 - kwh","N/A"))) -> N/A | B207: =IF(AND(F209="A",G209="A"),"A","") ->  | C207: Customer 60 | E207: kWh | AA207: =IF(AND(F209=G209,H209=I209,F209="A"),"2016 - kwh","") ->  | AB207: =IF(OR(B207="2017 - kwh",B207="2018 - kwh"),"2016 - kwh","") -> 
A208: =IF(AND(F209=G209,H209=I209,J209=K209,F209="A"),"2016 - kw",IF(AND(F209=G209,H209=I209,J209<>K209,F209="A"),"2017 - kw",IF(AND(F209=G209,H209<>I209,F209="A"),"2018 - kw","N/A"))) -> N/A | B208: =IF(AND(F209="A",G209="A"),"A","") ->  | D208: =D207 & "kW" -> kW | E208: kW | AA208: =IF(AND(F209=G209,H209=I209,F209="A"),"2016 - kw","") ->  | AB208: =IF(OR(B208="2017 - kw",B208="2018 - kw"),"2016 - kw","") -> 
E209: Class A/B
A210: =IF(AND(F212=G212,H212=I212,J212=K212,F212="A"),"2016 - kwh",IF(AND(F212=G212,H212=I212,J212<>K212,F212="A"),"2017 - kwh",IF(AND(F212=G212,H212<>I212,F212="A"),"2018 - kwh","N/A"))) -> N/A | B210: =IF(AND(F212="A",G212="A"),"A","") ->  | C210: Customer 61 | E210: kWh | AA210: =IF(AND(F212=G212,H212=I212,F212="A"),"2016 - kwh","") ->  | AB210: =IF(OR(B210="2017 - kwh",B210="2018 - kwh"),"2016 - kwh","") -> 
A211: =IF(AND(F212=G212,H212=I212,J212=K212,F212="A"),"2016 - kw",IF(AND(F212=G212,H212=I212,J212<>K212,F212="A"),"2017 - kw",IF(AND(F212=G212,H212<>I212,F212="A"),"2018 - kw","N/A"))) -> N/A | B211: =IF(AND(F212="A",G212="A"),"A","") ->  | D211: =D210 & "kW" -> kW | E211: kW | AA211: =IF(AND(F212=G212,H212=I212,F212="A"),"2016 - kw","") ->  | AB211: =IF(OR(B211="2017 - kw",B211="2018 - kw"),"2016 - kw","") -> 
E212: Class A/B
A213: =IF(AND(F215=G215,H215=I215,J215=K215,F215="A"),"2016 - kwh",IF(AND(F215=G215,H215=I215,J215<>K215,F215="A"),"2017 - kwh",IF(AND(F215=G215,H215<>I215,F215="A"),"2018 - kwh","N/A"))) -> N/A | B213: =IF(AND(F215="A",G215="A"),"A","") ->  | C213: Customer 62 | E213: kWh | AA213: =IF(AND(F215=G215,H215=I215,F215="A"),"2016 - kwh","") ->  | AB213: =IF(OR(B213="2017 - kwh",B213="2018 - kwh"),"2016 - kwh","") -> 
A214: =IF(AND(F215=G215,H215=I215,J215=K215,F215="A"),"2016 - kw",IF(AND(F215=G215,H215=I215,J215<>K215,F215="A"),"2017 - kw",IF(AND(F215=G215,H215<>I215,F215="A"),"2018 - kw","N/A"))) -> N/A | B214: =IF(AND(F215="A",G215="A"),"A","") ->  | D214: =D213 & "kW" -> kW | E214: kW | AA214: =IF(AND(F215=G215,H215=I215,F215="A"),"2016 - kw","") ->  | AB214: =IF(OR(B214="2017 - kw",B214="2018 - kw"),"2016 - kw","") -> 
E215: Class A/B
A216: =IF(AND(F218=G218,H218=I218,J218=K218,F218="A"),"2016 - kwh",IF(AND(F218=G218,H218=I218,J218<>K218,F218="A"),"2017 - kwh",IF(AND(F218=G218,H218<>I218,F218="A"),"2018 - kwh","N/A"))) -> N/A | B216: =IF(AND(F218="A",G218="A"),"A","") ->  | C216: Customer 63 | E216: kWh | AA216: =IF(AND(F218=G218,H218=I218,F218="A"),"2016 - kwh","") ->  | AB216: =IF(OR(B216="2017 - kwh",B216="2018 - kwh"),"2016 - kwh","") -> 
A217: =IF(AND(F218=G218,H218=I218,J218=K218,F218="A"),"2016 - kw",IF(AND(F218=G218,H218=I218,J218<>K218,F218="A"),"2017 - kw",IF(AND(F218=G218,H218<>I218,F218="A"),"2018 - kw","N/A"))) -> N/A | B217: =IF(AND(F218="A",G218="A"),"A","") ->  | D217: =D216 & "kW" -> kW | E217: kW | AA217: =IF(AND(F218=G218,H218=I218,F218="A"),"2016 - kw","") ->  | AB217: =IF(OR(B217="2017 - kw",B217="2018 - kw"),"2016 - kw","") -> 
E218: Class A/B
A219: =IF(AND(F221=G221,H221=I221,J221=K221,F221="A"),"2016 - kwh",IF(AND(F221=G221,H221=I221,J221<>K221,F221="A"),"2017 - kwh",IF(AND(F221=G221,H221<>I221,F221="A"),"2018 - kwh","N/A"))) -> N/A | B219: =IF(AND(F221="A",G221="A"),"A","") ->  | C219: Customer 64 | E219: kWh | AA219: =IF(AND(F221=G221,H221=I221,F221="A"),"2016 - kwh","") ->  | AB219: =IF(OR(B219="2017 - kwh",B219="2018 - kwh"),"2016 - kwh","") -> 
A220: =IF(AND(F221=G221,H221=I221,J221=K221,F221="A"),"2016 - kw",IF(AND(F221=G221,H221=I221,J221<>K221,F221="A"),"2017 - kw",IF(AND(F221=G221,H221<>I221,F221="A"),"2018 - kw","N/A"))) -> N/A | B220: =IF(AND(F221="A",G221="A"),"A","") ->  | D220: =D219 & "kW" -> kW | E220: kW | AA220: =IF(AND(F221=G221,H221=I221,F221="A"),"2016 - kw","") ->  | AB220: =IF(OR(B220="2017 - kw",B220="2018 - kw"),"2016 - kw","") -> 
... 563 more rows

Sheet 6.1a GA Allocation
A14: This tab allocates the GA balance to transition customers (i.e Class A customers who were former Class B customers and Class B customers who were former Class A customers) who contributed to the current GA balance. The tables below calculate specific amounts for each customer who made the change. The general GA rate rider to non-RPP customers is not to be charged to the transition customers that are allocated amounts in the table below. Consistent with prior decisions, distributors are generally expected to settle the amount through 12 equal adjustments to bills.
A16: Year the Account 1589 GA Balance Last Disposed | B16: =G1LD -> 2017
A17: Allocation of total Non-RPP Consumption (kWh) between Current Class B and Class A/B Transition Customers
C18: Total | D18: 2020 | E18: 2019 | F18: 2018 | G18: 2017 | H18: 2016
A19: Non-RPP Consumption Less WMP Consumption | B19: A | C19: =SUM(D19:F19) -> 217215468 | D19: 69891868 | E19: 72788930 | F19: 74534670
A20: Less Class A Consumption for Partial Year Class A Customers | B20: B | C20: =SUM(D20:F20) -> 10816567 | D20: 0 | E20: 0 | F20: 10816567 | G20: 0 | H20: 0
A21: Less Consumption for Full Year Class A Customers | B21: C | C21: =SUM(D21:F21) -> 40317290 | D21: =SUM(IF('6. Class A Consumption Data'!E492:E791="kWh",'6. Class A Consumption Data'!F492:F791)) -> 18333713 | E21: =SUM(IF('6. Class A Consumption Data'!E492:E791="kWh",'6. Class A Consumption Data'!H492:H791)) -> 21983577 | F21: =SUM(IF('6. Class A Consumption Data'!E492:E791="kWh",'6. Class A Consumption Data'!J492:J791)) -> 0 | G21: =SUM(IF('6. Class A Consumption Data'!E492:E791="kWh",'6. Class A Consumption Data'!L492:L791)) -> 0 | H21: =SUM(IF('6. Class A Consumption Data'!E492:E791="kWh",'6. Class A Consumption Data'!N492:N791)) -> 0
A22: Total Class B Consumption for Years During Balance Accumulation | B22: D = A-B-C | C22: =SUM(D22:F22) -> 166081611 | D22: =D19-D20-D21 -> 51558155 | E22: =E19-E20-E21 -> 50805353 | F22: =F19-F20-F21 -> 63718103 | G22: =G19-G20-G21 -> 0 | H22: =H19-H20-H21 -> 0
A23: All Class B Consumption for Transition Customers | B23: E | C23: =SUM(D23:F23) -> 12101519.4 | D23: =D184 -> 0 | E23: =E184 -> 0 | F23: =F184 -> 12101519.4 | G23: =G184 -> 0 | H23: =H184 -> 0
A24: Transition Customers' Portion of Total Consumption | B24: F = E/D | C24: =IFERROR(+C23/C22,0) -> 0.07286489652
A25: Allocation of Total GA Balance $
A27: Total GA Balance | B27: G | C27: ='3. Continuity Schedule'!BT29 -> 123575.6275
A28: Transition Customers Portion of GA Balance | B28: H=F*G | C28: =+C24*C27 -> 9004.325312
A29: GA Balance to be disposed to Current Class B Customers through Rate Rider | B29: I=G-H | C29: =+C27-C28 -> 114571.3022
A31: Allocation of GA Balances to Class A/B Transition Customers
A32: # of Class A/B Transition Customers | C32: =COUNTIF(C34:C183,"<>0") -> 2
A33: Customer | C33: Total Metered Consumption (kWh) for Transition Customers During the Period When They Were Class B Customers | D33: Metered Consumption (kWh) for Transition Customers During the Period When They Were Class B Customers in 2020 | E33: Metered Consumption (kWh) for Transition Customers During the Period When They Were Class B Customers in 2019 | F33: Metered Consumption (kWh) for Transition Customers During the Period When They Were Class B Customers in 2018 | G33: Metered Consumption (kWh) for Transition Customers During the Period When They Were Class B Customers in 2017 | H33: Metered Consumption (kWh) for Transition Customers During the Period When They Were Class B Customers in 2016 | I33: % of kWh | J33: Customer Specific GA Allocation for the Period When They Were Class B customers | K33: Monthly Equal Payments
A34: Customer 1 | C34: =SUM(D34:F34) -> 1906703.4 | D34: =SUM(IF('6. Class A Consumption Data'!F32:G32="B",'6. Class A Consumption Data'!F30:G30)) -> 0 | E34: =SUM(IF('6. Class A Consumption Data'!H32:I32="B",'6. Class A Consumption Data'!H30:I30)) -> 0 | F34: =SUM(IF('6. Class A Consumption Data'!J32:K32="B",'6. Class A Consumption Data'!J30:K30)) -> 1906703.4 | G34: =SUM(IF('6. Class A Consumption Data'!L32:M32="B",'6. Class A Consumption Data'!L30:M30)) -> 0 | H34: =SUM(IF('6. Class A Consumption Data'!N32:O32="B",'6. Class A Consumption Data'!N30:O30)) -> 0 | I34: =IFERROR(+C34/$C$184,0) -> 0.1575590087 | J34: =+I34*$C$28 -> 1418.71257 | K34: =+J34/12 -> 118.2260475
A35: Customer 2 | C35: 10194816 | D35: =SUM(IF('6. Class A Consumption Data'!F35:G35="B",'6. Class A Consumption Data'!F33:G33)) -> 0 | E35: =SUM(IF('6. Class A Consumption Data'!H35:I35="B",'6. Class A Consumption Data'!H33:I33)) -> 0 | F35: =SUM(IF('6. Class A Consumption Data'!J35:K35="B",'6. Class A Consumption Data'!J33:K33)) -> 10194816 | G35: =SUM(IF('6. Class A Consumption Data'!L35:M35="B",'6. Class A Consumption Data'!L33:M33)) -> 0 | H35: =SUM(IF('6. Class A Consumption Data'!N35:O35="B",'6. Class A Consumption Data'!N33:O33)) -> 0 | I35: =IFERROR(+C35/$C$184,0) -> 0.8424409913 | J35: =+I35*$C$28 -> 7585.612742 | K35: =+J35/12 -> 632.1343952
A36: Customer 3 | C36: 0 | D36: 0 | E36: 0 | F36: 0 | G36: =SUM(IF('6. Class A Consumption Data'!L38:M38="B",'6. Class A Consumption Data'!L36:M36)) -> 0 | H36: =SUM(IF('6. Class A Consumption Data'!N38:O38="B",'6. Class A Consumption Data'!N36:O36)) -> 0 | I36: 0 | J36: =+I36*$C$28 -> 0 | K36: =+J36/12 -> 0
A37: Customer 4 | C37: 0 | D37: 0 | E37: 0 | F37: 0 | G37: =SUM(IF('6. Class A Consumption Data'!L41:M41="B",'6. Class A Consumption Data'!L39:M39)) -> 0 | H37: =SUM(IF('6. Class A Consumption Data'!N41:O41="B",'6. Class A Consumption Data'!N39:O39)) -> 0 | I37: 0 | J37: =+I37*$C$28 -> 0 | K37: =+J37/12 -> 0
A38: Customer 5 | C38: 0 | D38: 0 | E38: 0 | F38: 0 | G38: =SUM(IF('6. Class A Consumption Data'!L44:M44="B",'6. Class A Consumption Data'!L42:M42)) -> 0 | H38: =SUM(IF('6. Class A Consumption Data'!N44:O44="B",'6. Class A Consumption Data'!N42:O42)) -> 0 | I38: 0 | J38: =+I38*$C$28 -> 0 | K38: =+J38/12 -> 0
A39: Customer 6 | C39: 0 | D39: 0 | E39: 0 | F39: 0 | G39: =SUM(IF('6. Class A Consumption Data'!L47:M47="B",'6. Class A Consumption Data'!L45:M45)) -> 0 | H39: =SUM(IF('6. Class A Consumption Data'!N47:O47="B",'6. Class A Consumption Data'!N45:O45)) -> 0 | I39: 0 | J39: 0 | K39: 0
A40: Customer 7 | C40: 0 | D40: 0 | E40: 0 | F40: 0 | G40: =SUM(IF('6. Class A Consumption Data'!L50:M50="B",'6. Class A Consumption Data'!L48:M48)) -> 0 | H40: =SUM(IF('6. Class A Consumption Data'!N50:O50="B",'6. Class A Consumption Data'!N48:O48)) -> 0 | I40: 0 | J40: 0 | K40: 0
A41: Customer 8 | C41: 0 | D41: 0 | E41: 0 | F41: 0 | G41: =SUM(IF('6. Class A Consumption Data'!L53:M53="B",'6. Class A Consumption Data'!L51:M51)) -> 0 | H41: =SUM(IF('6. Class A Consumption Data'!N53:O53="B",'6. Class A Consumption Data'!N51:O51)) -> 0 | I41: 0 | J41: 0 | K41: 0
A42: Customer 9 | C42: 0 | D42: 0 | E42: 0 | F42: 0 | G42: =SUM(IF('6. Class A Consumption Data'!L56:M56="B",'6. Class A Consumption Data'!L54:M54)) -> 0 | H42: =SUM(IF('6. Class A Consumption Data'!N56:O56="B",'6. Class A Consumption Data'!N54:O54)) -> 0 | I42: 0 | J42: 0 | K42: 0
A43: Customer 10 | C43: 0 | D43: 0 | E43: 0 | F43: 0 | G43: =SUM(IF('6. Class A Consumption Data'!L59:M59="B",'6. Class A Consumption Data'!L57:M57)) -> 0 | H43: =SUM(IF('6. Class A Consumption Data'!N59:O59="B",'6. Class A Consumption Data'!N57:O57)) -> 0 | I43: 0 | J43: 0 | K43: 0
A44: Customer 11 | C44: 0 | D44: 0 | E44: 0 | F44: 0 | G44: =SUM(IF('6. Class A Consumption Data'!L62:M62="B",'6. Class A Consumption Data'!L60:M60)) -> 0 | H44: =SUM(IF('6. Class A Consumption Data'!N62:O62="B",'6. Class A Consumption Data'!N60:O60)) -> 0 | I44: 0 | J44: 0 | K44: 0
A45: Customer 12 | C45: 0 | D45: 0 | E45: 0 | F45: 0 | G45: =SUM(IF('6. Class A Consumption Data'!L65:M65="B",'6. Class A Consumption Data'!L63:M63)) -> 0 | H45: =SUM(IF('6. Class A Consumption Data'!N65:O65="B",'6. Class A Consumption Data'!N63:O63)) -> 0 | I45: 0 | J45: 0 | K45: 0
A46: Customer 13 | C46: 0 | D46: 0 | E46: 0 | F46: 0 | G46: =SUM(IF('6. Class A Consumption Data'!L68:M68="B",'6. Class A Consumption Data'!L66:M66)) -> 0 | H46: =SUM(IF('6. Class A Consumption Data'!N68:O68="B",'6. Class A Consumption Data'!N66:O66)) -> 0 | I46: 0 | J46: 0 | K46: 0
A47: Customer 14 | C47: 0 | D47: 0 | E47: 0 | F47: 0 | G47: =SUM(IF('6. Class A Consumption Data'!L71:M71="B",'6. Class A Consumption Data'!L69:M69)) -> 0 | H47: =SUM(IF('6. Class A Consumption Data'!N71:O71="B",'6. Class A Consumption Data'!N69:O69)) -> 0 | I47: 0 | J47: 0 | K47: 0
A48: Customer 15 | C48: 0 | D48: 0 | E48: 0 | F48: 0 | G48: =SUM(IF('6. Class A Consumption Data'!L74:M74="B",'6. Class A Consumption Data'!L72:M72)) -> 0 | H48: =SUM(IF('6. Class A Consumption Data'!N74:O74="B",'6. Class A Consumption Data'!N72:O72)) -> 0 | I48: 0 | J48: 0 | K48: 0
A49: Customer 16 | C49: 0 | D49: 0 | E49: 0 | F49: 0 | G49: =SUM(IF('6. Class A Consumption Data'!L77:M77="B",'6. Class A Consumption Data'!L75:M75)) -> 0 | H49: =SUM(IF('6. Class A Consumption Data'!N77:O77="B",'6. Class A Consumption Data'!N75:O75)) -> 0 | I49: 0 | J49: 0 | K49: 0
A50: Customer 17 | C50: 0 | D50: 0 | E50: 0 | F50: 0 | G50: =SUM(IF('6. Class A Consumption Data'!L80:M80="B",'6. Class A Consumption Data'!L78:M78)) -> 0 | H50: =SUM(IF('6. Class A Consumption Data'!N80:O80="B",'6. Class A Consumption Data'!N78:O78)) -> 0 | I50: 0 | J50: 0 | K50: 0
A51: Customer 18 | C51: 0 | D51: 0 | E51: 0 | F51: 0 | G51: =SUM(IF('6. Class A Consumption Data'!L83:M83="B",'6. Class A Consumption Data'!L81:M81)) -> 0 | H51: =SUM(IF('6. Class A Consumption Data'!N83:O83="B",'6. Class A Consumption Data'!N81:O81)) -> 0 | I51: 0 | J51: 0 | K51: 0
A52: Customer 19 | C52: 0 | D52: 0 | E52: 0 | F52: 0 | G52: =SUM(IF('6. Class A Consumption Data'!L86:M86="B",'6. Class A Consumption Data'!L84:M84)) -> 0 | H52: =SUM(IF('6. Class A Consumption Data'!N86:O86="B",'6. Class A Consumption Data'!N84:O84)) -> 0 | I52: 0 | J52: 0 | K52: 0
A53: Customer 20 | C53: 0 | D53: 0 | E53: 0 | F53: 0 | G53: =SUM(IF('6. Class A Consumption Data'!L89:M89="B",'6. Class A Consumption Data'!L87:M87)) -> 0 | H53: =SUM(IF('6. Class A Consumption Data'!N89:O89="B",'6. Class A Consumption Data'!N87:O87)) -> 0 | I53: 0 | J53: 0 | K53: 0
A54: Customer 21 | C54: 0 | D54: 0 | E54: 0 | F54: 0 | G54: =SUM(IF('6. Class A Consumption Data'!L92:M92="B",'6. Class A Consumption Data'!L90:M90)) -> 0 | H54: =SUM(IF('6. Class A Consumption Data'!N92:O92="B",'6. Class A Consumption Data'!N90:O90)) -> 0 | I54: 0 | J54: 0 | K54: 0
A55: Customer 22 | C55: 0 | D55: 0 | E55: 0 | F55: 0 | G55: =SUM(IF('6. Class A Consumption Data'!L95:M95="B",'6. Class A Consumption Data'!L93:M93)) -> 0 | H55: =SUM(IF('6. Class A Consumption Data'!N95:O95="B",'6. Class A Consumption Data'!N93:O93)) -> 0 | I55: 0 | J55: 0 | K55: 0
A56: Customer 23 | C56: 0 | D56: 0 | E56: 0 | F56: 0 | G56: =SUM(IF('6. Class A Consumption Data'!L98:M98="B",'6. Class A Consumption Data'!L96:M96)) -> 0 | H56: =SUM(IF('6. Class A Consumption Data'!N98:O98="B",'6. Class A Consumption Data'!N96:O96)) -> 0 | I56: 0 | J56: 0 | K56: 0
A57: Customer 24 | C57: 0 | D57: 0 | E57: 0 | F57: 0 | G57: =SUM(IF('6. Class A Consumption Data'!L101:M101="B",'6. Class A Consumption Data'!L99:M99)) -> 0 | H57: =SUM(IF('6. Class A Consumption Data'!N101:O101="B",'6. Class A Consumption Data'!N99:O99)) -> 0 | I57: 0 | J57: 0 | K57: 0
A58: Customer 25 | C58: 0 | D58: 0 | E58: 0 | F58: 0 | G58: =SUM(IF('6. Class A Consumption Data'!L104:M104="B",'6. Class A Consumption Data'!L102:M102)) -> 0 | H58: =SUM(IF('6. Class A Consumption Data'!N104:O104="B",'6. Class A Consumption Data'!N102:O102)) -> 0 | I58: 0 | J58: 0 | K58: 0
A59: Customer 26 | C59: 0 | D59: 0 | E59: 0 | F59: 0 | G59: =SUM(IF('6. Class A Consumption Data'!L107:M107="B",'6. Class A Consumption Data'!L105:M105)) -> 0 | H59: =SUM(IF('6. Class A Consumption Data'!N107:O107="B",'6. Class A Consumption Data'!N105:O105)) -> 0 | I59: 0 | J59: 0 | K59: 0
A60: Customer 27 | C60: 0 | D60: 0 | E60: 0 | F60: 0 | G60: =SUM(IF('6. Class A Consumption Data'!L110:M110="B",'6. Class A Consumption Data'!L108:M108)) -> 0 | H60: =SUM(IF('6. Class A Consumption Data'!N110:O110="B",'6. Class A Consumption Data'!N108:O108)) -> 0 | I60: 0 | J60: 0 | K60: 0
A61: Customer 28 | C61: 0 | D61: 0 | E61: 0 | F61: 0 | G61: =SUM(IF('6. Class A Consumption Data'!L113:M113="B",'6. Class A Consumption Data'!L111:M111)) -> 0 | H61: =SUM(IF('6. Class A Consumption Data'!N113:O113="B",'6. Class A Consumption Data'!N111:O111)) -> 0 | I61: 0 | J61: 0 | K61: 0
A62: Customer 29 | C62: 0 | D62: 0 | E62: 0 | F62: 0 | G62: =SUM(IF('6. Class A Consumption Data'!L116:M116="B",'6. Class A Consumption Data'!L114:M114)) -> 0 | H62: =SUM(IF('6. Class A Consumption Data'!N116:O116="B",'6. Class A Consumption Data'!N114:O114)) -> 0 | I62: 0 | J62: 0 | K62: 0
A63: Customer 30 | C63: 0 | D63: 0 | E63: 0 | F63: 0 | G63: =SUM(IF('6. Class A Consumption Data'!L119:M119="B",'6. Class A Consumption Data'!L117:M117)) -> 0 | H63: =SUM(IF('6. Class A Consumption Data'!N119:O119="B",'6. Class A Consumption Data'!N117:O117)) -> 0 | I63: 0 | J63: 0 | K63: 0
A64: Customer 31 | C64: 0 | D64: 0 | E64: 0 | F64: 0 | G64: =SUM(IF('6. Class A Consumption Data'!L122:M122="B",'6. Class A Consumption Data'!L120:M120)) -> 0 | H64: =SUM(IF('6. Class A Consumption Data'!N122:O122="B",'6. Class A Consumption Data'!N120:O120)) -> 0 | I64: 0 | J64: 0 | K64: 0
A65: Customer 32 | C65: 0 | D65: 0 | E65: 0 | F65: 0 | G65: =SUM(IF('6. Class A Consumption Data'!L125:M125="B",'6. Class A Consumption Data'!L123:M123)) -> 0 | H65: =SUM(IF('6. Class A Consumption Data'!N125:O125="B",'6. Class A Consumption Data'!N123:O123)) -> 0 | I65: 0 | J65: 0 | K65: 0
A66: Customer 33 | C66: =SUM(D66:F66) -> 0 | D66: 0 | E66: 0 | F66: 0 | G66: =SUM(IF('6. Class A Consumption Data'!L128:M128="B",'6. Class A Consumption Data'!L126:M126)) -> 0 | H66: =SUM(IF('6. Class A Consumption Data'!N128:O128="B",'6. Class A Consumption Data'!N126:O126)) -> 0 | I66: 0 | J66: 0 | K66: 0
A67: Customer 34 | C67: 0 | D67: 0 | E67: 0 | F67: 0 | G67: =SUM(IF('6. Class A Consumption Data'!L131:M131="B",'6. Class A Consumption Data'!L129:M129)) -> 0 | H67: =SUM(IF('6. Class A Consumption Data'!N131:O131="B",'6. Class A Consumption Data'!N129:O129)) -> 0 | I67: 0 | J67: 0 | K67: 0
A68: Customer 35 | C68: 0 | D68: 0 | E68: 0 | F68: 0 | G68: =SUM(IF('6. Class A Consumption Data'!L134:M134="B",'6. Class A Consumption Data'!L132:M132)) -> 0 | H68: =SUM(IF('6. Class A Consumption Data'!N134:O134="B",'6. Class A Consumption Data'!N132:O132)) -> 0 | I68: 0 | J68: 0 | K68: 0
A69: Customer 36 | C69: 0 | D69: 0 | E69: 0 | F69: 0 | G69: =SUM(IF('6. Class A Consumption Data'!L137:M137="B",'6. Class A Consumption Data'!L135:M135)) -> 0 | H69: =SUM(IF('6. Class A Consumption Data'!N137:O137="B",'6. Class A Consumption Data'!N135:O135)) -> 0 | I69: 0 | J69: 0 | K69: 0
A70: Customer 37 | C70: 0 | D70: 0 | E70: 0 | F70: 0 | G70: =SUM(IF('6. Class A Consumption Data'!L140:M140="B",'6. Class A Consumption Data'!L138:M138)) -> 0 | H70: =SUM(IF('6. Class A Consumption Data'!N140:O140="B",'6. Class A Consumption Data'!N138:O138)) -> 0 | I70: 0 | J70: 0 | K70: 0
A71: Customer 38 | C71: 0 | D71: 0 | E71: 0 | F71: 0 | G71: =SUM(IF('6. Class A Consumption Data'!L143:M143="B",'6. Class A Consumption Data'!L141:M141)) -> 0 | H71: =SUM(IF('6. Class A Consumption Data'!N143:O143="B",'6. Class A Consumption Data'!N141:O141)) -> 0 | I71: 0 | J71: 0 | K71: 0
A72: Customer 39 | C72: 0 | D72: 0 | E72: 0 | F72: 0 | G72: =SUM(IF('6. Class A Consumption Data'!L146:M146="B",'6. Class A Consumption Data'!L144:M144)) -> 0 | H72: =SUM(IF('6. Class A Consumption Data'!N146:O146="B",'6. Class A Consumption Data'!N144:O144)) -> 0 | I72: 0 | J72: 0 | K72: 0
A73: Customer 40 | C73: 0 | D73: 0 | E73: 0 | F73: 0 | G73: =SUM(IF('6. Class A Consumption Data'!L149:M149="B",'6. Class A Consumption Data'!L147:M147)) -> 0 | H73: =SUM(IF('6. Class A Consumption Data'!N149:O149="B",'6. Class A Consumption Data'!N147:O147)) -> 0 | I73: 0 | J73: 0 | K73: 0
A74: Customer 41 | C74: 0 | D74: 0 | E74: 0 | F74: 0 | G74: =SUM(IF('6. Class A Consumption Data'!L152:M152="B",'6. Class A Consumption Data'!L150:M150)) -> 0 | H74: =SUM(IF('6. Class A Consumption Data'!N152:O152="B",'6. Class A Consumption Data'!N150:O150)) -> 0 | I74: 0 | J74: 0 | K74: 0
A75: Customer 42 | C75: 0 | D75: 0 | E75: 0 | F75: 0 | G75: =SUM(IF('6. Class A Consumption Data'!L155:M155="B",'6. Class A Consumption Data'!L153:M153)) -> 0 | H75: =SUM(IF('6. Class A Consumption Data'!N155:O155="B",'6. Class A Consumption Data'!N153:O153)) -> 0 | I75: 0 | J75: 0 | K75: 0
A76: Customer 43 | C76: 0 | D76: 0 | E76: 0 | F76: 0 | G76: =SUM(IF('6. Class A Consumption Data'!L158:M158="B",'6. Class A Consumption Data'!L156:M156)) -> 0 | H76: =SUM(IF('6. Class A Consumption Data'!N158:O158="B",'6. Class A Consumption Data'!N156:O156)) -> 0 | I76: 0 | J76: 0 | K76: 0
A77: Customer 44 | C77: 0 | D77: 0 | E77: 0 | F77: 0 | G77: =SUM(IF('6. Class A Consumption Data'!L161:M161="B",'6. Class A Consumption Data'!L159:M159)) -> 0 | H77: =SUM(IF('6. Class A Consumption Data'!N161:O161="B",'6. Class A Consumption Data'!N159:O159)) -> 0 | I77: 0 | J77: 0 | K77: 0
A78: Customer 45 | C78: 0 | D78: 0 | E78: 0 | F78: 0 | G78: =SUM(IF('6. Class A Consumption Data'!L164:M164="B",'6. Class A Consumption Data'!L162:M162)) -> 0 | H78: =SUM(IF('6. Class A Consumption Data'!N164:O164="B",'6. Class A Consumption Data'!N162:O162)) -> 0 | I78: 0 | J78: 0 | K78: 0
A79: Customer 46 | C79: 0 | D79: 0 | E79: 0 | F79: 0 | G79: =SUM(IF('6. Class A Consumption Data'!L167:M167="B",'6. Class A Consumption Data'!L165:M165)) -> 0 | H79: =SUM(IF('6. Class A Consumption Data'!N167:O167="B",'6. Class A Consumption Data'!N165:O165)) -> 0 | I79: 0 | J79: 0 | K79: 0
A80: Customer 47 | C80: 0 | D80: 0 | E80: 0 | F80: 0 | G80: =SUM(IF('6. Class A Consumption Data'!L170:M170="B",'6. Class A Consumption Data'!L168:M168)) -> 0 | H80: =SUM(IF('6. Class A Consumption Data'!N170:O170="B",'6. Class A Consumption Data'!N168:O168)) -> 0 | I80: 0 | J80: 0 | K80: 0
A81: Customer 48 | C81: 0 | D81: 0 | E81: 0 | F81: 0 | G81: =SUM(IF('6. Class A Consumption Data'!L173:M173="B",'6. Class A Consumption Data'!L171:M171)) -> 0 | H81: =SUM(IF('6. Class A Consumption Data'!N173:O173="B",'6. Class A Consumption Data'!N171:O171)) -> 0 | I81: 0 | J81: 0 | K81: 0
A82: Customer 49 | C82: 0 | D82: 0 | E82: 0 | F82: 0 | G82: =SUM(IF('6. Class A Consumption Data'!L176:M176="B",'6. Class A Consumption Data'!L174:M174)) -> 0 | H82: =SUM(IF('6. Class A Consumption Data'!N176:O176="B",'6. Class A Consumption Data'!N174:O174)) -> 0 | I82: 0 | J82: 0 | K82: 0
A83: Customer 50 | C83: 0 | D83: 0 | E83: 0 | F83: 0 | G83: =SUM(IF('6. Class A Consumption Data'!L179:M179="B",'6. Class A Consumption Data'!L177:M177)) -> 0 | H83: =SUM(IF('6. Class A Consumption Data'!N179:O179="B",'6. Class A Consumption Data'!N177:O177)) -> 0 | I83: 0 | J83: 0 | K83: 0
A84: Customer 51 | C84: 0 | D84: 0 | E84: 0 | F84: 0 | G84: =SUM(IF('6. Class A Consumption Data'!L182:M182="B",'6. Class A Consumption Data'!L180:M180)) -> 0 | H84: =SUM(IF('6. Class A Consumption Data'!N182:O182="B",'6. Class A Consumption Data'!N180:O180)) -> 0 | I84: 0 | J84: 0 | K84: 0
A85: Customer 52 | C85: 0 | D85: 0 | E85: 0 | F85: 0 | G85: =SUM(IF('6. Class A Consumption Data'!L185:M185="B",'6. Class A Consumption Data'!L183:M183)) -> 0 | H85: =SUM(IF('6. Class A Consumption Data'!N185:O185="B",'6. Class A Consumption Data'!N183:O183)) -> 0 | I85: 0 | J85: 0 | K85: 0
A86: Customer 53 | C86: 0 | D86: 0 | E86: 0 | F86: 0 | G86: =SUM(IF('6. Class A Consumption Data'!L188:M188="B",'6. Class A Consumption Data'!L186:M186)) -> 0 | H86: =SUM(IF('6. Class A Consumption Data'!N188:O188="B",'6. Class A Consumption Data'!N186:O186)) -> 0 | I86: 0 | J86: 0 | K86: 0
A87: Customer 54 | C87: 0 | D87: 0 | E87: 0 | F87: 0 | G87: =SUM(IF('6. Class A Consumption Data'!L191:M191="B",'6. Class A Consumption Data'!L189:M189)) -> 0 | H87: =SUM(IF('6. Class A Consumption Data'!N191:O191="B",'6. Class A Consumption Data'!N189:O189)) -> 0 | I87: 0 | J87: 0 | K87: 0
A88: Customer 55 | C88: 0 | D88: 0 | E88: 0 | F88: 0 | G88: =SUM(IF('6. Class A Consumption Data'!L194:M194="B",'6. Class A Consumption Data'!L192:M192)) -> 0 | H88: =SUM(IF('6. Class A Consumption Data'!N194:O194="B",'6. Class A Consumption Data'!N192:O192)) -> 0 | I88: 0 | J88: 0 | K88: 0
A89: Customer 56 | C89: 0 | D89: 0 | E89: 0 | F89: 0 | G89: =SUM(IF('6. Class A Consumption Data'!L197:M197="B",'6. Class A Consumption Data'!L195:M195)) -> 0 | H89: =SUM(IF('6. Class A Consumption Data'!N197:O197="B",'6. Class A Consumption Data'!N195:O195)) -> 0 | I89: 0 | J89: 0 | K89: 0
A90: Customer 57 | C90: 0 | D90: 0 | E90: 0 | F90: 0 | G90: =SUM(IF('6. Class A Consumption Data'!L200:M200="B",'6. Class A Consumption Data'!L198:M198)) -> 0 | H90: =SUM(IF('6. Class A Consumption Data'!N200:O200="B",'6. Class A Consumption Data'!N198:O198)) -> 0 | I90: 0 | J90: 0 | K90: 0
A91: Customer 58 | C91: 0 | D91: 0 | E91: 0 | F91: 0 | G91: =SUM(IF('6. Class A Consumption Data'!L203:M203="B",'6. Class A Consumption Data'!L201:M201)) -> 0 | H91: =SUM(IF('6. Class A Consumption Data'!N203:O203="B",'6. Class A Consumption Data'!N201:O201)) -> 0 | I91: 0 | J91: 0 | K91: 0
A92: Customer 59 | C92: 0 | D92: 0 | E92: 0 | F92: 0 | G92: =SUM(IF('6. Class A Consumption Data'!L206:M206="B",'6. Class A Consumption Data'!L204:M204)) -> 0 | H92: =SUM(IF('6. Class A Consumption Data'!N206:O206="B",'6. Class A Consumption Data'!N204:O204)) -> 0 | I92: 0 | J92: 0 | K92: 0
A93: Customer 60 | C93: 0 | D93: 0 | E93: 0 | F93: 0 | G93: =SUM(IF('6. Class A Consumption Data'!L209:M209="B",'6. Class A Consumption Data'!L207:M207)) -> 0 | H93: =SUM(IF('6. Class A Consumption Data'!N209:O209="B",'6. Class A Consumption Data'!N207:O207)) -> 0 | I93: 0 | J93: 0 | K93: 0
A94: Customer 61 | C94: 0 | D94: 0 | E94: 0 | F94: 0 | G94: =SUM(IF('6. Class A Consumption Data'!L212:M212="B",'6. Class A Consumption Data'!L210:M210)) -> 0 | H94: =SUM(IF('6. Class A Consumption Data'!N212:O212="B",'6. Class A Consumption Data'!N210:O210)) -> 0 | I94: 0 | J94: 0 | K94: 0
A95: Customer 62 | C95: 0 | D95: 0 | E95: 0 | F95: 0 | G95: =SUM(IF('6. Class A Consumption Data'!L215:M215="B",'6. Class A Consumption Data'!L213:M213)) -> 0 | H95: =SUM(IF('6. Class A Consumption Data'!N215:O215="B",'6. Class A Consumption Data'!N213:O213)) -> 0 | I95: 0 | J95: 0 | K95: 0
A96: Customer 63 | C96: 0 | D96: 0 | E96: 0 | F96: 0 | G96: =SUM(IF('6. Class A Consumption Data'!L218:M218="B",'6. Class A Consumption Data'!L216:M216)) -> 0 | H96: =SUM(IF('6. Class A Consumption Data'!N218:O218="B",'6. Class A Consumption Data'!N216:O216)) -> 0 | I96: 0 | J96: 0 | K96: 0
A97: Customer 64 | C97: 0 | D97: 0 | E97: 0 | F97: 0 | G97: =SUM(IF('6. Class A Consumption Data'!L221:M221="B",'6. Class A Consumption Data'!L219:M219)) -> 0 | H97: =SUM(IF('6. Class A Consumption Data'!N221:O221="B",'6. Class A Consumption Data'!N219:O219)) -> 0 | I97: 0 | J97: 0 | K97: 0
A98: Customer 65 | C98: =SUM(D98:F98) -> 0 | D98: 0 | E98: 0 | F98: 0 | G98: =SUM(IF('6. Class A Consumption Data'!L224:M224="B",'6. Class A Consumption Data'!L222:M222)) -> 0 | H98: =SUM(IF('6. Class A Consumption Data'!N224:O224="B",'6. Class A Consumption Data'!N222:O222)) -> 0 | I98: 0 | J98: 0 | K98: 0
A99: Customer 66 | C99: 0 | D99: 0 | E99: 0 | F99: 0 | G99: =SUM(IF('6. Class A Consumption Data'!L227:M227="B",'6. Class A Consumption Data'!L225:M225)) -> 0 | H99: =SUM(IF('6. Class A Consumption Data'!N227:O227="B",'6. Class A Consumption Data'!N225:O225)) -> 0 | I99: =IFERROR(+C99/$C$184,0) -> 0 | J99: 0 | K99: 0
A100: Customer 67 | C100: 0 | D100: 0 | E100: 0 | F100: 0 | G100: =SUM(IF('6. Class A Consumption Data'!L230:M230="B",'6. Class A Consumption Data'!L228:M228)) -> 0 | H100: =SUM(IF('6. Class A Consumption Data'!N230:O230="B",'6. Class A Consumption Data'!N228:O228)) -> 0 | I100: 0 | J100: 0 | K100: 0
A101: Customer 68 | C101: 0 | D101: 0 | E101: 0 | F101: 0 | G101: =SUM(IF('6. Class A Consumption Data'!L233:M233="B",'6. Class A Consumption Data'!L231:M231)) -> 0 | H101: =SUM(IF('6. Class A Consumption Data'!N233:O233="B",'6. Class A Consumption Data'!N231:O231)) -> 0 | I101: 0 | J101: 0 | K101: 0
A102: Customer 69 | C102: 0 | D102: 0 | E102: 0 | F102: 0 | G102: =SUM(IF('6. Class A Consumption Data'!L236:M236="B",'6. Class A Consumption Data'!L234:M234)) -> 0 | H102: =SUM(IF('6. Class A Consumption Data'!N236:O236="B",'6. Class A Consumption Data'!N234:O234)) -> 0 | I102: 0 | J102: =+I102*$C$28 -> 0 | K102: =+J102/12 -> 0
A103: Customer 70 | C103: 0 | D103: 0 | E103: 0 | F103: 0 | G103: =SUM(IF('6. Class A Consumption Data'!L239:M239="B",'6. Class A Consumption Data'!L237:M237)) -> 0 | H103: =SUM(IF('6. Class A Consumption Data'!N239:O239="B",'6. Class A Consumption Data'!N237:O237)) -> 0 | I103: 0 | J103: 0 | K103: 0
A104: Customer 71 | C104: 0 | D104: 0 | E104: 0 | F104: 0 | G104: =SUM(IF('6. Class A Consumption Data'!L242:M242="B",'6. Class A Consumption Data'!L240:M240)) -> 0 | H104: =SUM(IF('6. Class A Consumption Data'!N242:O242="B",'6. Class A Consumption Data'!N240:O240)) -> 0 | I104: 0 | J104: 0 | K104: 0
A105: Customer 72 | C105: 0 | D105: 0 | E105: 0 | F105: 0 | G105: =SUM(IF('6. Class A Consumption Data'!L245:M245="B",'6. Class A Consumption Data'!L243:M243)) -> 0 | H105: =SUM(IF('6. Class A Consumption Data'!N245:O245="B",'6. Class A Consumption Data'!N243:O243)) -> 0 | I105: 0 | J105: 0 | K105: 0
A106: Customer 73 | C106: 0 | D106: 0 | E106: 0 | F106: 0 | G106: =SUM(IF('6. Class A Consumption Data'!L248:M248="B",'6. Class A Consumption Data'!L246:M246)) -> 0 | H106: =SUM(IF('6. Class A Consumption Data'!N248:O248="B",'6. Class A Consumption Data'!N246:O246)) -> 0 | I106: 0 | J106: 0 | K106: 0
A107: Customer 74 | C107: 0 | D107: 0 | E107: 0 | F107: 0 | G107: =SUM(IF('6. Class A Consumption Data'!L251:M251="B",'6. Class A Consumption Data'!L249:M249)) -> 0 | H107: =SUM(IF('6. Class A Consumption Data'!N251:O251="B",'6. Class A Consumption Data'!N249:O249)) -> 0 | I107: 0 | J107: 0 | K107: 0
A108: Customer 75 | C108: 0 | D108: 0 | E108: 0 | F108: 0 | G108: =SUM(IF('6. Class A Consumption Data'!L254:M254="B",'6. Class A Consumption Data'!L252:M252)) -> 0 | H108: =SUM(IF('6. Class A Consumption Data'!N254:O254="B",'6. Class A Consumption Data'!N252:O252)) -> 0 | I108: 0 | J108: 0 | K108: 0
A109: Customer 76 | C109: 0 | D109: 0 | E109: 0 | F109: 0 | G109: =SUM(IF('6. Class A Consumption Data'!L257:M257="B",'6. Class A Consumption Data'!L255:M255)) -> 0 | H109: =SUM(IF('6. Class A Consumption Data'!N257:O257="B",'6. Class A Consumption Data'!N255:O255)) -> 0 | I109: 0 | J109: 0 | K109: 0
A110: Customer 77 | C110: 0 | D110: 0 | E110: 0 | F110: 0 | G110: =SUM(IF('6. Class A Consumption Data'!L260:M260="B",'6. Class A Consumption Data'!L258:M258)) -> 0 | H110: =SUM(IF('6. Class A Consumption Data'!N260:O260="B",'6. Class A Consumption Data'!N258:O258)) -> 0 | I110: 0 | J110: 0 | K110: 0
A111: Customer 78 | C111: 0 | D111: 0 | E111: 0 | F111: 0 | G111: =SUM(IF('6. Class A Consumption Data'!L263:M263="B",'6. Class A Consumption Data'!L261:M261)) -> 0 | H111: =SUM(IF('6. Class A Consumption Data'!N263:O263="B",'6. Class A Consumption Data'!N261:O261)) -> 0 | I111: 0 | J111: 0 | K111: 0
A112: Customer 79 | C112: 0 | D112: 0 | E112: 0 | F112: 0 | G112: =SUM(IF('6. Class A Consumption Data'!L266:M266="B",'6. Class A Consumption Data'!L264:M264)) -> 0 | H112: =SUM(IF('6. Class A Consumption Data'!N266:O266="B",'6. Class A Consumption Data'!N264:O264)) -> 0 | I112: 0 | J112: 0 | K112: 0
A113: Customer 80 | C113: 0 | D113: 0 | E113: 0 | F113: 0 | G113: =SUM(IF('6. Class A Consumption Data'!L269:M269="B",'6. Class A Consumption Data'!L267:M267)) -> 0 | H113: =SUM(IF('6. Class A Consumption Data'!N269:O269="B",'6. Class A Consumption Data'!N267:O267)) -> 0 | I113: 0 | J113: 0 | K113: 0
A114: Customer 81 | C114: 0 | D114: 0 | E114: 0 | F114: 0 | G114: =SUM(IF('6. Class A Consumption Data'!L272:M272="B",'6. Class A Consumption Data'!L270:M270)) -> 0 | H114: =SUM(IF('6. Class A Consumption Data'!N272:O272="B",'6. Class A Consumption Data'!N270:O270)) -> 0 | I114: 0 | J114: 0 | K114: 0
A115: Customer 82 | C115: 0 | D115: 0 | E115: 0 | F115: 0 | G115: =SUM(IF('6. Class A Consumption Data'!L275:M275="B",'6. Class A Consumption Data'!L273:M273)) -> 0 | H115: =SUM(IF('6. Class A Consumption Data'!N275:O275="B",'6. Class A Consumption Data'!N273:O273)) -> 0 | I115: 0 | J115: 0 | K115: 0
A116: Customer 83 | C116: 0 | D116: 0 | E116: 0 | F116: 0 | G116: =SUM(IF('6. Class A Consumption Data'!L278:M278="B",'6. Class A Consumption Data'!L276:M276)) -> 0 | H116: =SUM(IF('6. Class A Consumption Data'!N278:O278="B",'6. Class A Consumption Data'!N276:O276)) -> 0 | I116: 0 | J116: 0 | K116: 0
A117: Customer 84 | C117: 0 | D117: 0 | E117: 0 | F117: 0 | G117: =SUM(IF('6. Class A Consumption Data'!L281:M281="B",'6. Class A Consumption Data'!L279:M279)) -> 0 | H117: =SUM(IF('6. Class A Consumption Data'!N281:O281="B",'6. Class A Consumption Data'!N279:O279)) -> 0 | I117: 0 | J117: 0 | K117: 0
A118: Customer 85 | C118: 0 | D118: 0 | E118: 0 | F118: 0 | G118: =SUM(IF('6. Class A Consumption Data'!L284:M284="B",'6. Class A Consumption Data'!L282:M282)) -> 0 | H118: =SUM(IF('6. Class A Consumption Data'!N284:O284="B",'6. Class A Consumption Data'!N282:O282)) -> 0 | I118: 0 | J118: 0 | K118: 0
A119: Customer 86 | C119: 0 | D119: 0 | E119: 0 | F119: 0 | G119: =SUM(IF('6. Class A Consumption Data'!L287:M287="B",'6. Class A Consumption Data'!L285:M285)) -> 0 | H119: =SUM(IF('6. Class A Consumption Data'!N287:O287="B",'6. Class A Consumption Data'!N285:O285)) -> 0 | I119: 0 | J119: 0 | K119: 0
A120: Customer 87 | C120: 0 | D120: 0 | E120: 0 | F120: 0 | G120: =SUM(IF('6. Class A Consumption Data'!L290:M290="B",'6. Class A Consumption Data'!L288:M288)) -> 0 | H120: =SUM(IF('6. Class A Consumption Data'!N290:O290="B",'6. Class A Consumption Data'!N288:O288)) -> 0 | I120: 0 | J120: 0 | K120: 0
A121: Customer 88 | C121: 0 | D121: 0 | E121: 0 | F121: 0 | G121: =SUM(IF('6. Class A Consumption Data'!L293:M293="B",'6. Class A Consumption Data'!L291:M291)) -> 0 | H121: =SUM(IF('6. Class A Consumption Data'!N293:O293="B",'6. Class A Consumption Data'!N291:O291)) -> 0 | I121: 0 | J121: 0 | K121: 0
A122: Customer 89 | C122: 0 | D122: 0 | E122: 0 | F122: 0 | G122: =SUM(IF('6. Class A Consumption Data'!L296:M296="B",'6. Class A Consumption Data'!L294:M294)) -> 0 | H122: =SUM(IF('6. Class A Consumption Data'!N296:O296="B",'6. Class A Consumption Data'!N294:O294)) -> 0 | I122: 0 | J122: 0 | K122: 0
A123: Customer 90 | C123: 0 | D123: 0 | E123: 0 | F123: 0 | G123: =SUM(IF('6. Class A Consumption Data'!L299:M299="B",'6. Class A Consumption Data'!L297:M297)) -> 0 | H123: =SUM(IF('6. Class A Consumption Data'!N299:O299="B",'6. Class A Consumption Data'!N297:O297)) -> 0 | I123: 0 | J123: 0 | K123: 0
A124: Customer 91 | C124: 0 | D124: 0 | E124: 0 | F124: 0 | G124: =SUM(IF('6. Class A Consumption Data'!L302:M302="B",'6. Class A Consumption Data'!L300:M300)) -> 0 | H124: =SUM(IF('6. Class A Consumption Data'!N302:O302="B",'6. Class A Consumption Data'!N300:O300)) -> 0 | I124: 0 | J124: 0 | K124: 0
A125: Customer 92 | C125: 0 | D125: 0 | E125: 0 | F125: 0 | G125: =SUM(IF('6. Class A Consumption Data'!L305:M305="B",'6. Class A Consumption Data'!L303:M303)) -> 0 | H125: =SUM(IF('6. Class A Consumption Data'!N305:O305="B",'6. Class A Consumption Data'!N303:O303)) -> 0 | I125: 0 | J125: 0 | K125: 0
A126: Customer 93 | C126: 0 | D126: 0 | E126: 0 | F126: 0 | G126: =SUM(IF('6. Class A Consumption Data'!L308:M308="B",'6. Class A Consumption Data'!L306:M306)) -> 0 | H126: =SUM(IF('6. Class A Consumption Data'!N308:O308="B",'6. Class A Consumption Data'!N306:O306)) -> 0 | I126: 0 | J126: 0 | K126: 0
A127: Customer 94 | C127: 0 | D127: 0 | E127: 0 | F127: 0 | G127: =SUM(IF('6. Class A Consumption Data'!L311:M311="B",'6. Class A Consumption Data'!L309:M309)) -> 0 | H127: =SUM(IF('6. Class A Consumption Data'!N311:O311="B",'6. Class A Consumption Data'!N309:O309)) -> 0 | I127: 0 | J127: 0 | K127: 0
A128: Customer 95 | C128: 0 | D128: 0 | E128: 0 | F128: 0 | G128: =SUM(IF('6. Class A Consumption Data'!L314:M314="B",'6. Class A Consumption Data'!L312:M312)) -> 0 | H128: =SUM(IF('6. Class A Consumption Data'!N314:O314="B",'6. Class A Consumption Data'!N312:O312)) -> 0 | I128: 0 | J128: 0 | K128: 0
A129: Customer 96 | C129: 0 | D129: 0 | E129: 0 | F129: 0 | G129: =SUM(IF('6. Class A Consumption Data'!L317:M317="B",'6. Class A Consumption Data'!L315:M315)) -> 0 | H129: =SUM(IF('6. Class A Consumption Data'!N317:O317="B",'6. Class A Consumption Data'!N315:O315)) -> 0 | I129: 0 | J129: 0 | K129: 0
A130: Customer 97 | C130: =SUM(D130:F130) -> 0 | D130: 0 | E130: 0 | F130: 0 | G130: =SUM(IF('6. Class A Consumption Data'!L320:M320="B",'6. Class A Consumption Data'!L318:M318)) -> 0 | H130: =SUM(IF('6. Class A Consumption Data'!N320:O320="B",'6. Class A Consumption Data'!N318:O318)) -> 0 | I130: 0 | J130: 0 | K130: 0
A131: Customer 98 | C131: 0 | D131: 0 | E131: 0 | F131: 0 | G131: =SUM(IF('6. Class A Consumption Data'!L323:M323="B",'6. Class A Consumption Data'!L321:M321)) -> 0 | H131: =SUM(IF('6. Class A Consumption Data'!N323:O323="B",'6. Class A Consumption Data'!N321:O321)) -> 0 | I131: 0 | J131: 0 | K131: 0
A132: Customer 99 | C132: 0 | D132: 0 | E132: 0 | F132: 0 | G132: =SUM(IF('6. Class A Consumption Data'!L326:M326="B",'6. Class A Consumption Data'!L324:M324)) -> 0 | H132: =SUM(IF('6. Class A Consumption Data'!N326:O326="B",'6. Class A Consumption Data'!N324:O324)) -> 0 | I132: 0 | J132: 0 | K132: 0
A133: Customer 100 | C133: 0 | D133: 0 | E133: 0 | F133: 0 | G133: =SUM(IF('6. Class A Consumption Data'!L329:M329="B",'6. Class A Consumption Data'!L327:M327)) -> 0 | H133: =SUM(IF('6. Class A Consumption Data'!N329:O329="B",'6. Class A Consumption Data'!N327:O327)) -> 0 | I133: 0 | J133: 0 | K133: 0
A134: Customer 101 | C134: 0 | D134: 0 | E134: 0 | F134: 0 | G134: =SUM(IF('6. Class A Consumption Data'!L332:M332="B",'6. Class A Consumption Data'!L330:M330)) -> 0 | H134: =SUM(IF('6. Class A Consumption Data'!N332:O332="B",'6. Class A Consumption Data'!N330:O330)) -> 0 | I134: 0 | J134: 0 | K134: 0
A135: Customer 102 | C135: 0 | D135: 0 | E135: 0 | F135: 0 | G135: =SUM(IF('6. Class A Consumption Data'!L335:M335="B",'6. Class A Consumption Data'!L333:M333)) -> 0 | H135: =SUM(IF('6. Class A Consumption Data'!N335:O335="B",'6. Class A Consumption Data'!N333:O333)) -> 0 | I135: 0 | J135: 0 | K135: 0
A136: Customer 103 | C136: 0 | D136: 0 | E136: 0 | F136: 0 | G136: =SUM(IF('6. Class A Consumption Data'!L338:M338="B",'6. Class A Consumption Data'!L336:M336)) -> 0 | H136: =SUM(IF('6. Class A Consumption Data'!N338:O338="B",'6. Class A Consumption Data'!N336:O336)) -> 0 | I136: 0 | J136: 0 | K136: 0
A137: Customer 104 | C137: 0 | D137: 0 | E137: 0 | F137: 0 | G137: =SUM(IF('6. Class A Consumption Data'!L341:M341="B",'6. Class A Consumption Data'!L339:M339)) -> 0 | H137: =SUM(IF('6. Class A Consumption Data'!N341:O341="B",'6. Class A Consumption Data'!N339:O339)) -> 0 | I137: 0 | J137: 0 | K137: 0
A138: Customer 105 | C138: 0 | D138: 0 | E138: 0 | F138: 0 | G138: =SUM(IF('6. Class A Consumption Data'!L344:M344="B",'6. Class A Consumption Data'!L342:M342)) -> 0 | H138: =SUM(IF('6. Class A Consumption Data'!N344:O344="B",'6. Class A Consumption Data'!N342:O342)) -> 0 | I138: 0 | J138: 0 | K138: 0
A139: Customer 106 | C139: 0 | D139: 0 | E139: 0 | F139: 0 | G139: =SUM(IF('6. Class A Consumption Data'!L347:M347="B",'6. Class A Consumption Data'!L345:M345)) -> 0 | H139: =SUM(IF('6. Class A Consumption Data'!N347:O347="B",'6. Class A Consumption Data'!N345:O345)) -> 0 | I139: 0 | J139: 0 | K139: 0
A140: Customer 107 | C140: 0 | D140: 0 | E140: 0 | F140: 0 | G140: =SUM(IF('6. Class A Consumption Data'!L350:M350="B",'6. Class A Consumption Data'!L348:M348)) -> 0 | H140: =SUM(IF('6. Class A Consumption Data'!N350:O350="B",'6. Class A Consumption Data'!N348:O348)) -> 0 | I140: 0 | J140: 0 | K140: 0
A141: Customer 108 | C141: 0 | D141: 0 | E141: 0 | F141: 0 | G141: =SUM(IF('6. Class A Consumption Data'!L353:M353="B",'6. Class A Consumption Data'!L351:M351)) -> 0 | H141: =SUM(IF('6. Class A Consumption Data'!N353:O353="B",'6. Class A Consumption Data'!N351:O351)) -> 0 | I141: 0 | J141: 0 | K141: 0
A142: Customer 109 | C142: 0 | D142: 0 | E142: 0 | F142: 0 | G142: =SUM(IF('6. Class A Consumption Data'!L356:M356="B",'6. Class A Consumption Data'!L354:M354)) -> 0 | H142: =SUM(IF('6. Class A Consumption Data'!N356:O356="B",'6. Class A Consumption Data'!N354:O354)) -> 0 | I142: 0 | J142: 0 | K142: 0
A143: Customer 110 | C143: 0 | D143: 0 | E143: 0 | F143: 0 | G143: =SUM(IF('6. Class A Consumption Data'!L359:M359="B",'6. Class A Consumption Data'!L357:M357)) -> 0 | H143: =SUM(IF('6. Class A Consumption Data'!N359:O359="B",'6. Class A Consumption Data'!N357:O357)) -> 0 | I143: 0 | J143: 0 | K143: 0
A144: Customer 111 | C144: 0 | D144: 0 | E144: 0 | F144: 0 | G144: =SUM(IF('6. Class A Consumption Data'!L362:M362="B",'6. Class A Consumption Data'!L360:M360)) -> 0 | H144: =SUM(IF('6. Class A Consumption Data'!N362:O362="B",'6. Class A Consumption Data'!N360:O360)) -> 0 | I144: 0 | J144: 0 | K144: 0
A145: Customer 112 | C145: 0 | D145: 0 | E145: 0 | F145: 0 | G145: =SUM(IF('6. Class A Consumption Data'!L365:M365="B",'6. Class A Consumption Data'!L363:M363)) -> 0 | H145: =SUM(IF('6. Class A Consumption Data'!N365:O365="B",'6. Class A Consumption Data'!N363:O363)) -> 0 | I145: 0 | J145: 0 | K145: 0
A146: Customer 113 | C146: 0 | D146: 0 | E146: 0 | F146: 0 | G146: =SUM(IF('6. Class A Consumption Data'!L368:M368="B",'6. Class A Consumption Data'!L366:M366)) -> 0 | H146: =SUM(IF('6. Class A Consumption Data'!N368:O368="B",'6. Class A Consumption Data'!N366:O366)) -> 0 | I146: 0 | J146: 0 | K146: 0
A147: Customer 114 | C147: 0 | D147: 0 | E147: 0 | F147: 0 | G147: =SUM(IF('6. Class A Consumption Data'!L371:M371="B",'6. Class A Consumption Data'!L369:M369)) -> 0 | H147: =SUM(IF('6. Class A Consumption Data'!N371:O371="B",'6. Class A Consumption Data'!N369:O369)) -> 0 | I147: 0 | J147: 0 | K147: 0
A148: Customer 115 | C148: 0 | D148: 0 | E148: 0 | F148: 0 | G148: =SUM(IF('6. Class A Consumption Data'!L374:M374="B",'6. Class A Consumption Data'!L372:M372)) -> 0 | H148: =SUM(IF('6. Class A Consumption Data'!N374:O374="B",'6. Class A Consumption Data'!N372:O372)) -> 0 | I148: 0 | J148: 0 | K148: 0
A149: Customer 116 | C149: 0 | D149: 0 | E149: 0 | F149: 0 | G149: =SUM(IF('6. Class A Consumption Data'!L377:M377="B",'6. Class A Consumption Data'!L375:M375)) -> 0 | H149: =SUM(IF('6. Class A Consumption Data'!N377:O377="B",'6. Class A Consumption Data'!N375:O375)) -> 0 | I149: 0 | J149: 0 | K149: 0
A150: Customer 117 | C150: 0 | D150: 0 | E150: 0 | F150: 0 | G150: =SUM(IF('6. Class A Consumption Data'!L380:M380="B",'6. Class A Consumption Data'!L378:M378)) -> 0 | H150: =SUM(IF('6. Class A Consumption Data'!N380:O380="B",'6. Class A Consumption Data'!N378:O378)) -> 0 | I150: 0 | J150: 0 | K150: 0
A151: Customer 118 | C151: 0 | D151: 0 | E151: 0 | F151: 0 | G151: =SUM(IF('6. Class A Consumption Data'!L383:M383="B",'6. Class A Consumption Data'!L381:M381)) -> 0 | H151: =SUM(IF('6. Class A Consumption Data'!N383:O383="B",'6. Class A Consumption Data'!N381:O381)) -> 0 | I151: 0 | J151: 0 | K151: 0
A152: Customer 119 | C152: 0 | D152: 0 | E152: 0 | F152: 0 | G152: =SUM(IF('6. Class A Consumption Data'!L386:M386="B",'6. Class A Consumption Data'!L384:M384)) -> 0 | H152: =SUM(IF('6. Class A Consumption Data'!N386:O386="B",'6. Class A Consumption Data'!N384:O384)) -> 0 | I152: 0 | J152: 0 | K152: 0
A153: Customer 120 | C153: 0 | D153: 0 | E153: 0 | F153: 0 | G153: =SUM(IF('6. Class A Consumption Data'!L389:M389="B",'6. Class A Consumption Data'!L387:M387)) -> 0 | H153: =SUM(IF('6. Class A Consumption Data'!N389:O389="B",'6. Class A Consumption Data'!N387:O387)) -> 0 | I153: 0 | J153: 0 | K153: 0
A154: Customer 121 | C154: 0 | D154: 0 | E154: 0 | F154: 0 | G154: =SUM(IF('6. Class A Consumption Data'!L392:M392="B",'6. Class A Consumption Data'!L390:M390)) -> 0 | H154: =SUM(IF('6. Class A Consumption Data'!N392:O392="B",'6. Class A Consumption Data'!N390:O390)) -> 0 | I154: 0 | J154: 0 | K154: 0
A155: Customer 122 | C155: 0 | D155: 0 | E155: 0 | F155: 0 | G155: =SUM(IF('6. Class A Consumption Data'!L395:M395="B",'6. Class A Consumption Data'!L393:M393)) -> 0 | H155: =SUM(IF('6. Class A Consumption Data'!N395:O395="B",'6. Class A Consumption Data'!N393:O393)) -> 0 | I155: 0 | J155: 0 | K155: 0
A156: Customer 123 | C156: 0 | D156: 0 | E156: 0 | F156: 0 | G156: =SUM(IF('6. Class A Consumption Data'!L398:M398="B",'6. Class A Consumption Data'!L396:M396)) -> 0 | H156: =SUM(IF('6. Class A Consumption Data'!N398:O398="B",'6. Class A Consumption Data'!N396:O396)) -> 0 | I156: 0 | J156: 0 | K156: 0
A157: Customer 124 | C157: 0 | D157: 0 | E157: 0 | F157: 0 | G157: =SUM(IF('6. Class A Consumption Data'!L401:M401="B",'6. Class A Consumption Data'!L399:M399)) -> 0 | H157: =SUM(IF('6. Class A Consumption Data'!N401:O401="B",'6. Class A Consumption Data'!N399:O399)) -> 0 | I157: 0 | J157: 0 | K157: 0
A158: Customer 125 | C158: 0 | D158: 0 | E158: 0 | F158: 0 | G158: =SUM(IF('6. Class A Consumption Data'!L404:M404="B",'6. Class A Consumption Data'!L402:M402)) -> 0 | H158: =SUM(IF('6. Class A Consumption Data'!N404:O404="B",'6. Class A Consumption Data'!N402:O402)) -> 0 | I158: 0 | J158: 0 | K158: 0
A159: Customer 126 | C159: 0 | D159: 0 | E159: 0 | F159: 0 | G159: =SUM(IF('6. Class A Consumption Data'!L407:M407="B",'6. Class A Consumption Data'!L405:M405)) -> 0 | H159: =SUM(IF('6. Class A Consumption Data'!N407:O407="B",'6. Class A Consumption Data'!N405:O405)) -> 0 | I159: 0 | J159: 0 | K159: 0
A160: Customer 127 | C160: 0 | D160: 0 | E160: 0 | F160: 0 | G160: =SUM(IF('6. Class A Consumption Data'!L410:M410="B",'6. Class A Consumption Data'!L408:M408)) -> 0 | H160: =SUM(IF('6. Class A Consumption Data'!N410:O410="B",'6. Class A Consumption Data'!N408:O408)) -> 0 | I160: 0 | J160: 0 | K160: 0
A161: Customer 128 | C161: 0 | D161: 0 | E161: 0 | F161: 0 | G161: =SUM(IF('6. Class A Consumption Data'!L413:M413="B",'6. Class A Consumption Data'!L411:M411)) -> 0 | H161: =SUM(IF('6. Class A Consumption Data'!N413:O413="B",'6. Class A Consumption Data'!N411:O411)) -> 0 | I161: 0 | J161: 0 | K161: 0
A162: Customer 129 | C162: =SUM(D162:F162) -> 0 | D162: 0 | E162: 0 | F162: 0 | G162: =SUM(IF('6. Class A Consumption Data'!L416:M416="B",'6. Class A Consumption Data'!L414:M414)) -> 0 | H162: =SUM(IF('6. Class A Consumption Data'!N416:O416="B",'6. Class A Consumption Data'!N414:O414)) -> 0 | I162: 0 | J162: 0 | K162: 0
A163: Customer 130 | C163: 0 | D163: 0 | E163: 0 | F163: 0 | G163: =SUM(IF('6. Class A Consumption Data'!L419:M419="B",'6. Class A Consumption Data'!L417:M417)) -> 0 | H163: =SUM(IF('6. Class A Consumption Data'!N419:O419="B",'6. Class A Consumption Data'!N417:O417)) -> 0 | I163: =IFERROR(+C163/$C$184,0) -> 0 | J163: 0 | K163: 0
A164: Customer 131 | C164: 0 | D164: 0 | E164: 0 | F164: 0 | G164: =SUM(IF('6. Class A Consumption Data'!L422:M422="B",'6. Class A Consumption Data'!L420:M420)) -> 0 | H164: =SUM(IF('6. Class A Consumption Data'!N422:O422="B",'6. Class A Consumption Data'!N420:O420)) -> 0 | I164: 0 | J164: 0 | K164: 0
A165: Customer 132 | C165: 0 | D165: 0 | E165: 0 | F165: 0 | G165: =SUM(IF('6. Class A Consumption Data'!L425:M425="B",'6. Class A Consumption Data'!L423:M423)) -> 0 | H165: =SUM(IF('6. Class A Consumption Data'!N425:O425="B",'6. Class A Consumption Data'!N423:O423)) -> 0 | I165: 0 | J165: 0 | K165: 0
A166: Customer 133 | C166: 0 | D166: 0 | E166: 0 | F166: 0 | G166: =SUM(IF('6. Class A Consumption Data'!L428:M428="B",'6. Class A Consumption Data'!L426:M426)) -> 0 | H166: =SUM(IF('6. Class A Consumption Data'!N428:O428="B",'6. Class A Consumption Data'!N426:O426)) -> 0 | I166: 0 | J166: =+I166*$C$28 -> 0 | K166: =+J166/12 -> 0
A167: Customer 134 | C167: 0 | D167: 0 | E167: 0 | F167: 0 | G167: =SUM(IF('6. Class A Consumption Data'!L431:M431="B",'6. Class A Consumption Data'!L429:M429)) -> 0 | H167: =SUM(IF('6. Class A Consumption Data'!N431:O431="B",'6. Class A Consumption Data'!N429:O429)) -> 0 | I167: 0 | J167: 0 | K167: 0
A168: Customer 135 | C168: 0 | D168: 0 | E168: 0 | F168: 0 | G168: =SUM(IF('6. Class A Consumption Data'!L434:M434="B",'6. Class A Consumption Data'!L432:M432)) -> 0 | H168: =SUM(IF('6. Class A Consumption Data'!N434:O434="B",'6. Class A Consumption Data'!N432:O432)) -> 0 | I168: 0 | J168: 0 | K168: 0
A169: Customer 136 | C169: 0 | D169: 0 | E169: 0 | F169: 0 | G169: =SUM(IF('6. Class A Consumption Data'!L437:M437="B",'6. Class A Consumption Data'!L435:M435)) -> 0 | H169: =SUM(IF('6. Class A Consumption Data'!N437:O437="B",'6. Class A Consumption Data'!N435:O435)) -> 0 | I169: 0 | J169: 0 | K169: 0
A170: Customer 137 | C170: 0 | D170: 0 | E170: 0 | F170: 0 | G170: =SUM(IF('6. Class A Consumption Data'!L440:M440="B",'6. Class A Consumption Data'!L438:M438)) -> 0 | H170: =SUM(IF('6. Class A Consumption Data'!N440:O440="B",'6. Class A Consumption Data'!N438:O438)) -> 0 | I170: 0 | J170: 0 | K170: 0
A171: Customer 138 | C171: 0 | D171: 0 | E171: 0 | F171: 0 | G171: =SUM(IF('6. Class A Consumption Data'!L443:M443="B",'6. Class A Consumption Data'!L441:M441)) -> 0 | H171: =SUM(IF('6. Class A Consumption Data'!N443:O443="B",'6. Class A Consumption Data'!N441:O441)) -> 0 | I171: 0 | J171: 0 | K171: 0
A172: Customer 139 | C172: 0 | D172: 0 | E172: 0 | F172: 0 | G172: =SUM(IF('6. Class A Consumption Data'!L446:M446="B",'6. Class A Consumption Data'!L444:M444)) -> 0 | H172: =SUM(IF('6. Class A Consumption Data'!N446:O446="B",'6. Class A Consumption Data'!N444:O444)) -> 0 | I172: 0 | J172: 0 | K172: 0
A173: Customer 140 | C173: 0 | D173: 0 | E173: 0 | F173: 0 | G173: =SUM(IF('6. Class A Consumption Data'!L449:M449="B",'6. Class A Consumption Data'!L447:M447)) -> 0 | H173: =SUM(IF('6. Class A Consumption Data'!N449:O449="B",'6. Class A Consumption Data'!N447:O447)) -> 0 | I173: 0 | J173: 0 | K173: 0
A174: Customer 141 | C174: 0 | D174: 0 | E174: 0 | F174: 0 | G174: =SUM(IF('6. Class A Consumption Data'!L452:M452="B",'6. Class A Consumption Data'!L450:M450)) -> 0 | H174: =SUM(IF('6. Class A Consumption Data'!N452:O452="B",'6. Class A Consumption Data'!N450:O450)) -> 0 | I174: 0 | J174: 0 | K174: 0
A175: Customer 142 | C175: 0 | D175: 0 | E175: 0 | F175: 0 | G175: =SUM(IF('6. Class A Consumption Data'!L455:M455="B",'6. Class A Consumption Data'!L453:M453)) -> 0 | H175: =SUM(IF('6. Class A Consumption Data'!N455:O455="B",'6. Class A Consumption Data'!N453:O453)) -> 0 | I175: 0 | J175: 0 | K175: 0
A176: Customer 143 | C176: 0 | D176: 0 | E176: 0 | F176: 0 | G176: =SUM(IF('6. Class A Consumption Data'!L458:M458="B",'6. Class A Consumption Data'!L456:M456)) -> 0 | H176: =SUM(IF('6. Class A Consumption Data'!N458:O458="B",'6. Class A Consumption Data'!N456:O456)) -> 0 | I176: 0 | J176: 0 | K176: 0
A177: Customer 144 | C177: 0 | D177: 0 | E177: 0 | F177: 0 | G177: =SUM(IF('6. Class A Consumption Data'!L461:M461="B",'6. Class A Consumption Data'!L459:M459)) -> 0 | H177: =SUM(IF('6. Class A Consumption Data'!N461:O461="B",'6. Class A Consumption Data'!N459:O459)) -> 0 | I177: 0 | J177: 0 | K177: 0
A178: Customer 145 | C178: 0 | D178: 0 | E178: 0 | F178: 0 | G178: =SUM(IF('6. Class A Consumption Data'!L464:M464="B",'6. Class A Consumption Data'!L462:M462)) -> 0 | H178: =SUM(IF('6. Class A Consumption Data'!N464:O464="B",'6. Class A Consumption Data'!N462:O462)) -> 0 | I178: 0 | J178: 0 | K178: 0
A179: Customer 146 | C179: 0 | D179: 0 | E179: 0 | F179: 0 | G179: =SUM(IF('6. Class A Consumption Data'!L467:M467="B",'6. Class A Consumption Data'!L465:M465)) -> 0 | H179: =SUM(IF('6. Class A Consumption Data'!N467:O467="B",'6. Class A Consumption Data'!N465:O465)) -> 0 | I179: 0 | J179: 0 | K179: 0
A180: Customer 147 | C180: 0 | D180: 0 | E180: 0 | F180: 0 | G180: =SUM(IF('6. Class A Consumption Data'!L470:M470="B",'6. Class A Consumption Data'!L468:M468)) -> 0 | H180: =SUM(IF('6. Class A Consumption Data'!N470:O470="B",'6. Class A Consumption Data'!N468:O468)) -> 0 | I180: 0 | J180: 0 | K180: 0
A181: Customer 148 | C181: 0 | D181: 0 | E181: 0 | F181: 0 | G181: =SUM(IF('6. Class A Consumption Data'!L473:M473="B",'6. Class A Consumption Data'!L471:M471)) -> 0 | H181: =SUM(IF('6. Class A Consumption Data'!N473:O473="B",'6. Class A Consumption Data'!N471:O471)) -> 0 | I181: 0 | J181: 0 | K181: 0
A182: Customer 149 | C182: 0 | D182: 0 | E182: 0 | F182: 0 | G182: =SUM(IF('6. Class A Consumption Data'!L476:M476="B",'6. Class A Consumption Data'!L474:M474)) -> 0 | H182: =SUM(IF('6. Class A Consumption Data'!N476:O476="B",'6. Class A Consumption Data'!N474:O474)) -> 0 | I182: 0 | J182: 0 | K182: 0
A183: Customer 150 | C183: 0 | D183: 0 | E183: 0 | F183: 0 | G183: =SUM(IF('6. Class A Consumption Data'!L479:M479="B",'6. Class A Consumption Data'!L477:M477)) -> 0 | H183: =SUM(IF('6. Class A Consumption Data'!N479:O479="B",'6. Class A Consumption Data'!N477:O477)) -> 0 | I183: 0 | J183: 0 | K183: 0
A184: Total | C184: =SUM(C34:C183) -> 12101519.4 | D184: 0 | E184: 0 | F184: 12101519.4 | G184: 0 | H184: 0 | I184: 1 | J184: 9004.325312

Sheet 6.1 GA
B2: TRUE
B6: Total
A12: The purpose of this tab is to calculate the GA rate riders for all current Class B customers who did not transition between Class A and B in the period since the Account 1589 GA was last disposed. Calculations in this tab will be modified upon completion of tab 6.1a, which allocates a portion of the GA balance to transition customers, if applicable. Effective January 2017, the billing determinant and all rate riders for the disposition of GA balances will be calculated on an energy basis (kWhs) regardless of the billing determinant used for distribution rates for the particular class (see Chapter 3, Filing Requirements, section 3.2.5.2) | I12: Default Rate Rider Recovery Period (in months) | K12: 12
I13: Proposed Rate Rider Recovery Period (in months) | K13: 12 | L13: =IF(K13>0, "Rate Rider Recovery to be used below", "If no rate rider recovery period is proposed then the default recovery period of 12 months will be used") -> Rate Rider Recovery to be used below
C14: Total Metered Non-RPP 2020 Consumption excluding WMP | E14: Total Metered 2020 Consumption for Class A Customers that were Class A for the entire period GA balance accumulated | G14: Total Metered 2020 Consumption for Customers that Transitioned Between Class A and B during the period GA balance accumulated | I14: Non-RPP Metered Consumption for Current Class B Customers (Non-RPP Consumption excluding WMP, Class A and Transition Customers' Consumption) | K14: % of total kWh | L14: Total GA $ allocated to Current Class B Customers | M14: GA Rate Rider
C15: kWh | D15: kW | E15: kWh | F15: kW | G15: kWh | H15: kW | I15: kWh | J15: kW
A17: RESIDENTIAL SERVICE CLASSIFICATION | B17: kWh | C17: 831365 | D17: 0 | E17: =SUM(IF('6. Class A Consumption Data'!D492:D791=A17,'6. Class A Consumption Data'!F492:F791)) -> 0 | G17: =SUM(IF(('6. Class A Consumption Data'!D30:D479=A17)*('6. Class A Consumption Data'!B30:B479 <> "A"),'6. Class A Consumption Data'!F30:G479)) -> 0 | I17: =ROUND((C17-E17-G17),0) -> 831365 | J17: =(D17-F17-H17) -> 0 | K17: =(I17/I24) -> 0.01612480121 | L17: =ROUND((114571.3022*K17),0) -> 1847 | M17: =ROUND(IF(ISERROR(L17/I17),0,IF(OR(ISBLANK(K13), OR(K13=0, K13="")), L17/I17/(K12/12), L17/I17/(K13/12))),4) -> 0.0022 | N17: kWh
A18: GENERAL SERVICE LESS THAN 50 KW SERVICE CLASSIFICATION | B18: kWh | C18: 4886335 | D18: 0 | E18: =SUM(IF('6. Class A Consumption Data'!D492:D791=A18,'6. Class A Consumption Data'!F492:F791)) -> 0 | G18: =SUM(IF(('6. Class A Consumption Data'!D30:D479=A18)*('6. Class A Consumption Data'!B30:B479 <> "A"),'6. Class A Consumption Data'!F30:G479)) -> 0 | I18: 4886335 | J18: 0 | K18: =(I18/I24) -> 0.09477327108 | L18: 10858 | M18: =ROUND(IF(ISERROR(L18/I18),0,IF(OR(ISBLANK(K13), OR(K13=0, K13="")), L18/I18/(K12/12), L18/I18/(K13/12))),4) -> 0.0022 | N18: kWh
A19: GENERAL SERVICE 50 TO 2,999 KW SERVICE CLASSIFICATION | B19: kWh | C19: 49005846 | D19: 128844 | E19: =SUM(IF('6. Class A Consumption Data'!D492:D791=A19,'6. Class A Consumption Data'!F492:F791)) -> 3794682 | G19: =SUM(IF(('6. Class A Consumption Data'!D30:D479=A19)*('6. Class A Consumption Data'!B30:B479 <> "A"),'6. Class A Consumption Data'!F30:G479)) -> 0 | I19: 45211164 | J19: 128844 | K19: =(I19/I24) -> 0.8768964677 | L19: 100467 | M19: =ROUND(IF(ISERROR(L19/I19),0,IF(OR(ISBLANK(K13), OR(K13=0, K13="")), L19/I19/(K12/12), L19/I19/(K13/12))),4) -> 0.0022 | N19: kWh
A20: GENERAL SERVICE 3,000 TO 4,999 KW SERVICE CLASSIFICATION | B20: kWh | C20: 14539031 | D20: 38002 | E20: =SUM(IF('6. Class A Consumption Data'!D492:D791=A20,'6. Class A Consumption Data'!F492:F791)) -> 14539031 | G20: =SUM(IF(('6. Class A Consumption Data'!D30:D479=A20)*('6. Class A Consumption Data'!B30:B479 <> "A"),'6. Class A Consumption Data'!F30:G479)) -> 0 | I20: 0 | J20: 38002 | K20: =(I20/I24) -> 0 | L20: 0 | M20: 0
A21: UNMETERED SCATTERED LOAD SERVICE CLASSIFICATION | B21: kWh | C21: 90336 | D21: 0 | E21: =SUM(IF('6. Class A Consumption Data'!D492:D791=A21,'6. Class A Consumption Data'!F492:F791)) -> 0 | G21: =SUM(IF(('6. Class A Consumption Data'!D30:D479=A21)*('6. Class A Consumption Data'!B30:B479 <> "A"),'6. Class A Consumption Data'!F30:G479)) -> 0 | I21: 90336 | J21: 0 | K21: =(I21/I24) -> 0.001752118554 | L21: 201 | M21: =ROUND(IF(ISERROR(L21/I21),0,IF(OR(ISBLANK(K13), OR(K13=0, K13="")), L21/I21/(K12/12), L21/I21/(K13/12))),4) -> 0.0022 | N21: kWh
A22: SENTINEL LIGHTING SERVICE CLASSIFICATION | B22: kWh | C22: 12956 | D22: 35 | E22: =SUM(IF('6. Class A Consumption Data'!D492:D791=A22,'6. Class A Consumption Data'!F492:F791)) -> 0 | G22: =SUM(IF(('6. Class A Consumption Data'!D30:D479=A22)*('6. Class A Consumption Data'!B30:B479 <> "A"),'6. Class A Consumption Data'!F30:G479)) -> 0 | I22: 12956 | J22: 35 | K22: =(I22/I24) -> 0.0002512890541 | L22: 29 | M22: =ROUND(IF(ISERROR(L22/I22),0,IF(OR(ISBLANK(K13), OR(K13=0, K13="")), L22/I22/(K12/12), L22/I22/(K13/12))),4) -> 0.0022 | N22: kWh
A23: STREET LIGHTING SERVICE CLASSIFICATION | B23: kWh | C23: 525999 | D23: 1445 | E23: =SUM(IF('6. Class A Consumption Data'!D492:D791=A23,'6. Class A Consumption Data'!F492:F791)) -> 0 | G23: =SUM(IF(('6. Class A Consumption Data'!D30:D479=A23)*('6. Class A Consumption Data'!B30:B479 <> "A"),'6. Class A Consumption Data'!F30:G479)) -> 0 | I23: 525999 | J23: 1445 | K23: =(I23/I24) -> 0.01020205242 | L23: 1169 | M23: =ROUND(IF(ISERROR(L23/I23),0,IF(OR(ISBLANK(K13), OR(K13=0, K13="")), L23/I23/(K12/12), L23/I23/(K13/12))),4) -> 0.0022 | N23: kWh
B24: Total | C24: 69891868 | D24: 168326 | E24: =SUM(E17:E23) -> 18333713 | F24: 0 | G24: 0 | H24: 0 | I24: 51558155 | J24: 168326 | K24: 1 | L24: 114571

Sheet 6.2a CBR B_Allocation
A14: This tab allocates the CBR Class B balance to transition customers (i.e Class A customers who were former Class B customers and Class B customers who were former Class A customers) who contributed to the current CBR Class B balance. The tables below calculate specific amounts for each customer who made the change. The general CBR Class B rate rider is not to be charged to the transition customers that are allocated amounts in the table below. Consistent with prior decisions, distributors are generally expected to settle the amount through 12 equal adjustments to bills.
A16: Year Account 1580 CBR Class B was Last Disposed | B16: =G1LDCBR -> 2017
A17: Allocation of Total Consumption (kWh) between Current Class B and Class A/B Transition Customers
C18: Total | D18: 2020 | E18: 2019 | F18: 2018 | G18: 2017 | H18: 2016
A19: Total Consumption Less WMP Consumption | B19: A | C19: =SUM(D19:F19) -> 416814714 | D19: 138883585 | E19: 137474667 | F19: 140456462
A20: Less Class A Consumption for Partial Year Class A Customers | B20: B | C20: =SUM(D20:F20) -> 10816567 | D20: 0 | E20: 0 | F20: 10816567 | G20: 0 | H20: 0
A21: Less Consumption for Full Year Class A Customers | B21: C | C21: =SUM(D21:F21) -> 40317290 | D21: =SUM(IF('6. Class A Consumption Data'!E492:E791="kWh",'6. Class A Consumption Data'!F492:F791)) -> 18333713 | E21: =SUM(IF('6. Class A Consumption Data'!E492:E791="kWh",'6. Class A Consumption Data'!H492:H791)) -> 21983577 | F21: =SUM(IF('6. Class A Consumption Data'!E492:E791="kWh",'6. Class A Consumption Data'!J492:J791)) -> 0 | G21: =SUM(IF('6. Class A Consumption Data'!E492:E791="kWh",'6. Class A Consumption Data'!L492:L791)) -> 0 | H21: =SUM(IF('6. Class A Consumption Data'!E492:E791="kWh",'6. Class A Consumption Data'!N492:N791)) -> 0
A22: Total Class B Consumption for Years During Balance Accumulation | B22: D = A-B-C | C22: =SUM(D22:F22) -> 365680857 | D22: =D19-D20-D21 -> 120549872 | E22: =E19-E20-E21 -> 115491090 | F22: =F19-F20-F21 -> 129639895 | G22: =G19-G20-G21 -> 0 | H22: =H19-H20-H21 -> 0
A23: All Class B Consumption for Transition Customers | B23: E | C23: =SUM(D23:F23) -> 12101519.4 | D23: =D184 -> 0 | E23: =E184 -> 0 | F23: =F184 -> 12101519.4 | G23: =G184 -> 0 | H23: =I184 -> 1
A24: Transition Customers' Portion of Total Consumption | B24: F = E/D | C24: =IFERROR(+C23/C22,0) -> 0.03309311704
A26: Allocation of Total CBR Class B Balance $
A27: Total CBR Class B Balance | B27: G | C27: ='3. Continuity Schedule'!BT25 -> -3376.803307
A28: Transition Customers Portion of CBR Class B Balance | B28: H=F*G | C28: =+C24*C27 -> -111.7489471
A29: CBR Class B Balance to be disposed to Current Class B Customers through Rate Rider | B29: I=G-H | C29: =+C27-C28 -> -3265.05436
A31: Allocation of CBR Class B Balances to Transition Customers
A32: # of Class A/B Transition Customers | C32: =COUNTIF(C34:C183,"<>0") -> 2
A33: Customer | C33: Total Metered Class B Consumption (kWh) for Transition Customers During the Period When They were Class B Customers | D33: Metered Class B Consumption (kWh) for Transition Customers During the Period When They were Class B Customers in 2020 | E33: Metered Class B Consumption (kWh) for Transition Customers During the Period When They were Class B Customers in 2019 | F33: Metered Class B Consumption (kWh) for Transition Customers During the Period When They were Class B Customers in 2018 | G33: Metered Class B Consumption (kWh) for Transition Customers During the Period When They were Class B Customers in 2017 | H33: Metered Class B Consumption (kWh) for Transition Customers During the Period When They were Class B Customers in 2016 | I33: % of kWh | J33: Customer Specific CBR Class B Allocation for the Period When They Were Class B Customers | K33: Monthly Equal Payments | L33: Revised Monthly Payment | N33: If the CBR Class B rate rider calculated in tab 6.2 rounds to zero at the fourth decimal place for one or more rate classes, the entire balance in Account 1580 CBR Class B, including the amount allocated to transition customers will be transferred to Account 1580 WMS and disposed through the general purpose Group 1 rate riders
A34: Customer 1 | C34: =SUM(D34:F34) -> 1906703.4 | D34: =SUM(IF('6. Class A Consumption Data'!F32:G32="B",'6. Class A Consumption Data'!F30:G30)) -> 0 | E34: =SUM(IF('6. Class A Consumption Data'!H32:I32="B",'6. Class A Consumption Data'!H30:I30)) -> 0 | F34: =SUM(IF('6. Class A Consumption Data'!J32:K32="B",'6. Class A Consumption Data'!J30:K30)) -> 1906703.4 | G34: =SUM(IF('6. Class A Consumption Data'!L32:M32="B",'6. Class A Consumption Data'!L30:M30)) -> 0 | H34: =SUM(IF('6. Class A Consumption Data'!N32:O32="B",'6. Class A Consumption Data'!N30:O30)) -> 0 | I34: =IFERROR(+C34/($C$184),0) -> 0.1575590087 | J34: =+I34*$C$28 -> -17.60705332 | K34: =+J34/12 -> -1.467254443 | L34: 0
A35: Customer 2 | C35: 10194816 | D35: =SUM(IF('6. Class A Consumption Data'!F35:G35="B",'6. Class A Consumption Data'!F33:G33)) -> 0 | E35: =SUM(IF('6. Class A Consumption Data'!H35:I35="B",'6. Class A Consumption Data'!H33:I33)) -> 0 | F35: =SUM(IF('6. Class A Consumption Data'!J35:K35="B",'6. Class A Consumption Data'!J33:K33)) -> 10194816 | G35: =SUM(IF('6. Class A Consumption Data'!L35:M35="B",'6. Class A Consumption Data'!L33:M33)) -> 0 | H35: =SUM(IF('6. Class A Consumption Data'!N35:O35="B",'6. Class A Consumption Data'!N33:O33)) -> 0 | I35: 0.8424409913 | J35: -94.14189374 | K35: -7.845157811 | L35: 0
A36: Customer 3 | C36: 0 | D36: 0 | E36: 0 | F36: 0 | G36: =SUM(IF('6. Class A Consumption Data'!L38:M38="B",'6. Class A Consumption Data'!L36:M36)) -> 0 | H36: =SUM(IF('6. Class A Consumption Data'!N38:O38="B",'6. Class A Consumption Data'!N36:O36)) -> 0 | I36: 0 | J36: 0 | K36: 0 | L36: 0
A37: Customer 4 | C37: 0 | D37: 0 | E37: 0 | F37: 0 | G37: =SUM(IF('6. Class A Consumption Data'!L41:M41="B",'6. Class A Consumption Data'!L39:M39)) -> 0 | H37: =SUM(IF('6. Class A Consumption Data'!N41:O41="B",'6. Class A Consumption Data'!N39:O39)) -> 0 | I37: 0 | J37: 0 | K37: 0 | L37: 0
A38: Customer 5 | C38: 0 | D38: 0 | E38: 0 | F38: 0 | G38: =SUM(IF('6. Class A Consumption Data'!L44:M44="B",'6. Class A Consumption Data'!L42:M42)) -> 0 | H38: =SUM(IF('6. Class A Consumption Data'!N44:O44="B",'6. Class A Consumption Data'!N42:O42)) -> 0 | I38: 0 | J38: 0 | K38: 0 | L38: 0
A39: Customer 6 | C39: 0 | D39: 0 | E39: 0 | F39: 0 | G39: =SUM(IF('6. Class A Consumption Data'!L47:M47="B",'6. Class A Consumption Data'!L45:M45)) -> 0 | H39: =SUM(IF('6. Class A Consumption Data'!N47:O47="B",'6. Class A Consumption Data'!N45:O45)) -> 0 | I39: 0 | J39: 0 | K39: 0 | L39: 0
A40: Customer 7 | C40: 0 | D40: 0 | E40: 0 | F40: 0 | G40: =SUM(IF('6. Class A Consumption Data'!L50:M50="B",'6. Class A Consumption Data'!L48:M48)) -> 0 | H40: =SUM(IF('6. Class A Consumption Data'!N50:O50="B",'6. Class A Consumption Data'!N48:O48)) -> 0 | I40: 0 | J40: 0 | K40: 0 | L40: 0
A41: Customer 8 | C41: 0 | D41: 0 | E41: 0 | F41: 0 | G41: =SUM(IF('6. Class A Consumption Data'!L53:M53="B",'6. Class A Consumption Data'!L51:M51)) -> 0 | H41: =SUM(IF('6. Class A Consumption Data'!N53:O53="B",'6. Class A Consumption Data'!N51:O51)) -> 0 | I41: 0 | J41: 0 | K41: 0 | L41: 0
A42: Customer 9 | C42: 0 | D42: 0 | E42: 0 | F42: 0 | G42: =SUM(IF('6. Class A Consumption Data'!L56:M56="B",'6. Class A Consumption Data'!L54:M54)) -> 0 | H42: =SUM(IF('6. Class A Consumption Data'!N56:O56="B",'6. Class A Consumption Data'!N54:O54)) -> 0 | I42: 0 | J42: 0 | K42: 0 | L42: 0
A43: Customer 10 | C43: 0 | D43: 0 | E43: 0 | F43: 0 | G43: =SUM(IF('6. Class A Consumption Data'!L59:M59="B",'6. Class A Consumption Data'!L57:M57)) -> 0 | H43: =SUM(IF('6. Class A Consumption Data'!N59:O59="B",'6. Class A Consumption Data'!N57:O57)) -> 0 | I43: 0 | J43: 0 | K43: 0 | L43: 0
A44: Customer 11 | C44: 0 | D44: 0 | E44: 0 | F44: 0 | G44: =SUM(IF('6. Class A Consumption Data'!L62:M62="B",'6. Class A Consumption Data'!L60:M60)) -> 0 | H44: =SUM(IF('6. Class A Consumption Data'!N62:O62="B",'6. Class A Consumption Data'!N60:O60)) -> 0 | I44: 0 | J44: 0 | K44: 0 | L44: 0
A45: Customer 12 | C45: 0 | D45: 0 | E45: 0 | F45: 0 | G45: =SUM(IF('6. Class A Consumption Data'!L65:M65="B",'6. Class A Consumption Data'!L63:M63)) -> 0 | H45: =SUM(IF('6. Class A Consumption Data'!N65:O65="B",'6. Class A Consumption Data'!N63:O63)) -> 0 | I45: 0 | J45: 0 | K45: 0 | L45: 0
A46: Customer 13 | C46: 0 | D46: 0 | E46: 0 | F46: 0 | G46: =SUM(IF('6. Class A Consumption Data'!L68:M68="B",'6. Class A Consumption Data'!L66:M66)) -> 0 | H46: =SUM(IF('6. Class A Consumption Data'!N68:O68="B",'6. Class A Consumption Data'!N66:O66)) -> 0 | I46: 0 | J46: 0 | K46: 0 | L46: 0
A47: Customer 14 | C47: 0 | D47: 0 | E47: 0 | F47: 0 | G47: =SUM(IF('6. Class A Consumption Data'!L71:M71="B",'6. Class A Consumption Data'!L69:M69)) -> 0 | H47: =SUM(IF('6. Class A Consumption Data'!N71:O71="B",'6. Class A Consumption Data'!N69:O69)) -> 0 | I47: 0 | J47: 0 | K47: 0 | L47: 0
A48: Customer 15 | C48: 0 | D48: 0 | E48: 0 | F48: 0 | G48: =SUM(IF('6. Class A Consumption Data'!L74:M74="B",'6. Class A Consumption Data'!L72:M72)) -> 0 | H48: =SUM(IF('6. Class A Consumption Data'!N74:O74="B",'6. Class A Consumption Data'!N72:O72)) -> 0 | I48: 0 | J48: 0 | K48: 0 | L48: 0
A49: Customer 16 | C49: 0 | D49: 0 | E49: 0 | F49: 0 | G49: =SUM(IF('6. Class A Consumption Data'!L77:M77="B",'6. Class A Consumption Data'!L75:M75)) -> 0 | H49: =SUM(IF('6. Class A Consumption Data'!N77:O77="B",'6. Class A Consumption Data'!N75:O75)) -> 0 | I49: 0 | J49: 0 | K49: 0 | L49: 0
A50: Customer 17 | C50: 0 | D50: 0 | E50: 0 | F50: 0 | G50: =SUM(IF('6. Class A Consumption Data'!L80:M80="B",'6. Class A Consumption Data'!L78:M78)) -> 0 | H50: =SUM(IF('6. Class A Consumption Data'!N80:O80="B",'6. Class A Consumption Data'!N78:O78)) -> 0 | I50: 0 | J50: 0 | K50: 0 | L50: 0
A51: Customer 18 | C51: 0 | D51: 0 | E51: 0 | F51: 0 | G51: =SUM(IF('6. Class A Consumption Data'!L83:M83="B",'6. Class A Consumption Data'!L81:M81)) -> 0 | H51: =SUM(IF('6. Class A Consumption Data'!N83:O83="B",'6. Class A Consumption Data'!N81:O81)) -> 0 | I51: 0 | J51: 0 | K51: 0 | L51: 0
A52: Customer 19 | C52: 0 | D52: 0 | E52: 0 | F52: 0 | G52: =SUM(IF('6. Class A Consumption Data'!L86:M86="B",'6. Class A Consumption Data'!L84:M84)) -> 0 | H52: =SUM(IF('6. Class A Consumption Data'!N86:O86="B",'6. Class A Consumption Data'!N84:O84)) -> 0 | I52: 0 | J52: 0 | K52: 0 | L52: 0
A53: Customer 20 | C53: 0 | D53: 0 | E53: 0 | F53: 0 | G53: =SUM(IF('6. Class A Consumption Data'!L89:M89="B",'6. Class A Consumption Data'!L87:M87)) -> 0 | H53: =SUM(IF('6. Class A Consumption Data'!N89:O89="B",'6. Class A Consumption Data'!N87:O87)) -> 0 | I53: 0 | J53: 0 | K53: 0 | L53: 0
A54: Customer 21 | C54: 0 | D54: 0 | E54: 0 | F54: 0 | G54: =SUM(IF('6. Class A Consumption Data'!L92:M92="B",'6. Class A Consumption Data'!L90:M90)) -> 0 | H54: =SUM(IF('6. Class A Consumption Data'!N92:O92="B",'6. Class A Consumption Data'!N90:O90)) -> 0 | I54: 0 | J54: 0 | K54: 0 | L54: 0
A55: Customer 22 | C55: 0 | D55: 0 | E55: 0 | F55: 0 | G55: =SUM(IF('6. Class A Consumption Data'!L95:M95="B",'6. Class A Consumption Data'!L93:M93)) -> 0 | H55: =SUM(IF('6. Class A Consumption Data'!N95:O95="B",'6. Class A Consumption Data'!N93:O93)) -> 0 | I55: 0 | J55: 0 | K55: 0 | L55: 0
A56: Customer 23 | C56: 0 | D56: 0 | E56: 0 | F56: 0 | G56: =SUM(IF('6. Class A Consumption Data'!L98:M98="B",'6. Class A Consumption Data'!L96:M96)) -> 0 | H56: =SUM(IF('6. Class A Consumption Data'!N98:O98="B",'6. Class A Consumption Data'!N96:O96)) -> 0 | I56: 0 | J56: 0 | K56: 0 | L56: 0
A57: Customer 24 | C57: 0 | D57: 0 | E57: 0 | F57: 0 | G57: =SUM(IF('6. Class A Consumption Data'!L101:M101="B",'6. Class A Consumption Data'!L99:M99)) -> 0 | H57: =SUM(IF('6. Class A Consumption Data'!N101:O101="B",'6. Class A Consumption Data'!N99:O99)) -> 0 | I57: 0 | J57: 0 | K57: 0 | L57: 0
A58: Customer 25 | C58: 0 | D58: 0 | E58: 0 | F58: 0 | G58: =SUM(IF('6. Class A Consumption Data'!L104:M104="B",'6. Class A Consumption Data'!L102:M102)) -> 0 | H58: =SUM(IF('6. Class A Consumption Data'!N104:O104="B",'6. Class A Consumption Data'!N102:O102)) -> 0 | I58: 0 | J58: 0 | K58: 0 | L58: 0
A59: Customer 26 | C59: 0 | D59: 0 | E59: 0 | F59: 0 | G59: =SUM(IF('6. Class A Consumption Data'!L107:M107="B",'6. Class A Consumption Data'!L105:M105)) -> 0 | H59: =SUM(IF('6. Class A Consumption Data'!N107:O107="B",'6. Class A Consumption Data'!N105:O105)) -> 0 | I59: 0 | J59: 0 | K59: 0 | L59: 0
A60: Customer 27 | C60: 0 | D60: 0 | E60: 0 | F60: 0 | G60: =SUM(IF('6. Class A Consumption Data'!L110:M110="B",'6. Class A Consumption Data'!L108:M108)) -> 0 | H60: =SUM(IF('6. Class A Consumption Data'!N110:O110="B",'6. Class A Consumption Data'!N108:O108)) -> 0 | I60: 0 | J60: 0 | K60: 0 | L60: 0
A61: Customer 28 | C61: 0 | D61: 0 | E61: 0 | F61: 0 | G61: =SUM(IF('6. Class A Consumption Data'!L113:M113="B",'6. Class A Consumption Data'!L111:M111)) -> 0 | H61: =SUM(IF('6. Class A Consumption Data'!N113:O113="B",'6. Class A Consumption Data'!N111:O111)) -> 0 | I61: 0 | J61: 0 | K61: 0 | L61: 0
A62: Customer 29 | C62: 0 | D62: 0 | E62: 0 | F62: 0 | G62: =SUM(IF('6. Class A Consumption Data'!L116:M116="B",'6. Class A Consumption Data'!L114:M114)) -> 0 | H62: =SUM(IF('6. Class A Consumption Data'!N116:O116="B",'6. Class A Consumption Data'!N114:O114)) -> 0 | I62: 0 | J62: 0 | K62: 0 | L62: 0
A63: Customer 30 | C63: 0 | D63: 0 | E63: 0 | F63: 0 | G63: =SUM(IF('6. Class A Consumption Data'!L119:M119="B",'6. Class A Consumption Data'!L117:M117)) -> 0 | H63: =SUM(IF('6. Class A Consumption Data'!N119:O119="B",'6. Class A Consumption Data'!N117:O117)) -> 0 | I63: 0 | J63: 0 | K63: 0 | L63: 0
A64: Customer 31 | C64: 0 | D64: 0 | E64: 0 | F64: 0 | G64: =SUM(IF('6. Class A Consumption Data'!L122:M122="B",'6. Class A Consumption Data'!L120:M120)) -> 0 | H64: =SUM(IF('6. Class A Consumption Data'!N122:O122="B",'6. Class A Consumption Data'!N120:O120)) -> 0 | I64: 0 | J64: 0 | K64: 0 | L64: 0
A65: Customer 32 | C65: 0 | D65: 0 | E65: 0 | F65: 0 | G65: =SUM(IF('6. Class A Consumption Data'!L125:M125="B",'6. Class A Consumption Data'!L123:M123)) -> 0 | H65: =SUM(IF('6. Class A Consumption Data'!N125:O125="B",'6. Class A Consumption Data'!N123:O123)) -> 0 | I65: 0 | J65: 0 | K65: 0 | L65: 0
A66: Customer 33 | C66: =SUM(D66:F66) -> 0 | D66: 0 | E66: 0 | F66: 0 | G66: =SUM(IF('6. Class A Consumption Data'!L128:M128="B",'6. Class A Consumption Data'!L126:M126)) -> 0 | H66: =SUM(IF('6. Class A Consumption Data'!N128:O128="B",'6. Class A Consumption Data'!N126:O126)) -> 0 | I66: =IFERROR(+C66/($C$184),0) -> 0 | J66: =+I66*$C$28 -> 0 | K66: =+J66/12 -> 0 | L66: 0
A67: Customer 34 | C67: 0 | D67: 0 | E67: 0 | F67: 0 | G67: =SUM(IF('6. Class A Consumption Data'!L131:M131="B",'6. Class A Consumption Data'!L129:M129)) -> 0 | H67: =SUM(IF('6. Class A Consumption Data'!N131:O131="B",'6. Class A Consumption Data'!N129:O129)) -> 0 | I67: 0 | J67: 0 | K67: 0 | L67: 0
A68: Customer 35 | C68: 0 | D68: 0 | E68: 0 | F68: 0 | G68: =SUM(IF('6. Class A Consumption Data'!L134:M134="B",'6. Class A Consumption Data'!L132:M132)) -> 0 | H68: =SUM(IF('6. Class A Consumption Data'!N134:O134="B",'6. Class A Consumption Data'!N132:O132)) -> 0 | I68: 0 | J68: 0 | K68: 0 | L68: 0
A69: Customer 36 | C69: 0 | D69: 0 | E69: 0 | F69: 0 | G69: =SUM(IF('6. Class A Consumption Data'!L137:M137="B",'6. Class A Consumption Data'!L135:M135)) -> 0 | H69: =SUM(IF('6. Class A Consumption Data'!N137:O137="B",'6. Class A Consumption Data'!N135:O135)) -> 0 | I69: 0 | J69: 0 | K69: 0 | L69: 0
A70: Customer 37 | C70: 0 | D70: 0 | E70: 0 | F70: 0 | G70: =SUM(IF('6. Class A Consumption Data'!L140:M140="B",'6. Class A Consumption Data'!L138:M138)) -> 0 | H70: =SUM(IF('6. Class A Consumption Data'!N140:O140="B",'6. Class A Consumption Data'!N138:O138)) -> 0 | I70: 0 | J70: 0 | K70: 0 | L70: 0
A71: Customer 38 | C71: 0 | D71: 0 | E71: 0 | F71: 0 | G71: =SUM(IF('6. Class A Consumption Data'!L143:M143="B",'6. Class A Consumption Data'!L141:M141)) -> 0 | H71: =SUM(IF('6. Class A Consumption Data'!N143:O143="B",'6. Class A Consumption Data'!N141:O141)) -> 0 | I71: 0 | J71: 0 | K71: 0 | L71: 0
A72: Customer 39 | C72: 0 | D72: 0 | E72: 0 | F72: 0 | G72: =SUM(IF('6. Class A Consumption Data'!L146:M146="B",'6. Class A Consumption Data'!L144:M144)) -> 0 | H72: =SUM(IF('6. Class A Consumption Data'!N146:O146="B",'6. Class A Consumption Data'!N144:O144)) -> 0 | I72: 0 | J72: 0 | K72: 0 | L72: 0
A73: Customer 40 | C73: 0 | D73: 0 | E73: 0 | F73: 0 | G73: =SUM(IF('6. Class A Consumption Data'!L149:M149="B",'6. Class A Consumption Data'!L147:M147)) -> 0 | H73: =SUM(IF('6. Class A Consumption Data'!N149:O149="B",'6. Class A Consumption Data'!N147:O147)) -> 0 | I73: 0 | J73: 0 | K73: 0 | L73: 0
A74: Customer 41 | C74: 0 | D74: 0 | E74: 0 | F74: 0 | G74: =SUM(IF('6. Class A Consumption Data'!L152:M152="B",'6. Class A Consumption Data'!L150:M150)) -> 0 | H74: =SUM(IF('6. Class A Consumption Data'!N152:O152="B",'6. Class A Consumption Data'!N150:O150)) -> 0 | I74: 0 | J74: 0 | K74: 0 | L74: 0
A75: Customer 42 | C75: 0 | D75: 0 | E75: 0 | F75: 0 | G75: =SUM(IF('6. Class A Consumption Data'!L155:M155="B",'6. Class A Consumption Data'!L153:M153)) -> 0 | H75: =SUM(IF('6. Class A Consumption Data'!N155:O155="B",'6. Class A Consumption Data'!N153:O153)) -> 0 | I75: 0 | J75: 0 | K75: 0 | L75: 0
A76: Customer 43 | C76: 0 | D76: 0 | E76: 0 | F76: 0 | G76: =SUM(IF('6. Class A Consumption Data'!L158:M158="B",'6. Class A Consumption Data'!L156:M156)) -> 0 | H76: =SUM(IF('6. Class A Consumption Data'!N158:O158="B",'6. Class A Consumption Data'!N156:O156)) -> 0 | I76: 0 | J76: 0 | K76: 0 | L76: 0
A77: Customer 44 | C77: 0 | D77: 0 | E77: 0 | F77: 0 | G77: =SUM(IF('6. Class A Consumption Data'!L161:M161="B",'6. Class A Consumption Data'!L159:M159)) -> 0 | H77: =SUM(IF('6. Class A Consumption Data'!N161:O161="B",'6. Class A Consumption Data'!N159:O159)) -> 0 | I77: 0 | J77: 0 | K77: 0 | L77: 0
A78: Customer 45 | C78: 0 | D78: 0 | E78: 0 | F78: 0 | G78: =SUM(IF('6. Class A Consumption Data'!L164:M164="B",'6. Class A Consumption Data'!L162:M162)) -> 0 | H78: =SUM(IF('6. Class A Consumption Data'!N164:O164="B",'6. Class A Consumption Data'!N162:O162)) -> 0 | I78: 0 | J78: 0 | K78: 0 | L78: 0
A79: Customer 46 | C79: 0 | D79: 0 | E79: 0 | F79: 0 | G79: =SUM(IF('6. Class A Consumption Data'!L167:M167="B",'6. Class A Consumption Data'!L165:M165)) -> 0 | H79: =SUM(IF('6. Class A Consumption Data'!N167:O167="B",'6. Class A Consumption Data'!N165:O165)) -> 0 | I79: 0 | J79: 0 | K79: 0 | L79: 0
A80: Customer 47 | C80: 0 | D80: 0 | E80: 0 | F80: 0 | G80: =SUM(IF('6. Class A Consumption Data'!L170:M170="B",'6. Class A Consumption Data'!L168:M168)) -> 0 | H80: =SUM(IF('6. Class A Consumption Data'!N170:O170="B",'6. Class A Consumption Data'!N168:O168)) -> 0 | I80: 0 | J80: 0 | K80: 0 | L80: 0
A81: Customer 48 | C81: 0 | D81: 0 | E81: 0 | F81: 0 | G81: =SUM(IF('6. Class A Consumption Data'!L173:M173="B",'6. Class A Consumption Data'!L171:M171)) -> 0 | H81: =SUM(IF('6. Class A Consumption Data'!N173:O173="B",'6. Class A Consumption Data'!N171:O171)) -> 0 | I81: 0 | J81: 0 | K81: 0 | L81: 0
A82: Customer 49 | C82: 0 | D82: 0 | E82: 0 | F82: 0 | G82: =SUM(IF('6. Class A Consumption Data'!L176:M176="B",'6. Class A Consumption Data'!L174:M174)) -> 0 | H82: =SUM(IF('6. Class A Consumption Data'!N176:O176="B",'6. Class A Consumption Data'!N174:O174)) -> 0 | I82: 0 | J82: 0 | K82: 0 | L82: 0
A83: Customer 50 | C83: 0 | D83: 0 | E83: 0 | F83: 0 | G83: =SUM(IF('6. Class A Consumption Data'!L179:M179="B",'6. Class A Consumption Data'!L177:M177)) -> 0 | H83: =SUM(IF('6. Class A Consumption Data'!N179:O179="B",'6. Class A Consumption Data'!N177:O177)) -> 0 | I83: 0 | J83: 0 | K83: 0 | L83: 0
A84: Customer 51 | C84: 0 | D84: 0 | E84: 0 | F84: 0 | G84: =SUM(IF('6. Class A Consumption Data'!L182:M182="B",'6. Class A Consumption Data'!L180:M180)) -> 0 | H84: =SUM(IF('6. Class A Consumption Data'!N182:O182="B",'6. Class A Consumption Data'!N180:O180)) -> 0 | I84: 0 | J84: 0 | K84: 0 | L84: 0
A85: Customer 52 | C85: 0 | D85: 0 | E85: 0 | F85: 0 | G85: =SUM(IF('6. Class A Consumption Data'!L185:M185="B",'6. Class A Consumption Data'!L183:M183)) -> 0 | H85: =SUM(IF('6. Class A Consumption Data'!N185:O185="B",'6. Class A Consumption Data'!N183:O183)) -> 0 | I85: 0 | J85: 0 | K85: 0 | L85: 0
A86: Customer 53 | C86: 0 | D86: 0 | E86: 0 | F86: 0 | G86: =SUM(IF('6. Class A Consumption Data'!L188:M188="B",'6. Class A Consumption Data'!L186:M186)) -> 0 | H86: =SUM(IF('6. Class A Consumption Data'!N188:O188="B",'6. Class A Consumption Data'!N186:O186)) -> 0 | I86: 0 | J86: 0 | K86: 0 | L86: 0
A87: Customer 54 | C87: 0 | D87: 0 | E87: 0 | F87: 0 | G87: =SUM(IF('6. Class A Consumption Data'!L191:M191="B",'6. Class A Consumption Data'!L189:M189)) -> 0 | H87: =SUM(IF('6. Class A Consumption Data'!N191:O191="B",'6. Class A Consumption Data'!N189:O189)) -> 0 | I87: 0 | J87: 0 | K87: 0 | L87: 0
A88: Customer 55 | C88: 0 | D88: 0 | E88: 0 | F88: 0 | G88: =SUM(IF('6. Class A Consumption Data'!L194:M194="B",'6. Class A Consumption Data'!L192:M192)) -> 0 | H88: =SUM(IF('6. Class A Consumption Data'!N194:O194="B",'6. Class A Consumption Data'!N192:O192)) -> 0 | I88: 0 | J88: 0 | K88: 0 | L88: 0
A89: Customer 56 | C89: 0 | D89: 0 | E89: 0 | F89: 0 | G89: =SUM(IF('6. Class A Consumption Data'!L197:M197="B",'6. Class A Consumption Data'!L195:M195)) -> 0 | H89: =SUM(IF('6. Class A Consumption Data'!N197:O197="B",'6. Class A Consumption Data'!N195:O195)) -> 0 | I89: 0 | J89: 0 | K89: 0 | L89: 0
A90: Customer 57 | C90: 0 | D90: 0 | E90: 0 | F90: 0 | G90: =SUM(IF('6. Class A Consumption Data'!L200:M200="B",'6. Class A Consumption Data'!L198:M198)) -> 0 | H90: =SUM(IF('6. Class A Consumption Data'!N200:O200="B",'6. Class A Consumption Data'!N198:O198)) -> 0 | I90: 0 | J90: 0 | K90: 0 | L90: 0
A91: Customer 58 | C91: 0 | D91: 0 | E91: 0 | F91: 0 | G91: =SUM(IF('6. Class A Consumption Data'!L203:M203="B",'6. Class A Consumption Data'!L201:M201)) -> 0 | H91: =SUM(IF('6. Class A Consumption Data'!N203:O203="B",'6. Class A Consumption Data'!N201:O201)) -> 0 | I91: 0 | J91: 0 | K91: 0 | L91: 0
A92: Customer 59 | C92: 0 | D92: 0 | E92: 0 | F92: 0 | G92: =SUM(IF('6. Class A Consumption Data'!L206:M206="B",'6. Class A Consumption Data'!L204:M204)) -> 0 | H92: =SUM(IF('6. Class A Consumption Data'!N206:O206="B",'6. Class A Consumption Data'!N204:O204)) -> 0 | I92: 0 | J92: 0 | K92: 0 | L92: 0
A93: Customer 60 | C93: 0 | D93: 0 | E93: 0 | F93: 0 | G93: =SUM(IF('6. Class A Consumption Data'!L209:M209="B",'6. Class A Consumption Data'!L207:M207)) -> 0 | H93: =SUM(IF('6. Class A Consumption Data'!N209:O209="B",'6. Class A Consumption Data'!N207:O207)) -> 0 | I93: 0 | J93: 0 | K93: 0 | L93: 0
A94: Customer 61 | C94: 0 | D94: 0 | E94: 0 | F94: 0 | G94: =SUM(IF('6. Class A Consumption Data'!L212:M212="B",'6. Class A Consumption Data'!L210:M210)) -> 0 | H94: =SUM(IF('6. Class A Consumption Data'!N212:O212="B",'6. Class A Consumption Data'!N210:O210)) -> 0 | I94: 0 | J94: 0 | K94: 0 | L94: 0
A95: Customer 62 | C95: 0 | D95: 0 | E95: 0 | F95: 0 | G95: =SUM(IF('6. Class A Consumption Data'!L215:M215="B",'6. Class A Consumption Data'!L213:M213)) -> 0 | H95: =SUM(IF('6. Class A Consumption Data'!N215:O215="B",'6. Class A Consumption Data'!N213:O213)) -> 0 | I95: 0 | J95: 0 | K95: 0 | L95: 0
A96: Customer 63 | C96: 0 | D96: 0 | E96: 0 | F96: 0 | G96: =SUM(IF('6. Class A Consumption Data'!L218:M218="B",'6. Class A Consumption Data'!L216:M216)) -> 0 | H96: =SUM(IF('6. Class A Consumption Data'!N218:O218="B",'6. Class A Consumption Data'!N216:O216)) -> 0 | I96: 0 | J96: 0 | K96: 0 | L96: 0
A97: Customer 64 | C97: 0 | D97: 0 | E97: 0 | F97: 0 | G97: =SUM(IF('6. Class A Consumption Data'!L221:M221="B",'6. Class A Consumption Data'!L219:M219)) -> 0 | H97: =SUM(IF('6. Class A Consumption Data'!N221:O221="B",'6. Class A Consumption Data'!N219:O219)) -> 0 | I97: 0 | J97: 0 | K97: 0 | L97: 0
A98: Customer 65 | C98: =SUM(D98:F98) -> 0 | D98: 0 | E98: 0 | F98: 0 | G98: =SUM(IF('6. Class A Consumption Data'!L224:M224="B",'6. Class A Consumption Data'!L222:M222)) -> 0 | H98: =SUM(IF('6. Class A Consumption Data'!N224:O224="B",'6. Class A Consumption Data'!N222:O222)) -> 0 | I98: =IFERROR(+C98/($C$184),0) -> 0 | J98: =+I98*$C$28 -> 0 | K98: =+J98/12 -> 0 | L98: 0
A99: Customer 66 | C99: 0 | D99: 0 | E99: 0 | F99: 0 | G99: =SUM(IF('6. Class A Consumption Data'!L227:M227="B",'6. Class A Consumption Data'!L225:M225)) -> 0 | H99: =SUM(IF('6. Class A Consumption Data'!N227:O227="B",'6. Class A Consumption Data'!N225:O225)) -> 0 | I99: 0 | J99: 0 | K99: 0 | L99: 0
A100: Customer 67 | C100: 0 | D100: 0 | E100: 0 | F100: 0 | G100: =SUM(IF('6. Class A Consumption Data'!L230:M230="B",'6. Class A Consumption Data'!L228:M228)) -> 0 | H100: =SUM(IF('6. Class A Consumption Data'!N230:O230="B",'6. Class A Consumption Data'!N228:O228)) -> 0 | I100: 0 | J100: 0 | K100: 0 | L100: 0
A101: Customer 68 | C101: 0 | D101: 0 | E101: 0 | F101: 0 | G101: =SUM(IF('6. Class A Consumption Data'!L233:M233="B",'6. Class A Consumption Data'!L231:M231)) -> 0 | H101: =SUM(IF('6. Class A Consumption Data'!N233:O233="B",'6. Class A Consumption Data'!N231:O231)) -> 0 | I101: 0 | J101: 0 | K101: 0 | L101: 0
A102: Customer 69 | C102: 0 | D102: 0 | E102: 0 | F102: 0 | G102: =SUM(IF('6. Class A Consumption Data'!L236:M236="B",'6. Class A Consumption Data'!L234:M234)) -> 0 | H102: =SUM(IF('6. Class A Consumption Data'!N236:O236="B",'6. Class A Consumption Data'!N234:O234)) -> 0 | I102: 0 | J102: 0 | K102: 0 | L102: 0
A103: Customer 70 | C103: 0 | D103: 0 | E103: 0 | F103: 0 | G103: =SUM(IF('6. Class A Consumption Data'!L239:M239="B",'6. Class A Consumption Data'!L237:M237)) -> 0 | H103: =SUM(IF('6. Class A Consumption Data'!N239:O239="B",'6. Class A Consumption Data'!N237:O237)) -> 0 | I103: 0 | J103: 0 | K103: 0 | L103: 0
A104: Customer 71 | C104: 0 | D104: 0 | E104: 0 | F104: 0 | G104: =SUM(IF('6. Class A Consumption Data'!L242:M242="B",'6. Class A Consumption Data'!L240:M240)) -> 0 | H104: =SUM(IF('6. Class A Consumption Data'!N242:O242="B",'6. Class A Consumption Data'!N240:O240)) -> 0 | I104: 0 | J104: 0 | K104: 0 | L104: 0
A105: Customer 72 | C105: 0 | D105: 0 | E105: 0 | F105: 0 | G105: =SUM(IF('6. Class A Consumption Data'!L245:M245="B",'6. Class A Consumption Data'!L243:M243)) -> 0 | H105: =SUM(IF('6. Class A Consumption Data'!N245:O245="B",'6. Class A Consumption Data'!N243:O243)) -> 0 | I105: 0 | J105: 0 | K105: 0 | L105: 0
A106: Customer 73 | C106: 0 | D106: 0 | E106: 0 | F106: 0 | G106: =SUM(IF('6. Class A Consumption Data'!L248:M248="B",'6. Class A Consumption Data'!L246:M246)) -> 0 | H106: =SUM(IF('6. Class A Consumption Data'!N248:O248="B",'6. Class A Consumption Data'!N246:O246)) -> 0 | I106: 0 | J106: 0 | K106: 0 | L106: 0
A107: Customer 74 | C107: 0 | D107: 0 | E107: 0 | F107: 0 | G107: =SUM(IF('6. Class A Consumption Data'!L251:M251="B",'6. Class A Consumption Data'!L249:M249)) -> 0 | H107: =SUM(IF('6. Class A Consumption Data'!N251:O251="B",'6. Class A Consumption Data'!N249:O249)) -> 0 | I107: 0 | J107: 0 | K107: 0 | L107: 0
A108: Customer 75 | C108: 0 | D108: 0 | E108: 0 | F108: 0 | G108: =SUM(IF('6. Class A Consumption Data'!L254:M254="B",'6. Class A Consumption Data'!L252:M252)) -> 0 | H108: =SUM(IF('6. Class A Consumption Data'!N254:O254="B",'6. Class A Consumption Data'!N252:O252)) -> 0 | I108: 0 | J108: 0 | K108: 0 | L108: 0
A109: Customer 76 | C109: 0 | D109: 0 | E109: 0 | F109: 0 | G109: =SUM(IF('6. Class A Consumption Data'!L257:M257="B",'6. Class A Consumption Data'!L255:M255)) -> 0 | H109: =SUM(IF('6. Class A Consumption Data'!N257:O257="B",'6. Class A Consumption Data'!N255:O255)) -> 0 | I109: 0 | J109: 0 | K109: 0 | L109: 0
A110: Customer 77 | C110: 0 | D110: 0 | E110: 0 | F110: 0 | G110: =SUM(IF('6. Class A Consumption Data'!L260:M260="B",'6. Class A Consumption Data'!L258:M258)) -> 0 | H110: =SUM(IF('6. Class A Consumption Data'!N260:O260="B",'6. Class A Consumption Data'!N258:O258)) -> 0 | I110: 0 | J110: 0 | K110: 0 | L110: 0
A111: Customer 78 | C111: 0 | D111: 0 | E111: 0 | F111: 0 | G111: =SUM(IF('6. Class A Consumption Data'!L263:M263="B",'6. Class A Consumption Data'!L261:M261)) -> 0 | H111: =SUM(IF('6. Class A Consumption Data'!N263:O263="B",'6. Class A Consumption Data'!N261:O261)) -> 0 | I111: 0 | J111: 0 | K111: 0 | L111: 0
A112: Customer 79 | C112: 0 | D112: 0 | E112: 0 | F112: 0 | G112: =SUM(IF('6. Class A Consumption Data'!L266:M266="B",'6. Class A Consumption Data'!L264:M264)) -> 0 | H112: =SUM(IF('6. Class A Consumption Data'!N266:O266="B",'6. Class A Consumption Data'!N264:O264)) -> 0 | I112: 0 | J112: 0 | K112: 0 | L112: 0
A113: Customer 80 | C113: 0 | D113: 0 | E113: 0 | F113: 0 | G113: =SUM(IF('6. Class A Consumption Data'!L269:M269="B",'6. Class A Consumption Data'!L267:M267)) -> 0 | H113: =SUM(IF('6. Class A Consumption Data'!N269:O269="B",'6. Class A Consumption Data'!N267:O267)) -> 0 | I113: 0 | J113: 0 | K113: 0 | L113: 0
A114: Customer 81 | C114: 0 | D114: 0 | E114: 0 | F114: 0 | G114: =SUM(IF('6. Class A Consumption Data'!L272:M272="B",'6. Class A Consumption Data'!L270:M270)) -> 0 | H114: =SUM(IF('6. Class A Consumption Data'!N272:O272="B",'6. Class A Consumption Data'!N270:O270)) -> 0 | I114: 0 | J114: 0 | K114: 0 | L114: 0
A115: Customer 82 | C115: 0 | D115: 0 | E115: 0 | F115: 0 | G115: =SUM(IF('6. Class A Consumption Data'!L275:M275="B",'6. Class A Consumption Data'!L273:M273)) -> 0 | H115: =SUM(IF('6. Class A Consumption Data'!N275:O275="B",'6. Class A Consumption Data'!N273:O273)) -> 0 | I115: 0 | J115: 0 | K115: 0 | L115: 0
A116: Customer 83 | C116: 0 | D116: 0 | E116: 0 | F116: 0 | G116: =SUM(IF('6. Class A Consumption Data'!L278:M278="B",'6. Class A Consumption Data'!L276:M276)) -> 0 | H116: =SUM(IF('6. Class A Consumption Data'!N278:O278="B",'6. Class A Consumption Data'!N276:O276)) -> 0 | I116: 0 | J116: 0 | K116: 0 | L116: 0
A117: Customer 84 | C117: 0 | D117: 0 | E117: 0 | F117: 0 | G117: =SUM(IF('6. Class A Consumption Data'!L281:M281="B",'6. Class A Consumption Data'!L279:M279)) -> 0 | H117: =SUM(IF('6. Class A Consumption Data'!N281:O281="B",'6. Class A Consumption Data'!N279:O279)) -> 0 | I117: 0 | J117: 0 | K117: 0 | L117: 0
A118: Customer 85 | C118: 0 | D118: 0 | E118: 0 | F118: 0 | G118: =SUM(IF('6. Class A Consumption Data'!L284:M284="B",'6. Class A Consumption Data'!L282:M282)) -> 0 | H118: =SUM(IF('6. Class A Consumption Data'!N284:O284="B",'6. Class A Consumption Data'!N282:O282)) -> 0 | I118: 0 | J118: 0 | K118: 0 | L118: 0
A119: Customer 86 | C119: 0 | D119: 0 | E119: 0 | F119: 0 | G119: =SUM(IF('6. Class A Consumption Data'!L287:M287="B",'6. Class A Consumption Data'!L285:M285)) -> 0 | H119: =SUM(IF('6. Class A Consumption Data'!N287:O287="B",'6. Class A Consumption Data'!N285:O285)) -> 0 | I119: 0 | J119: 0 | K119: 0 | L119: 0
A120: Customer 87 | C120: 0 | D120: 0 | E120: 0 | F120: 0 | G120: =SUM(IF('6. Class A Consumption Data'!L290:M290="B",'6. Class A Consumption Data'!L288:M288)) -> 0 | H120: =SUM(IF('6. Class A Consumption Data'!N290:O290="B",'6. Class A Consumption Data'!N288:O288)) -> 0 | I120: 0 | J120: 0 | K120: 0 | L120: 0
A121: Customer 88 | C121: 0 | D121: 0 | E121: 0 | F121: 0 | G121: =SUM(IF('6. Class A Consumption Data'!L293:M293="B",'6. Class A Consumption Data'!L291:M291)) -> 0 | H121: =SUM(IF('6. Class A Consumption Data'!N293:O293="B",'6. Class A Consumption Data'!N291:O291)) -> 0 | I121: 0 | J121: 0 | K121: 0 | L121: 0
A122: Customer 89 | C122: 0 | D122: 0 | E122: 0 | F122: 0 | G122: =SUM(IF('6. Class A Consumption Data'!L296:M296="B",'6. Class A Consumption Data'!L294:M294)) -> 0 | H122: =SUM(IF('6. Class A Consumption Data'!N296:O296="B",'6. Class A Consumption Data'!N294:O294)) -> 0 | I122: 0 | J122: 0 | K122: 0 | L122: 0
A123: Customer 90 | C123: 0 | D123: 0 | E123: 0 | F123: 0 | G123: =SUM(IF('6. Class A Consumption Data'!L299:M299="B",'6. Class A Consumption Data'!L297:M297)) -> 0 | H123: =SUM(IF('6. Class A Consumption Data'!N299:O299="B",'6. Class A Consumption Data'!N297:O297)) -> 0 | I123: 0 | J123: 0 | K123: 0 | L123: 0
A124: Customer 91 | C124: 0 | D124: 0 | E124: 0 | F124: 0 | G124: =SUM(IF('6. Class A Consumption Data'!L302:M302="B",'6. Class A Consumption Data'!L300:M300)) -> 0 | H124: =SUM(IF('6. Class A Consumption Data'!N302:O302="B",'6. Class A Consumption Data'!N300:O300)) -> 0 | I124: 0 | J124: 0 | K124: 0 | L124: 0
A125: Customer 92 | C125: 0 | D125: 0 | E125: 0 | F125: 0 | G125: =SUM(IF('6. Class A Consumption Data'!L305:M305="B",'6. Class A Consumption Data'!L303:M303)) -> 0 | H125: =SUM(IF('6. Class A Consumption Data'!N305:O305="B",'6. Class A Consumption Data'!N303:O303)) -> 0 | I125: 0 | J125: 0 | K125: 0 | L125: 0
A126: Customer 93 | C126: 0 | D126: 0 | E126: 0 | F126: 0 | G126: =SUM(IF('6. Class A Consumption Data'!L308:M308="B",'6. Class A Consumption Data'!L306:M306)) -> 0 | H126: =SUM(IF('6. Class A Consumption Data'!N308:O308="B",'6. Class A Consumption Data'!N306:O306)) -> 0 | I126: 0 | J126: 0 | K126: 0 | L126: 0
A127: Customer 94 | C127: 0 | D127: 0 | E127: 0 | F127: 0 | G127: =SUM(IF('6. Class A Consumption Data'!L311:M311="B",'6. Class A Consumption Data'!L309:M309)) -> 0 | H127: =SUM(IF('6. Class A Consumption Data'!N311:O311="B",'6. Class A Consumption Data'!N309:O309)) -> 0 | I127: 0 | J127: 0 | K127: 0 | L127: 0
A128: Customer 95 | C128: 0 | D128: 0 | E128: 0 | F128: 0 | G128: =SUM(IF('6. Class A Consumption Data'!L314:M314="B",'6. Class A Consumption Data'!L312:M312)) -> 0 | H128: =SUM(IF('6. Class A Consumption Data'!N314:O314="B",'6. Class A Consumption Data'!N312:O312)) -> 0 | I128: 0 | J128: 0 | K128: 0 | L128: 0
A129: Customer 96 | C129: 0 | D129: 0 | E129: 0 | F129: 0 | G129: =SUM(IF('6. Class A Consumption Data'!L317:M317="B",'6. Class A Consumption Data'!L315:M315)) -> 0 | H129: =SUM(IF('6. Class A Consumption Data'!N317:O317="B",'6. Class A Consumption Data'!N315:O315)) -> 0 | I129: 0 | J129: 0 | K129: 0 | L129: 0
A130: Customer 97 | C130: =SUM(D130:F130) -> 0 | D130: 0 | E130: 0 | F130: 0 | G130: =SUM(IF('6. Class A Consumption Data'!L320:M320="B",'6. Class A Consumption Data'!L318:M318)) -> 0 | H130: =SUM(IF('6. Class A Consumption Data'!N320:O320="B",'6. Class A Consumption Data'!N318:O318)) -> 0 | I130: =IFERROR(+C130/($C$184),0) -> 0 | J130: =+I130*$C$28 -> 0 | K130: =+J130/12 -> 0 | L130: 0
A131: Customer 98 | C131: 0 | D131: 0 | E131: 0 | F131: 0 | G131: =SUM(IF('6. Class A Consumption Data'!L323:M323="B",'6. Class A Consumption Data'!L321:M321)) -> 0 | H131: =SUM(IF('6. Class A Consumption Data'!N323:O323="B",'6. Class A Consumption Data'!N321:O321)) -> 0 | I131: 0 | J131: 0 | K131: 0 | L131: 0
A132: Customer 99 | C132: 0 | D132: 0 | E132: 0 | F132: 0 | G132: =SUM(IF('6. Class A Consumption Data'!L326:M326="B",'6. Class A Consumption Data'!L324:M324)) -> 0 | H132: =SUM(IF('6. Class A Consumption Data'!N326:O326="B",'6. Class A Consumption Data'!N324:O324)) -> 0 | I132: 0 | J132: 0 | K132: 0 | L132: 0
A133: Customer 100 | C133: 0 | D133: 0 | E133: 0 | F133: 0 | G133: =SUM(IF('6. Class A Consumption Data'!L329:M329="B",'6. Class A Consumption Data'!L327:M327)) -> 0 | H133: =SUM(IF('6. Class A Consumption Data'!N329:O329="B",'6. Class A Consumption Data'!N327:O327)) -> 0 | I133: 0 | J133: 0 | K133: 0 | L133: 0
A134: Customer 101 | C134: 0 | D134: 0 | E134: 0 | F134: 0 | G134: =SUM(IF('6. Class A Consumption Data'!L332:M332="B",'6. Class A Consumption Data'!L330:M330)) -> 0 | H134: =SUM(IF('6. Class A Consumption Data'!N332:O332="B",'6. Class A Consumption Data'!N330:O330)) -> 0 | I134: 0 | J134: 0 | K134: 0 | L134: 0
A135: Customer 102 | C135: 0 | D135: 0 | E135: 0 | F135: 0 | G135: =SUM(IF('6. Class A Consumption Data'!L335:M335="B",'6. Class A Consumption Data'!L333:M333)) -> 0 | H135: =SUM(IF('6. Class A Consumption Data'!N335:O335="B",'6. Class A Consumption Data'!N333:O333)) -> 0 | I135: 0 | J135: 0 | K135: 0 | L135: 0
A136: Customer 103 | C136: 0 | D136: 0 | E136: 0 | F136: 0 | G136: =SUM(IF('6. Class A Consumption Data'!L338:M338="B",'6. Class A Consumption Data'!L336:M336)) -> 0 | H136: =SUM(IF('6. Class A Consumption Data'!N338:O338="B",'6. Class A Consumption Data'!N336:O336)) -> 0 | I136: 0 | J136: 0 | K136: 0 | L136: 0
A137: Customer 104 | C137: 0 | D137: 0 | E137: 0 | F137: 0 | G137: =SUM(IF('6. Class A Consumption Data'!L341:M341="B",'6. Class A Consumption Data'!L339:M339)) -> 0 | H137: =SUM(IF('6. Class A Consumption Data'!N341:O341="B",'6. Class A Consumption Data'!N339:O339)) -> 0 | I137: 0 | J137: 0 | K137: 0 | L137: 0
A138: Customer 105 | C138: 0 | D138: 0 | E138: 0 | F138: 0 | G138: =SUM(IF('6. Class A Consumption Data'!L344:M344="B",'6. Class A Consumption Data'!L342:M342)) -> 0 | H138: =SUM(IF('6. Class A Consumption Data'!N344:O344="B",'6. Class A Consumption Data'!N342:O342)) -> 0 | I138: 0 | J138: 0 | K138: 0 | L138: 0
A139: Customer 106 | C139: 0 | D139: 0 | E139: 0 | F139: 0 | G139: =SUM(IF('6. Class A Consumption Data'!L347:M347="B",'6. Class A Consumption Data'!L345:M345)) -> 0 | H139: =SUM(IF('6. Class A Consumption Data'!N347:O347="B",'6. Class A Consumption Data'!N345:O345)) -> 0 | I139: 0 | J139: 0 | K139: 0 | L139: 0
A140: Customer 107 | C140: 0 | D140: 0 | E140: 0 | F140: 0 | G140: =SUM(IF('6. Class A Consumption Data'!L350:M350="B",'6. Class A Consumption Data'!L348:M348)) -> 0 | H140: =SUM(IF('6. Class A Consumption Data'!N350:O350="B",'6. Class A Consumption Data'!N348:O348)) -> 0 | I140: 0 | J140: 0 | K140: 0 | L140: 0
A141: Customer 108 | C141: 0 | D141: 0 | E141: 0 | F141: 0 | G141: =SUM(IF('6. Class A Consumption Data'!L353:M353="B",'6. Class A Consumption Data'!L351:M351)) -> 0 | H141: =SUM(IF('6. Class A Consumption Data'!N353:O353="B",'6. Class A Consumption Data'!N351:O351)) -> 0 | I141: 0 | J141: 0 | K141: 0 | L141: 0
A142: Customer 109 | C142: 0 | D142: 0 | E142: 0 | F142: 0 | G142: =SUM(IF('6. Class A Consumption Data'!L356:M356="B",'6. Class A Consumption Data'!L354:M354)) -> 0 | H142: =SUM(IF('6. Class A Consumption Data'!N356:O356="B",'6. Class A Consumption Data'!N354:O354)) -> 0 | I142: 0 | J142: 0 | K142: 0 | L142: 0
A143: Customer 110 | C143: 0 | D143: 0 | E143: 0 | F143: 0 | G143: =SUM(IF('6. Class A Consumption Data'!L359:M359="B",'6. Class A Consumption Data'!L357:M357)) -> 0 | H143: =SUM(IF('6. Class A Consumption Data'!N359:O359="B",'6. Class A Consumption Data'!N357:O357)) -> 0 | I143: 0 | J143: 0 | K143: 0 | L143: 0
A144: Customer 111 | C144: 0 | D144: 0 | E144: 0 | F144: 0 | G144: =SUM(IF('6. Class A Consumption Data'!L362:M362="B",'6. Class A Consumption Data'!L360:M360)) -> 0 | H144: =SUM(IF('6. Class A Consumption Data'!N362:O362="B",'6. Class A Consumption Data'!N360:O360)) -> 0 | I144: 0 | J144: 0 | K144: 0 | L144: 0
A145: Customer 112 | C145: 0 | D145: 0 | E145: 0 | F145: 0 | G145: =SUM(IF('6. Class A Consumption Data'!L365:M365="B",'6. Class A Consumption Data'!L363:M363)) -> 0 | H145: =SUM(IF('6. Class A Consumption Data'!N365:O365="B",'6. Class A Consumption Data'!N363:O363)) -> 0 | I145: 0 | J145: 0 | K145: 0 | L145: 0
A146: Customer 113 | C146: 0 | D146: 0 | E146: 0 | F146: 0 | G146: =SUM(IF('6. Class A Consumption Data'!L368:M368="B",'6. Class A Consumption Data'!L366:M366)) -> 0 | H146: =SUM(IF('6. Class A Consumption Data'!N368:O368="B",'6. Class A Consumption Data'!N366:O366)) -> 0 | I146: 0 | J146: 0 | K146: 0 | L146: 0
A147: Customer 114 | C147: 0 | D147: 0 | E147: 0 | F147: 0 | G147: =SUM(IF('6. Class A Consumption Data'!L371:M371="B",'6. Class A Consumption Data'!L369:M369)) -> 0 | H147: =SUM(IF('6. Class A Consumption Data'!N371:O371="B",'6. Class A Consumption Data'!N369:O369)) -> 0 | I147: 0 | J147: 0 | K147: 0 | L147: 0
A148: Customer 115 | C148: 0 | D148: 0 | E148: 0 | F148: 0 | G148: =SUM(IF('6. Class A Consumption Data'!L374:M374="B",'6. Class A Consumption Data'!L372:M372)) -> 0 | H148: =SUM(IF('6. Class A Consumption Data'!N374:O374="B",'6. Class A Consumption Data'!N372:O372)) -> 0 | I148: 0 | J148: 0 | K148: 0 | L148: 0
A149: Customer 116 | C149: 0 | D149: 0 | E149: 0 | F149: 0 | G149: =SUM(IF('6. Class A Consumption Data'!L377:M377="B",'6. Class A Consumption Data'!L375:M375)) -> 0 | H149: =SUM(IF('6. Class A Consumption Data'!N377:O377="B",'6. Class A Consumption Data'!N375:O375)) -> 0 | I149: 0 | J149: 0 | K149: 0 | L149: 0
A150: Customer 117 | C150: 0 | D150: 0 | E150: 0 | F150: 0 | G150: =SUM(IF('6. Class A Consumption Data'!L380:M380="B",'6. Class A Consumption Data'!L378:M378)) -> 0 | H150: =SUM(IF('6. Class A Consumption Data'!N380:O380="B",'6. Class A Consumption Data'!N378:O378)) -> 0 | I150: 0 | J150: 0 | K150: 0 | L150: 0
A151: Customer 118 | C151: 0 | D151: 0 | E151: 0 | F151: 0 | G151: =SUM(IF('6. Class A Consumption Data'!L383:M383="B",'6. Class A Consumption Data'!L381:M381)) -> 0 | H151: =SUM(IF('6. Class A Consumption Data'!N383:O383="B",'6. Class A Consumption Data'!N381:O381)) -> 0 | I151: 0 | J151: 0 | K151: 0 | L151: 0
A152: Customer 119 | C152: 0 | D152: 0 | E152: 0 | F152: 0 | G152: =SUM(IF('6. Class A Consumption Data'!L386:M386="B",'6. Class A Consumption Data'!L384:M384)) -> 0 | H152: =SUM(IF('6. Class A Consumption Data'!N386:O386="B",'6. Class A Consumption Data'!N384:O384)) -> 0 | I152: 0 | J152: 0 | K152: 0 | L152: 0
A153: Customer 120 | C153: 0 | D153: 0 | E153: 0 | F153: 0 | G153: =SUM(IF('6. Class A Consumption Data'!L389:M389="B",'6. Class A Consumption Data'!L387:M387)) -> 0 | H153: =SUM(IF('6. Class A Consumption Data'!N389:O389="B",'6. Class A Consumption Data'!N387:O387)) -> 0 | I153: 0 | J153: 0 | K153: 0 | L153: 0
A154: Customer 121 | C154: 0 | D154: 0 | E154: 0 | F154: 0 | G154: =SUM(IF('6. Class A Consumption Data'!L392:M392="B",'6. Class A Consumption Data'!L390:M390)) -> 0 | H154: =SUM(IF('6. Class A Consumption Data'!N392:O392="B",'6. Class A Consumption Data'!N390:O390)) -> 0 | I154: 0 | J154: 0 | K154: 0 | L154: 0
A155: Customer 122 | C155: 0 | D155: 0 | E155: 0 | F155: 0 | G155: =SUM(IF('6. Class A Consumption Data'!L395:M395="B",'6. Class A Consumption Data'!L393:M393)) -> 0 | H155: =SUM(IF('6. Class A Consumption Data'!N395:O395="B",'6. Class A Consumption Data'!N393:O393)) -> 0 | I155: 0 | J155: 0 | K155: 0 | L155: 0
A156: Customer 123 | C156: 0 | D156: 0 | E156: 0 | F156: 0 | G156: =SUM(IF('6. Class A Consumption Data'!L398:M398="B",'6. Class A Consumption Data'!L396:M396)) -> 0 | H156: =SUM(IF('6. Class A Consumption Data'!N398:O398="B",'6. Class A Consumption Data'!N396:O396)) -> 0 | I156: 0 | J156: 0 | K156: 0 | L156: 0
A157: Customer 124 | C157: 0 | D157: 0 | E157: 0 | F157: 0 | G157: =SUM(IF('6. Class A Consumption Data'!L401:M401="B",'6. Class A Consumption Data'!L399:M399)) -> 0 | H157: =SUM(IF('6. Class A Consumption Data'!N401:O401="B",'6. Class A Consumption Data'!N399:O399)) -> 0 | I157: 0 | J157: 0 | K157: 0 | L157: 0
A158: Customer 125 | C158: 0 | D158: 0 | E158: 0 | F158: 0 | G158: =SUM(IF('6. Class A Consumption Data'!L404:M404="B",'6. Class A Consumption Data'!L402:M402)) -> 0 | H158: =SUM(IF('6. Class A Consumption Data'!N404:O404="B",'6. Class A Consumption Data'!N402:O402)) -> 0 | I158: 0 | J158: 0 | K158: 0 | L158: 0
A159: Customer 126 | C159: 0 | D159: 0 | E159: 0 | F159: 0 | G159: =SUM(IF('6. Class A Consumption Data'!L407:M407="B",'6. Class A Consumption Data'!L405:M405)) -> 0 | H159: =SUM(IF('6. Class A Consumption Data'!N407:O407="B",'6. Class A Consumption Data'!N405:O405)) -> 0 | I159: 0 | J159: 0 | K159: 0 | L159: 0
A160: Customer 127 | C160: 0 | D160: 0 | E160: 0 | F160: 0 | G160: =SUM(IF('6. Class A Consumption Data'!L410:M410="B",'6. Class A Consumption Data'!L408:M408)) -> 0 | H160: =SUM(IF('6. Class A Consumption Data'!N410:O410="B",'6. Class A Consumption Data'!N408:O408)) -> 0 | I160: 0 | J160: 0 | K160: 0 | L160: 0
A161: Customer 128 | C161: 0 | D161: 0 | E161: 0 | F161: 0 | G161: =SUM(IF('6. Class A Consumption Data'!L413:M413="B",'6. Class A Consumption Data'!L411:M411)) -> 0 | H161: =SUM(IF('6. Class A Consumption Data'!N413:O413="B",'6. Class A Consumption Data'!N411:O411)) -> 0 | I161: 0 | J161: 0 | K161: 0 | L161: 0
A162: Customer 129 | C162: =SUM(D162:F162) -> 0 | D162: 0 | E162: 0 | F162: 0 | G162: =SUM(IF('6. Class A Consumption Data'!L416:M416="B",'6. Class A Consumption Data'!L414:M414)) -> 0 | H162: =SUM(IF('6. Class A Consumption Data'!N416:O416="B",'6. Class A Consumption Data'!N414:O414)) -> 0 | I162: =IFERROR(+C162/($C$184),0) -> 0 | J162: =+I162*$C$28 -> 0 | K162: =+J162/12 -> 0 | L162: 0
A163: Customer 130 | C163: 0 | D163: 0 | E163: 0 | F163: 0 | G163: =SUM(IF('6. Class A Consumption Data'!L419:M419="B",'6. Class A Consumption Data'!L417:M417)) -> 0 | H163: =SUM(IF('6. Class A Consumption Data'!N419:O419="B",'6. Class A Consumption Data'!N417:O417)) -> 0 | I163: 0 | J163: 0 | K163: 0 | L163: 0
A164: Customer 131 | C164: 0 | D164: 0 | E164: 0 | F164: 0 | G164: =SUM(IF('6. Class A Consumption Data'!L422:M422="B",'6. Class A Consumption Data'!L420:M420)) -> 0 | H164: =SUM(IF('6. Class A Consumption Data'!N422:O422="B",'6. Class A Consumption Data'!N420:O420)) -> 0 | I164: 0 | J164: 0 | K164: 0 | L164: 0
A165: Customer 132 | C165: 0 | D165: 0 | E165: 0 | F165: 0 | G165: =SUM(IF('6. Class A Consumption Data'!L425:M425="B",'6. Class A Consumption Data'!L423:M423)) -> 0 | H165: =SUM(IF('6. Class A Consumption Data'!N425:O425="B",'6. Class A Consumption Data'!N423:O423)) -> 0 | I165: 0 | J165: 0 | K165: 0 | L165: 0
A166: Customer 133 | C166: 0 | D166: 0 | E166: 0 | F166: 0 | G166: =SUM(IF('6. Class A Consumption Data'!L428:M428="B",'6. Class A Consumption Data'!L426:M426)) -> 0 | H166: =SUM(IF('6. Class A Consumption Data'!N428:O428="B",'6. Class A Consumption Data'!N426:O426)) -> 0 | I166: 0 | J166: 0 | K166: 0 | L166: 0
A167: Customer 134 | C167: 0 | D167: 0 | E167: 0 | F167: 0 | G167: =SUM(IF('6. Class A Consumption Data'!L431:M431="B",'6. Class A Consumption Data'!L429:M429)) -> 0 | H167: =SUM(IF('6. Class A Consumption Data'!N431:O431="B",'6. Class A Consumption Data'!N429:O429)) -> 0 | I167: 0 | J167: 0 | K167: 0 | L167: 0
A168: Customer 135 | C168: 0 | D168: 0 | E168: 0 | F168: 0 | G168: =SUM(IF('6. Class A Consumption Data'!L434:M434="B",'6. Class A Consumption Data'!L432:M432)) -> 0 | H168: =SUM(IF('6. Class A Consumption Data'!N434:O434="B",'6. Class A Consumption Data'!N432:O432)) -> 0 | I168: 0 | J168: 0 | K168: 0 | L168: 0
A169: Customer 136 | C169: 0 | D169: 0 | E169: 0 | F169: 0 | G169: =SUM(IF('6. Class A Consumption Data'!L437:M437="B",'6. Class A Consumption Data'!L435:M435)) -> 0 | H169: =SUM(IF('6. Class A Consumption Data'!N437:O437="B",'6. Class A Consumption Data'!N435:O435)) -> 0 | I169: 0 | J169: 0 | K169: 0 | L169: 0
A170: Customer 137 | C170: 0 | D170: 0 | E170: 0 | F170: 0 | G170: =SUM(IF('6. Class A Consumption Data'!L440:M440="B",'6. Class A Consumption Data'!L438:M438)) -> 0 | H170: =SUM(IF('6. Class A Consumption Data'!N440:O440="B",'6. Class A Consumption Data'!N438:O438)) -> 0 | I170: 0 | J170: 0 | K170: 0 | L170: 0
A171: Customer 138 | C171: 0 | D171: 0 | E171: 0 | F171: 0 | G171: =SUM(IF('6. Class A Consumption Data'!L443:M443="B",'6. Class A Consumption Data'!L441:M441)) -> 0 | H171: =SUM(IF('6. Class A Consumption Data'!N443:O443="B",'6. Class A Consumption Data'!N441:O441)) -> 0 | I171: 0 | J171: 0 | K171: 0 | L171: 0
A172: Customer 139 | C172: 0 | D172: 0 | E172: 0 | F172: 0 | G172: =SUM(IF('6. Class A Consumption Data'!L446:M446="B",'6. Class A Consumption Data'!L444:M444)) -> 0 | H172: =SUM(IF('6. Class A Consumption Data'!N446:O446="B",'6. Class A Consumption Data'!N444:O444)) -> 0 | I172: 0 | J172: 0 | K172: 0 | L172: 0
A173: Customer 140 | C173: 0 | D173: 0 | E173: 0 | F173: 0 | G173: =SUM(IF('6. Class A Consumption Data'!L449:M449="B",'6. Class A Consumption Data'!L447:M447)) -> 0 | H173: =SUM(IF('6. Class A Consumption Data'!N449:O449="B",'6. Class A Consumption Data'!N447:O447)) -> 0 | I173: 0 | J173: 0 | K173: 0 | L173: 0
A174: Customer 141 | C174: 0 | D174: 0 | E174: 0 | F174: 0 | G174: =SUM(IF('6. Class A Consumption Data'!L452:M452="B",'6. Class A Consumption Data'!L450:M450)) -> 0 | H174: =SUM(IF('6. Class A Consumption Data'!N452:O452="B",'6. Class A Consumption Data'!N450:O450)) -> 0 | I174: 0 | J174: 0 | K174: 0 | L174: 0
A175: Customer 142 | C175: 0 | D175: 0 | E175: 0 | F175: 0 | G175: =SUM(IF('6. Class A Consumption Data'!L455:M455="B",'6. Class A Consumption Data'!L453:M453)) -> 0 | H175: =SUM(IF('6. Class A Consumption Data'!N455:O455="B",'6. Class A Consumption Data'!N453:O453)) -> 0 | I175: 0 | J175: 0 | K175: 0 | L175: 0
A176: Customer 143 | C176: 0 | D176: 0 | E176: 0 | F176: 0 | G176: =SUM(IF('6. Class A Consumption Data'!L458:M458="B",'6. Class A Consumption Data'!L456:M456)) -> 0 | H176: =SUM(IF('6. Class A Consumption Data'!N458:O458="B",'6. Class A Consumption Data'!N456:O456)) -> 0 | I176: 0 | J176: 0 | K176: 0 | L176: 0
A177: Customer 144 | C177: 0 | D177: 0 | E177: 0 | F177: 0 | G177: =SUM(IF('6. Class A Consumption Data'!L461:M461="B",'6. Class A Consumption Data'!L459:M459)) -> 0 | H177: =SUM(IF('6. Class A Consumption Data'!N461:O461="B",'6. Class A Consumption Data'!N459:O459)) -> 0 | I177: 0 | J177: 0 | K177: 0 | L177: 0
A178: Customer 145 | C178: 0 | D178: 0 | E178: 0 | F178: 0 | G178: =SUM(IF('6. Class A Consumption Data'!L464:M464="B",'6. Class A Consumption Data'!L462:M462)) -> 0 | H178: =SUM(IF('6. Class A Consumption Data'!N464:O464="B",'6. Class A Consumption Data'!N462:O462)) -> 0 | I178: 0 | J178: 0 | K178: 0 | L178: 0
A179: Customer 146 | C179: 0 | D179: 0 | E179: 0 | F179: 0 | G179: =SUM(IF('6. Class A Consumption Data'!L467:M467="B",'6. Class A Consumption Data'!L465:M465)) -> 0 | H179: =SUM(IF('6. Class A Consumption Data'!N467:O467="B",'6. Class A Consumption Data'!N465:O465)) -> 0 | I179: 0 | J179: 0 | K179: 0 | L179: 0
A180: Customer 147 | C180: 0 | D180: 0 | E180: 0 | F180: 0 | G180: =SUM(IF('6. Class A Consumption Data'!L470:M470="B",'6. Class A Consumption Data'!L468:M468)) -> 0 | H180: =SUM(IF('6. Class A Consumption Data'!N470:O470="B",'6. Class A Consumption Data'!N468:O468)) -> 0 | I180: 0 | J180: 0 | K180: 0 | L180: 0
A181: Customer 148 | C181: 0 | D181: 0 | E181: 0 | F181: 0 | G181: =SUM(IF('6. Class A Consumption Data'!L473:M473="B",'6. Class A Consumption Data'!L471:M471)) -> 0 | H181: =SUM(IF('6. Class A Consumption Data'!N473:O473="B",'6. Class A Consumption Data'!N471:O471)) -> 0 | I181: 0 | J181: 0 | K181: 0 | L181: 0
A182: Customer 149 | C182: 0 | D182: 0 | E182: 0 | F182: 0 | G182: =SUM(IF('6. Class A Consumption Data'!L476:M476="B",'6. Class A Consumption Data'!L474:M474)) -> 0 | H182: =SUM(IF('6. Class A Consumption Data'!N476:O476="B",'6. Class A Consumption Data'!N474:O474)) -> 0 | I182: 0 | J182: 0 | K182: 0 | L182: 0
A183: Customer 150 | C183: 0 | D183: 0 | E183: 0 | F183: 0 | G183: =SUM(IF('6. Class A Consumption Data'!L479:M479="B",'6. Class A Consumption Data'!L477:M477)) -> 0 | H183: =SUM(IF('6. Class A Consumption Data'!N479:O479="B",'6. Class A Consumption Data'!N477:O477)) -> 0 | I183: 0 | J183: 0 | K183: 0 | L183: 0
A184: Total | C184: =SUM(C34:C183) -> 12101519.4 | D184: 0 | E184: 0 | F184: 12101519.4 | G184: 0 | H184: 0 | I184: 1 | J184: -111.7489471 | K184: -9.312412254 | L184: 0

Sheet 6.2 CBR B
B2: FALSE | C2: TRUE
B6: Total
A12: No input required. The purpose of this tab is to calculate the CBR rate riders for all current Class B customers who did not transition between Class A and B in the period since the Account 1580, sub-account CBR Class B balance accumulated.
A13: The year Account 1580 CBR Class B was last disposed | B13: ='1. Information Sheet'!F42 -> 2017
C14: Total Metered 2020 Consumption Minus WMP | E14: Total Metered 2020 Consumption for Full Year Class A Customers | G14: Total Metered 2020 Consumption for Transition Customers | I14: Metered Consumption for Current Class B Customers (Total Consumption LESS WMP, Class A and Transition Customers' Consumption) | K14: % of total kWh | L14: Total CBR Class B $ allocated to Current Class B Customers | M14: CBR Class B Rate Rider | N14: Unit
C15: kWh | D15: kW | E15: kWh | F15: kW | G15: kWh | H15: kW | I15: kWh | J15: kW
A17: RESIDENTIAL SERVICE CLASSIFICATION | B17: kWh | C17: 49496752 | D17: 0 | E17: =SUM(IF('6. Class A Consumption Data'!D492:D791=A17,'6. Class A Consumption Data'!F492:F791)) -> 0 | F17: =SUM(IF('6. Class A Consumption Data'!D492:D791=A17&"kW",'6. Class A Consumption Data'!F492:F791)) -> 0 | G17: =SUM(IF(('6. Class A Consumption Data'!D30:D479=A17)*('6. Class A Consumption Data'!B30:B479 <> "A"),'6. Class A Consumption Data'!F30:G479)) -> 0 | H17: =SUM(IF(('6. Class A Consumption Data'!D30:D479=A17&"kW")*('6. Class A Consumption Data'!B30:B479<> "A"),'6. Class A Consumption Data'!F30:G479)) -> 0 | I17: =ROUND((C17-E17-G17),0) -> 49496752 | J17: =(D17-F17-H17) -> 0 | K17: =(I17/I24) -> 0.4105914936 | L17: =ROUND((-3265.0544*K17),0) -> -1341 | M17: 0 | N17: kWh | O17: If the allocated Account 1580 sub-account CBR Class B amount does not produce a rate rider in one or more rate class (except for the Standby rate class), the model will transfer the entire CBR Class B amount into Account 1580 WMS control account to be disposed through the general purpose Group 1 DVA rate riders.
A18: GENERAL SERVICE LESS THAN 50 KW SERVICE CLASSIFICATION | B18: kWh | C18: 23240081 | D18: 0 | E18: =SUM(IF('6. Class A Consumption Data'!D492:D791=A18,'6. Class A Consumption Data'!F492:F791)) -> 0 | F18: =SUM(IF('6. Class A Consumption Data'!D492:D791=A18&"kW",'6. Class A Consumption Data'!F492:F791)) -> 0 | G18: =SUM(IF(('6. Class A Consumption Data'!D30:D479=A18)*('6. Class A Consumption Data'!B30:B479 <> "A"),'6. Class A Consumption Data'!F30:G479)) -> 0 | H18: =SUM(IF(('6. Class A Consumption Data'!D30:D479=A18&"kW")*('6. Class A Consumption Data'!B30:B479<> "A"),'6. Class A Consumption Data'!F30:G479)) -> 0 | I18: 23240081 | J18: 0 | K18: =(I18/I24) -> 0.1927839542 | L18: -629 | M18: 0 | N18: kWh
A19: GENERAL SERVICE 50 TO 2,999 KW SERVICE CLASSIFICATION | B19: kW | C19: 50457001 | D19: 138476 | E19: =SUM(IF('6. Class A Consumption Data'!D492:D791=A19,'6. Class A Consumption Data'!F492:F791)) -> 3794682 | F19: =SUM(IF('6. Class A Consumption Data'!D492:D791=A19&"kW",'6. Class A Consumption Data'!F492:F791)) -> 9596.9 | G19: =SUM(IF(('6. Class A Consumption Data'!D30:D479=A19)*('6. Class A Consumption Data'!B30:B479 <> "A"),'6. Class A Consumption Data'!F30:G479)) -> 0 | H19: =SUM(IF(('6. Class A Consumption Data'!D30:D479=A19&"kW")*('6. Class A Consumption Data'!B30:B479<> "A"),'6. Class A Consumption Data'!F30:G479)) -> 0 | I19: 46662319 | J19: 128879.1 | K19: =(I19/I24) -> 0.3870789593 | L19: -1264 | M19: 0 | N19: kW
A20: GENERAL SERVICE 3,000 TO 4,999 KW SERVICE CLASSIFICATION | B20: kW | C20: 14539031 | D20: 38002 | E20: =SUM(IF('6. Class A Consumption Data'!D492:D791=A20,'6. Class A Consumption Data'!F492:F791)) -> 14539031 | F20: =SUM(IF('6. Class A Consumption Data'!D492:D791=A20&"kW",'6. Class A Consumption Data'!F492:F791)) -> 38002.3 | G20: =SUM(IF(('6. Class A Consumption Data'!D30:D479=A20)*('6. Class A Consumption Data'!B30:B479 <> "A"),'6. Class A Consumption Data'!F30:G479)) -> 0 | H20: =SUM(IF(('6. Class A Consumption Data'!D30:D479=A20&"kW")*('6. Class A Consumption Data'!B30:B479<> "A"),'6. Class A Consumption Data'!F30:G479)) -> 0 | I20: 0 | J20: -0.3 | K20: =(I20/I24) -> 0 | L20: 0 | M20: 0 | N20: kW
